Workbook

Sheet Inhalt
A2: 1
B4: ='1'!_Toc440802779 -> 1 | C4: ='1'!C4 -> Grundlagen der kaufmännischen Rechnungslegung
B5: 1.1 | C5: Adressaten der kaufmännischen Rechnungslegung
B6: ='1'!B12 -> 1.2 | C6: ='1'!C12 -> Aufgaben des Rechnungswesens
B7: ='1'!B18 -> 1.3 | C7: ='1'!C18 -> Gliederung des Rechnungswesens
B8: ='2'!_Toc440802779 -> 2 | C8: ='2'!C4 -> Rechtsgrundlagen des Rechnungswesens
B9: ='2'!B10 -> 2.1 | C9: ='2'!C10 -> Gesetzliche Grundlagen
B10: ='2'!B21 -> 2.1.1 | C10: ='2'!C21 -> Handelsrechtliche Vorschriften
B11: ='2'!B39 -> 2.1.2 | C11: ='2'!C39 -> Steuerrechtliche Vorschriften
B12: ='3'!_Toc440802779 -> 3 | C12: ='3'!C4 -> Die Grundsätze der ordnungsgemäßen Buchführung ("GoB")
B13: ='3'!B12 -> 3.1 | C13: ='3'!C12 -> Dokumentationsgrundsätze
B14: ='3'!B28 -> 3.2 | C14: ='3'!C28 -> Bilanzierungsgrundsätze
B15: ='3'!B43 -> 3.3 | C15: ='3'!C43 -> Ordnungsgemäße computergestützte Buchhaltung
B16: ='4'!_Toc440802779 -> 4 | C16: ='4'!C4 -> Aufzeichnungs- und Buchführungspflichten
B17: ='4'!B8 -> 4.1 | C17: ='4'!C8 -> Buchführungspflicht der Kaufleute nach Handelsrecht
B18: ='4'!B25 -> 4.2 | C18: ='4'!C25 -> Steuerrechtliche Buchführungspflicht
B19: ='4'!B33 -> 4.3 | C19: ='4'!C33 -> Weitere Aufzeichnungspflichten
B20: ='5'!_Toc440802779 -> 5 | C20: ='5'!C4 -> Organisation der Buchführung
B21: ='5'!B6 -> 5.1 | C21: ='5'!C6:D6 -> Grund- und Hauptbuch
B22: ='5'!B10 -> 5.2 | C22: ='5'!C10 -> Nebenbuchhaltung (Nebenbücher)
B23: ='5'!B44 -> 5.3 | C23: ='5'!C44 -> Aufbewahrungspflichten
B24: ='5'!B52 -> 5.4 | C24: ='5'!C52 -> Aufbewahrungsfristen
B25: ='5'!B63 -> 5.5 | C25: ='5'!C63 -> Unterscheidung der Belege
B26: ='5'!B73 -> 5.6 | C26: ='5'!C73:D73 -> Behandlung von Belegen nach den GoBs
B27: ='6'!_Toc440802779 -> 6 | C27: ='6'!C4:G4 -> Inventur und Inventar
B28: ='6'!B6:D6 -> 6.1 | C28: ='6'!C6:G6 -> Das Inventar
B29: ='6'!B45 -> 6.2 | C29: ='6'!C45:G45 -> Begriffsunterscheidung Inventar / Inventur
B30: ='6'!B54 -> 6.3 | C30: ='6'!C54:G54 -> Die Inventur: grundlegende Definition
B31: ='6'!B58:D58 -> 6.4 | C31: ='6'!C58 -> Bewertung und Bewertungsvereinfachung
B32: ='6'!B70 -> 6.5 | C32: ='6'!C70:G70 -> Besondere Arten der Inventur
B33: ='7'!_Toc440802779 -> 7 | C33: ='7'!C4 -> Inventar => Bilanz und GuV
B34: ='7'!B8 -> 7.1 | C34: ='7'!C8 -> Bilanz
B35: ='7'!B72 -> 7.2 | C35: ='7'!C72 -> Bilanz und GuV
B36: ='8'!_Toc440802779 -> 8 | C36: ='8'!C4 -> Die Ableitung der Buchungsmethodik
B37: ='8'!B8 -> 8.1 | C37: ='8'!C8 -> Buchungsregeln
B38: ='8'!B73 -> 8.2 | C38: ='8'!C73:D73 -> Ableitung von Buchungssätzen
B39: ='8'!B90 -> 8.3 | C39: ='8'!C90 -> Beispiele für Buchungssätze
B40: ='8'!B117 -> 8.4 | C40: ='8'!C117 -> Die vier elementaren Buchungsfälle
B41: ='8'!B143 -> 8.5 | C41: ='8'!C143 -> Der Buchungskreislauf der Bilanz-Konten (siehe Anlagen)
B42: ='8'!B147 -> 8.6 | C42: ='8'!C147 -> Erfolgskonten, GuV und Eigenkapital (siehe Anlagen)
B43: ='9'!B4 -> 9 | C43: ='9'!C4 -> Verbuchung von Abschreibungen
B44: ='9'!B8 -> 9.1 | C44: ='9'!C8 -> Arten der Abschreibungen
B45: ='9'!B13 -> 9.2 | C45: ='9'!C13 -> Buchungstechnik bei Abschreibungen
B46: ='9'!B22 -> 9.3 | C46: ='9'!C22 -> Planmäßige und außerplanmäßige Abschreibung
B47: ='9'!B30 -> 9.4 | C47: ='9'!C30 -> Degressive und lineare Abschreibung
B48: ='9'!B109 -> 9.5 | C48: ='9'!C109 -> Geringwertige Wirtschaftsgüter (Bewertungsvereinfachung)
B49: ='9'!B128 -> 9.6 | C49: ='9'!C128 -> Übungen zu Abschreibungen
A51: =A2+1 -> 2
B53: ='10'!B4 -> 10 | C53: ='10'!C4 -> Die Umsatzsteuer
B54: ='10'!B6 -> 10.1 | C54: ='10'!C6 -> Umsatzsteuerpflicht
B55: ='10'!_Toc440802780 -> 10.2 | C55: ='10'!C10 -> Systematik der Umsatzsteuer
B56: ='10'!B22 -> 10.3 | C56: ='10'!C22 -> Umsatzsteuer im Einkauf- und Verkaufsprozess
B57: ='10'!B94 -> 10.4 | C57: ='10'!C94 -> Verbuchung der Umsatzsteuer
B58: ='11'!B4 -> 11 | C58: ='11'!C4 -> Das Privatkonto
B59: ='11'!B18 -> 11.2 | C59: ='11'!C18 -> Gewinn-Ermittlungsmethode durch EK-Vergleich
B60: ='11'!B187 -> 11.2 | C60: ='11'!C187 -> Übungsfälle
B61: ='12'!B4 -> 12 | C61: ='12'!C4 -> Organisation der Buchführung
B62: ='12'!B6 -> 12.1 | C62: ='12'!C6 -> Der Gemeinschaftskontenrahmen der Industrie (GKR)
B63: ='12'!B10 -> 12.2 | C63: ='12'!C10 -> Der Kontenplan
B64: ='13'!B4 -> 13 | C64: ='13'!C4 -> Buchungen im Personalbereich
B65: ='13'!B6 -> 13.1 | C65: ='13'!C6 -> Ausweis- und Rechnungslegungspflichten
B66: ='13'!B29 -> 13.2 | C66: ='13'!C29 -> Übungsfälle zur Lohn-/Gehaltsverbuchung
B67: ='14'!B4 -> 14 | C67: ='14'!C4 -> Buchungen im Ein- und Verkaufsbereich
B68: ='14'!B8 -> 14.1 | C68: ='14'!C8 -> Zur Definition des Materialbegriffes
B69: ='14'!B14 -> 14.2 | C69: ='14'!C14 -> Buchungen der Roh-, Hilfs- und Betriebsstoffe
B70: ='14'!B34 -> 14.3 | C70: ='14'!C34 -> Buchungen des Warenverkehrs
B71: ='14'!B46 -> 14.4 | C71: ='14'!C46 -> Grundlagen zu (nachträglichen) Preisnachlässen
B72: ='15'!B4 -> 15 | C72: ='15'!C4 -> Zahlungen mit Skontoabzug
B73: ='16'!B4 -> 16 | C73: ='16'!C4 -> Buchungen im Sachanlagebereich
B74: ='16'!B8 -> 16.1 | C74: ='16'!C8 -> Buchungen neuer Anlagen (Anschaffung/Kauf)
B75: ='16'!B154 -> 16.2 | C75: ='16'!C154 -> Abgrenzung zu den geringwertigen Wirtschaftgütern
B76: ='16'!B173 -> 16.3 | C76: ='16'!C173 -> Instandhaltung und Investition
B77: ='16'!B185 -> 16.4 | C77: ='16'!C185 -> Aktivierte Eigenleistungen
B78: ='16'!B258 -> 16.5 | C78: ='16'!C258 -> Abgang / Verkauf von gebrauchten Anlagegütern
B79: ='16'!B394 -> 16.6 | C79: ='16'!C394 -> Anlagenkauf mit „Inzahlunggabe“ gebrauchter Anlagen
B80: ='17'!B4 -> 17 | C80: ='17'!C4 -> Steuern im Unternehmen
B81: ='18'!B4 -> 18 | C81: ='18'!C4 -> Bestandsveränderungen an unfertigen und fertigen Erzeugnissen
B82: ='19'!B5 -> 19 | C82: ='19'!C5 -> Zeitliche Abgrenzung
B83: ='19'!B6 -> 19.1 | C83: ='19'!C6 -> Vier Formen von Rechnungsabgrenzungsposten
B84: ='19'!B27 -> 19.2 | C84: ='19'!C27 -> Verbuchung von Rechnungsabgrenzungsposten (RAP)
B85: ='19'!B44 -> 19.3 | C85: ='19'!C44 -> Übungsfälle zur Abgrenzung sonstiger Erträge / Aufwendungen
B86: ='19'!B289 -> 19.4 | C86: ='19'!C289 -> Rückstellungen
B87: ='20'!_Toc440802779 -> 20 | C87: ='20'!C5 -> Wertberichtigung von Forderungen
B88: ='20'!B7 -> 20.1 | C88: ='20'!C7 -> Bewertung von Forderungen
B89: ='20'!B30 -> 20.2 | C89: ='20'!C30 -> Übung zu Forderungsausfällen
B90: ='21 Übungen'!B2 -> 21 | C90: ='21 Übungen'!C2 -> Übungsaufgaben aus ehemaligen Klausuren
C91: ='9'!C114 -> 0
C92: ='9'!C135 -> 0
C93: ='6'!C77:G77 -> 0
C94: ='5'!C83:D83 -> 0

Sheet 1
A2: =Inhalt!A51+1 -> 3
B4: 1 | C4: Grundlagen der kaufmännischen Rechnungslegung
B6: 1.1 | C6: Adressaten der kaufmännischen Rechnungslegung
B8: Rechnungslegung ist der Oberbegriff für die Gesamtheit der Aufzeichnungspflichten, mit denen internen und externen Interessenten Rechenschaft über die Geschäftsvorfälle und die Lage des Unternehmens gegeben wird.
B10: Externe Interessenten können sein: - Banken - Gläubiger (z. B. Lieferanten) - Behörden, insbesondere das Finanzamt - Kapitalanleger (z. B. Aktionäre) Interne Interessenten sind insbesondere - die Geschäftsleitung - Controller und interne Revision - Mitarbeiter, insbesondere leitende Angestellte - (Kapital-) Eigentümer
B12: 1.2 | C12: Aufgaben des Rechnungswesens
B14: Das Rechnungswesen hat die Aufgabe, das gesamte Unternehmensgeschehen zahlenmäßig zu erfassen, zu überwachen und auszuwerten. Man unterscheidet grundsätzlich:
B16: 1. Dokumentationsaufgabe: Aufzeichnung sämtlicher Geschäftsfälle anhand von Belegen: zeitnah, zeitrichtig, geordnet, lückenlos, wahr und fortlaufend. 2. Rechenschaftslegungs- und Informationsaufgabe: Periodenweise (jährliche) Berichterstattung an Unternehmenseigner, Behörden, Gläubiger (Kreditgeber) usw. über die Vermögens-, Finanz- und Ertragslage (Jahresabschluss). 3. Kontrollaufgabe: Aussagen über Produktivität, Wirtschaftlichkeit und Rentabilität des Unternehmens, seiner Betriebe und anderen Teilsysteme (z. B. Kostenstellen). 4. Dispositionsaufgabe: Bereitstellung von Zahlenmaterial als Grundlage für unternehmerische Entscheidungen, z. B. über Investitionen, Märkte, Produktsortimente oder Absatzpolitiken.
B18: 1.3 | C18: Gliederung des Rechnungswesens
B20: Buchführung | M20: Kosten- und Leistungsrechnung | X20: Statistik | AI20: Planrechnung
B22: unternehmensbezogene | M22: betriebsbezogene | X22: Vergleichsrechnung | AI22: Vorschaurechnung
B23: Zeitraum- und Zeitpunkt- | M23: Stück- und Gesamt- | X23: (Zeit-, Unternehmens- | AI23: zu Investition, Einkauf,
B24: rechnung | M24: rechnung | X24: und Betriebsvergleich) | AI24: Absatz, Produktion usw.
B26: Die (Finanz-) Buchführung ist eine unternehmensbezogene Zeitraum- und Zeitpunktrechnung. Die zeitraumbezogene Rechnungslegung wird in der Gewinn- und Verlustrechnung (GuV) und die zeitpunktbezogene Rechnungslegung in der Bilanz abgebildet.
A28: =A2+1 -> 4
B30: Damit die Finanzverwaltung ihrer Aufgabe, Steuern gleichmäßig festzusetzen und zu erheben nachkommen kann, ist der Steuerpflichtige zur Mitwirkung bei der Ermittlung des Sachverhalts verpflichtet. Hierfür hat er unter anderem Aufzeichnungs- und Buchführungspflichten nachzukommen, die sich aus dem Handelsrecht, aus dem Steuerrecht und aus sonstigen Rechtsvorschriften ergeben können.
B32: Aufzeichnungen sind alle dauerhaft verkörperten Erklärungen über Geschäftsvorfälle in Schriftform oder auf Medien mit Schriftersatzfunktion (z.B. CD, DVD, Disketten, EDV-Magnetbänder). Unter dem Begriff Buchführung versteht man die geordnete Dokumentation des betrieblichen Geschehens durch „Bücher”, die mindestens in einem Grundbuch eine zeitnahe und geordnete Erfassung sämtlicher Geschäftsvorfälle gewährleistet und die turnusmässige Erstellung eines Inventars beinhaltet.
B34: Hierdurch ist gewährleistet, dass die Buchführung den Stand (Inventur) und die Veränderungen („laufende Buchführung”) des Anlage - und Umlaufvermögens, des Eigen- und Fremdkapitals sowie der Aufwendungen und Erträge abbildet. Auf der Grundlage der Buchführung haben Kaufleute zum Schluss des Wirtschaftsjahres den Jahresabschluss zu erstellen, der aus der Bilanz und der Gewinn- und Verlustrechnung besteht und bei Kapitalgesellschaften bzw. bestimmten Personengesellschaften zusätzlich um einen Anhang und ggf. einen Lagebericht zu erweitern ist. Bücher und Aufzeichnungen, die den Vorschriften der §§ 140 bis 148 AO entsprechen, sind der Besteuerung zu Grunde zu legen, soweit nach den Umständen kein Anlass besteht, ihre sachliche Richtigkeit zu beanstanden (sog. Beweiskraft).

Sheet 2
A2: ='1'!A28:BA28+1 -> 5
B4: 2 | C4: Rechtsgrundlagen des Rechnungswesens
B6: Die Buchhaltung ist stark reglementiert und von zahlreichen Rechtsquellen geregelt.
B8: Hierbei ist die Gesamtheit aller Rechtsnormen, die die Rechnungslegung regeln, von Bedeutung. Man unterscheidet dabei kodifiziertes Recht (Gesetze), Rechtsprechung und Gewohnheitsrecht. Alle drei Arten von Rechtsnormen kommen im Rechnungswesen vor:
B10: 2.1 | C10: Gesetzliche Grundlagen
C12: Handelsrecht | Y12: Steuerrecht
C14: Aktiengesetz (AktG) | Y14: EStG
C15: GmbHG | Y15: KStG
C16: GenG | Y16: UStG, GewStG
C17: PublG | Y17: BewG
C18: HGB | Y18: AO
C19: und allgemeine GoB | Y19: Verordnungen, EU-Recht
B21: 2.1.1 | C21: Handelsrechtliche Vorschriften
B23: Die handelsrechtlichen Vorschriften sind im 3. Buch des Handelsgesetzbuches (= HGB) in folgende Teile geregelt: 1. §§ 238–263 HGB: Grundlegende Vorschriften für alle Kaufleute 2. §§ 264–335b HGB: Zusätzliche Vorschriften für Kapitalgesellschaften 3. §§ 336–339 HGB: Zusätzliche Vorschriften für eingetragene Genossenschaften und weitere
B25: Die für die Buchführung wichtigsten Vorschriften finden sich in den §§ 238 bis 263 sowie in den §§ 264 bis 335b HGB.
B27: Rechtsformenspezifische Vorschriften finden sich u. a. auch in den gesellschaftsrechtlichen Regelungen des Handelsgesetzbuches für die offene Handelsgesellschaft (OHG) und die Kommanditgesellschaft (KG), ferner für die Aktiengesellschaft im Aktiengesetz (AktG) sowie für die GmbH im GmbHG.
B29: Allgemein kann man sagen, dass für Kapitalgesellschaften wesentlich detailliertere und spezifischere Regelungen gelten als für Einzelunternehmen und Personengesellschaften. Dies kann insbesondere mit dem viel größeren volkswirtschaftlichen Risiko begründet werden, das in Kapitalgesellschaften präsent ist, insbesondere bei Insolvenz (Gläubigerschutz).
A31: =A2+1 -> 6
B33: Beispiel: Jeder buchführungspflichtige Kaufmann ist verpflichtet, einen handelsrechtlichen Jahresabschluss aufzustellen (§ 242 Abs. 1 HGB). Dieser hat nach § 246 Abs. 1 Satz 1 HGB sämtliche Vermögensgegenstände, Schulden, Rechnungsabgrenzungen, Aufwendungen und Erträge zu enthalten. In der Bilanz müssen das Anlage- und das Umlaufvermögen, das Eigen- und Fremdkapital und die Rechnungsabgrenzungen gesondert ausgewiesen und „hinreichend aufgegliedert“ werden (siehe hierzu § 247 Abs. 1 HGB). Wie weit diese „hinreichende Aufgliederung“ geht, ist jedoch nirgendwo geregelt. Eine Kapitalgesellschaft hingegen ist hinsichtlich der Inhalte der Bilanz an das Gliederungsschema des § 266 Abs. 2 und 3 HGB gebunden. Während den Personengesellschaften vergleichsweise weitreichende Freiheiten in Art und Inhalt der Bilanz gewährt werden, sind Kapitalgesellschaften an sehr detaillierte Vorschriften gebunden.
B35: Größenspezifische Vorschriften sind insbesondere im Handelsgesetzbuch (z. B. § 267 HGB) und im Publizitätsgesetz enthalten. Die Größenklassenregelung ist insbesondere für den Grad der Differenziertheit des Ausweises des Jahresabschlusses bedeutungsvoll. Kleine und mittelgroße Gesellschaften haben Erleichterungen hinsichtlich Zahl und Umfang der im Jahresabschluss offenzulegenden Tatsachen (u. a. §§ 266 Abs. 1 Satz 3 i. V. m. § 327 Nr. 1 HGB oder § 288 HGB). Alte Vorschriften, wonach nur große Gesellschaften im Bundesanzeiger publizieren müssen, sind jedoch inzwischen abgeschafft worden: jetzt müssen alle im Unternehmensregister elektronisch offenlegen. https://www.ebundesanzeiger.de
B37: Eine Besonderheit gilt für Kapitalgesellschaften und Co. Durch die Neufassung insbesondere der größenspezifischen Offenlegungsvorschriften gelten die speziellen Regelungen für Kapitalgesellschaften ab 2000 indirekt auch für bestimmte Personengesellschaften, die mindestens einen unbeschränkt haftenden Gesellschafter haben, der eine Kapitalgesellschaft ist. Das betrifft insbesondere Mischgesellschaftsformen wie die GmbH & Co KG.
B39: 2.1.2 | C39: Steuerrechtliche Vorschriften
B41: Das grundlegende steuerliche Regelwerk ist die Abgabenordnung (AO), die alle grundsätzlichen Regelungen zum Steuerschuldrecht, zum Steuerverfahren und zur Bestrafung von Steuersündern enthält. In einer Anzahl von Fällen sind insbesondere Verfahrensdetails zur Erreichung konkreter steuerlicher Einzelziele relevant. Einzelne Steuergesetze betreffen in der Regel jeweils einzelne Steuerarten, d. h. zu jeder Steuerart gibt es ein Steuergesetz. Zu den wichtigsten gehören das Einkommensteuergesetz (EStG), das Körperschaftsteuergesetz (KStG), das Bewertungsgesetz (BewG), das Umsatzsteuergesetz (UStG), das Gewerbesteuergesetz (GewStG) und eine Vielzahl weiterer Gesetze.

Sheet 3
A2: ='2'!A31:BA31+1 -> 7
B4: 3 | C4: Die Grundsätze der ordnungsgemäßen Buchführung ("GoB")
B6: Die "GoB" sind ein mehr oder weniger unbestimmter Rechtsbegriff (Generalklausel), der die Gesamtheit der kodifizierten und nichtkodifizierten Vorschriften und Normen umschreibt, die für die Buchführung, die Jahresabschlussgliederung, den Ansatz und die Bewertung im handelsrechtlichen Jahresabschluss maßgebend sind. Man unterscheidet zwei Gruppen von „GoB“:
B8: 1. Grundsätze, die der Dokumentation dienen sind der Grundsatz der Übersichtlichkeit, der Grundsatz der Richtigkeit, der Grundsatz der Vollständigkeit und der Grundsatz der Ordnungsmäßigkeit des Belegwesens;
B10: 2. Bilanzierungsgrundsätze sind der Grundsatz der Klarheit, der Grundsatz der Wahrheit, der Grundsatz der Kontinuität und der Grundsatz der Vorsicht.
B12: 3.1 | C12: Dokumentationsgrundsätze
B14: Grundsatz der Übersichtlichkeit: Dieser verlangt eine solche Beschaffenheit der Buchführung, dass sie einem sachverständigen Dritten innerhalb angemessener Zeit einen Überblick über die Geschäftsvorfälle und über die Lage des Unternehmens vermitteln kann. Die Geschäftsvorfälle müssen sich in ihrer Entstehung und Abwicklung verfolgen lassen (§ 238 Abs. 1 Satz 2 HGB, § 145 AO). Darüber hinaus fordert § 243 Abs. 2 HGB, dass der Jahresabschluss klar und übersichtlich sein muß.
B16: Grundsatz der Richtigkeit: Dieser verlangt richtige Verbuchung und Aufzeichnung von Geschäftsvorfällen (§ 239 Abs. 2 HGB).
B18: Grundsatz der Vollständigkeit: Dieser gebietet, sämtliche Vermögensgegenstände, Schulden, Rechnungsabgrenzungsposten, Aufwendungen und Erträge in den Jahresabschluss einzubeziehen, soweit gesetzlich nichts anderes bestimmt ist (§ 246 Abs. 1 HGB). Dabei dürfen Bilanzierungswahlrechte und Bilanzierungsverbote nur im gesetzlich genau umgrenzten Rahmen wahrgenommen werden. Es gilt das allgemeine Verrechnungsverbot (Saldierungsverbot), wonach keine Verrechnung von Posten der Aktivseite mit Posten der Passivseite, von Aufwendungen mit Erträgen, von Grundstücksrechten mit Grundstückslasten zulässig ist (§ 246 Abs. 2 HGB). Darüber hinaus sind alle Geschäftsvorfälle einzeln aufzuzeichnen (und grundsätzlich auch einzeln zu bewerten).
A21: =A2+1 -> 8
B23: Grundsatz der Ordnungsmäßigkeit des Belegwesens: Damit sich die Geschäftsvorfälle in ihrer Entstehung und Abwicklung verfolgen lassen (§ 238 Abs. 1 Satz 3 HGB), müssen bei der Belegbehandlung folgende Regeln beachtet werden:
B25: 1. Belegzwang für Buchungen: Keine Buchung ohne Beleg. 2. Rechnerische Richtigkeit des Beleginhalts. 3. Datumspflicht von Buchungsbelegen: Jeder Beleg ist mit einem Ausstellungsdatum zu versehen. 4. Unmißverständlicher Belegtext bei hinreichender Erklärung des Geschäftsvorfalls: Belege müssen in einer lebenden Sprache gehalten werden (§ 239 Abs. 1 HGB), Aufstellung des Jahresabschlusses dagegen in deutscher Sprache (§244 HGB). Bedeutung von Abkürzungen, Ziffern, Buchstaben und Symbolen muss eindeutig festliegen (§ 239 Abs. 1 Satz 2 HGB). 5. Gegenseitiges Verweisprinzip: Von der Buchung zum Beleg, vom Beleg zur Buchung. 6. Korrekturverbot: Keine nachträgliche Veränderung einer Eintragung oder Aufzeichnung, so dass der ursprüngliche Inhalt nicht mehr feststellbar ist (§ 239 Abs. 3 Satz 1 HGB). Auch keine Vornahme solcher Änderungen, deren Beschaffenheit es ungewiß läßt, ob sie ursprünglich oder erst später gemacht worden sind (§ 239 Abs. 3 Satz 2 HGB). Pflicht zum Storno fehlerhafter Eintragungen, Aufzeichnungen und Buchungen (der fehlerhafte Vorgang ist aus Gründen der Klarheit und Übersichtlichkeit offen rückgängig zu machen).
B26: ergänzend: Bundesministerium der Finanzen (IV A 4 - S-0316 / 13 / 10003); Schreiben (koordinierter Ländererlass) vom 14.11.2014
B28: 3.2 | C28: Bilanzierungsgrundsätze
B30: Grundsatz der Klarheit: Dieser schreibt vor, den Jahresabschluss klar und übersichtlich aufzustellen (§ 243 Abs. 2 HGB). Er dokumentiert sich u. a. in den Vorschriften einer Postengliederung nach vorgeschriebener Reihenfolge (§ 265 Abs. 1 HGB), in der Verpflichtung zu zutreffender und eindeutiger Postenbezeichnung, im Verrechnungsverbot (§ 246 Abs. 2 HGB), in der Pflicht zur Einhaltung der vorgeschriebenen Ausweisformen Kontoform für Bilanz (§ 266 Abs. 1 HGB) Staffelform für GuV-Rechnung (§ 275 Abs. 1 HGB) sowie in der Pflicht zur Beachtung des Grundsatzes der Wesentlichkeit (z. B. § 265 Abs. 3 HGB).
B32: Grundsatz der Wahrheit: Dieser bezieht sich auf die materielle, inhaltliche Ordnungsmäßigkeit in bezug auf Ansatz- und Bewertungsfragen, umfaßt den Vollständigkeitsgrundsatz (§ 246 Abs. 1 HGB), das Verbot der Täuschung oder Irreführung Dritter (d. h., Pflicht zur Orientierung an der Generalklausel nach § 264 Abs. 2 HGB) und die Pflicht zu materiell richtiger Verbuchung von Geschäftsvorfällen und Gestaltung des Jahresabschlusses.
B34: Grundsatz der Kontinuität: Dieser gliedert sich in Bilanzidentität (die die Übereinstimmung der Eröffnungsbilanz mit der Schlussbilanz des Vorjahres hinsichtlich Gliederung, Ansatz und Bewertung fordert), formelle Kontinuität (welche die Beibehaltung von Gliederung und Postenbezeichnung im Zeitablauf verlangt) und in materielle Kontinuität (welche auf die Beibehaltung des Wertzusammenhangs durch Wertfortführung im Zeitablauf zielt).
A37: =A21+1 -> 9
B39: Grundsatz der Vorsicht: Dieses auch als Vorsichtsprinzip bzw. Grundsatz der kaufmännischen Vorsicht bekannte Grundprinzip (§ 252 Abs. 1 Nr. 4 HGB) ist auch nach der Bilanzrechtsmodernisierung noch bedeutsam. Nach dieser Grundregel hat sich ein Kaufmann bei Bilanzierung im Zweifel ärmer darzustellen, als er ist. Oberbegriff für eine Vielzahl von Einzelgrundsätzen und Vorschriften, die darauf abzielen, dass der Ausweis im Jahresabschluss nicht zu optimistisch ausfällt, sondern allen erkennbaren Risiken und Gefahren Rechnung trägt. Das Vorsichtsprinzip wird überall dort zur Leitlinie, wo aufgrund unvollständiger Information oder der Unsicherheit künftiger Ereignisse Ermessensspielräume bestehen. In diesen Fällen bedeutet das Vorsichtsprinzip, dass alle Gesichtspunkte, die für die Bewertung von Bedeutung sein können, sorgfältig und vollständig zu erfassen sind, insbesondere solche, die eingetretene Verluste erkennen lassen oder die auf bestehende Risiken hindeuten.
B41: Der Grundsatz der Vorsicht verlangt nicht, dass von der verlustbringendsten Annahme auszugehen ist, allerdings sollte von mehreren Schätzungsalternativen eine etwas pessimistischere als die wahrscheinlichste gewählt werden. Richtschnur und Grenze für das Vorsichtsprinzip ist die vernünftige kaufmännische Beurteilung, die fordert, dass für eine Maßnahme sachliche Gründe vorliegen müssen. Die willkürliche Bildung stiller Rücklagen (stille Reserven) mit dem Ziel, andere Gesellschafter zu benachteiligen und den Informationsgehalt des Jahresabschlusses zu vermindern, ist durch den Grundsatz der Vorsicht nicht gedeckt. Das Vorsichtsprinzip kommt insbesondere bei der Bemessung der Abschreibungen, der Bewertung des Vorratsvermögens (Vorräte) und der Forderungen sowie der Dotierung der Rückstellungen zum Tragen.
B43: 3.3 | C43: Ordnungsgemäße computergestützte Buchhaltung
B45: Die Ordnungsmäßigkeit einer Datenverarbeitunggestützten Buchführung ist grundsätzlich nach den gleichen Prinzipien zu beurteilen wie die einer manuell erstellten Buchführung. Mit den GoBs sollen die allgemeinen GoB – der Maßstab für die Ordnungsmäßigkeit der Buchführung – für den Bereich der DV-gestützten Buchführung präzisiert werden. Zu beachten sind neben den handelsrechtlichen Grundsätzen ordnungsmäßiger Buchführung (vgl. hierzu insbesondere §§ 238, 257 und 261 HGB) die §§ 145 bis 147 AO. Auch an die DV-gestützte Buchführung wird die Anforderung gestellt, dass Geschäftsvorfälle retrograd und progressiv prüfbar bleiben müssen. Zur Erfüllung der Belegfunktionen sind deshalb Angaben zur Kontierung, zum Ordnungskriterium für die Ablage und zum Buchungsdatum auf dem Beleg erforderlich. Die Reihenfolge der Buchungen ist zu dokumentieren. Die ordnungsgemäße Anwendung des jeweiligen Verfahrens ist zu belegen. Der Nachweis der Durchführung der in dem jeweiligen Verfahren vorgesehenen Kontrollen ist u. a. durch Programmprotokolle sowie durch die Verfahrensdokumentation zu erbringen. Detailvorschriften der Grundsätze ordnungsgemäßer Buchführung bei computergestützten Verfahren umfassen Beleg-, Journal- und Kontenfunktion, Buchung, Internes Kontrollsystem, Datensicherheit, Dokumentation und Prüfbarkeit, Aufbewahrungsfristen, Wiedergabe der auf Datenträgern geführten Unterlagen und Verantwortlichkeit.

Sheet 4
A2: ='3'!A37:BA37+1 -> 10
B4: 4 | C4: Aufzeichnungs- und Buchführungspflichten
B6: Damit insbesondere die Finanzverwaltung ihrer Aufgabe, Steuern gleichmäßig festzusetzen und zu erheben nachkommen kann, ist der Steuerpflichtige zur Mitwirkung bei der Ermittlung des Sachverhalts verpflichtet. Hierfür hat er unter anderem Aufzeichnungs- und Buchführungspflichten nachzukommen, die sich aus dem Handelsrecht, aus dem Steuerrecht und aus sonstigen Rechtsvorschriften ergeben können.
B8: 4.1 | C8: Buchführungspflicht der Kaufleute nach Handelsrecht
B10: Gemäß § 238 Abs. 1 HGB ist jeder Kaufmann verpflichtet, Bücher zu führen und in diesen seine Handelsgeschäfte und die Lage seines Vermögens nach den Grundsätzen ordnungsmäßiger Buchführung ersichtlich zu machen. Seit der Neuregelung des Kaufmannsbegriffes zum 1. Juli 1998 gelten diese Vorschriften für alle eingetragenen Kaufleute, d. h., für alle Gewerbetreibende. Als Kaufleute im Sinne der Buchführungsvorschriften sind anzusehen:
B12: 1. Nach § 1 HGB nunmehr seit 1. Juli 1998 alle Gewerbetreibende, wobei die alte branchenbezogene Definition abgeschafft wurde; 2. Land- und Forstwirte, die nach § 3 Abs. 2 HGB die Eintragung in das Handelsregister wegen ihres Geschäftsumfanges herbeigeführt haben (sogenannter „Kannkaufmann“); 3. Handelsgesellschaften im Sinne des § 6 Abs. 1 HGB, d. h., alle Kapitalgesellschaften; 4. Eingetragene Genossenschaften (§ 17 Abs. 2 GenG); 5. Versicherungsunternehmen, die nicht kleinere Vereine sind (§53 Abs. 1 VAG).
B14: Die handelsrechtliche Buchführungspflicht trifft jedoch nur Kaufleute, deren Gewerbebetrieb nach Art und Umfang eine kaufmännische Einrichtung erfordert (§ 1 Abs. 2 HGB). Es handelt sich um einen unbestimmten Rechtsbegriff (= qualitative/quantitative Kriterien: Kontokorrentverkehr, Kaufmännische Betriebsführung, Vielzahl zu erbringender Leistungen, Vielzahl von Geschäftsverbindungen, Bilanzsumme, Umsatzerlöse, Zahl der Arbeitnehmer, Zahl der Betriebsstätten etc.). Durch das Bilanzrechtsmodernisierungsgesetz (BilMoG) wurde ab 2009/2010 ein neuer § 241a HGB mit eigenständigen handelsrechtlichen Grenzwerten eingeführt. Nach dieser Neuregelung brauchen Einzelkaufleute (nicht Personengesellschaften), die in zwei aufeinanderfolgenden Geschäftsjahren
B16: 1) 600.000 Euro Umsatzerlöse und 2) 60.000 Euro Jahresüberschuss/Gewinn
B18: nicht überschreiten, die §§ 238 bis 241 HGB nicht anzuwenden. Die Buchführungspflicht (§ 238 HGB) und die Pflicht zur Inventur und zur Führung eines Inventars (§§ 239, 240 HGB) sowie die Inventurvereinfachungsverfahren (§ 241 HGB) entfallen somit dann.
B20: Die Regel ist zudem „nur“ eine rechtsformenspezifische Erleichterung; Kapitalgesellschaften sind hiervon nicht betroffen.
A23: =A2+1 -> 11
B25: 4.2 | C25: Steuerrechtliche Buchführungspflicht
B27: Die steuerliche Buchführungspflicht unterscheidet nicht nach Tätigkeit oder der Rechtsform, sondern nach dem dabei erzielten Erfolg. Allerdings beschränkt sich auch die steuerrechtliche Buchführungspflicht auf Gewerbetreibende. Anders als das Handelsrecht unterscheidet das Steuerrecht aber zwischen „normalem“ Gewerbebetrieb und der Land- und Forstwirtschaft. Nach § 141 AO ist buchführungspflichtig, wer
B29: 1. pro Jahr über 600.000 Euro Umsatz macht oder 2. selbstgenutzte landwirtschaftliche Flächen im Wert von über 25.000 Euro (ab 2004) besitzt, festzustellen nach Bewertungsgesetz, oder 3. pro Jahr 60.000 (50.000 Euro (2008 bis 2015) bzw. 30.000 Euro (2004 bis 2007)) Gewinn aus Gewerbebetrieb oder Land- und Fortwirtschaft erzielt.
B31: Bei der steuerlichen Buchführungspflicht wird ferner die abgeleitete von der originären Buchführungspflicht unterschieden. Die abgeleitete (derivative) Buchführungspflicht ergibt sich aus § 140 AO: Wer nach anderen als den Steuergesetzen Bücher und Aufzeichnungen zu führen hat, die für die Besteuerung von Bedeutung sind, hat die damit auferlegten Verpflichtungen auch im Interesse der Besteuerung zu erfüllen. Daneben beschreibt § 141 Abs. 1 AO eine originäre steuerliche Buchführungspflicht für gewerbliche Unternehmen (Gewerbebetriebe) sowie Land- und Forstwirte, die bestimmte Größenmerkmale erfüllen.
B33: 4.3 | C33: Weitere Aufzeichnungspflichten
B35: Gesonderte steuerliche Aufzeichnungspflichten, die an sich keine eigentliche Buchführungspflicht sind, die aber von der Buchführung wahrgenommen werden, bestehen hinsichtlich Warenein- und -ausgang (Führung des Wareneingangsbuch und Warenausgangsbuch, §§ 143, 144 AO), aufgrund von umsatzsteuerlichen Tatbeständen (§ 22 UStG, §§ 63 ff. UStDV), zur Berücksichtigung bestimmter Betriebsausgaben bei der Gewinnermittlung, z. B. Geschenke, Bewirtungsaufwendungen (§ 4 Abs. 5 und Abs. 7 EStG), für Arbeitnehmerdaten auf dem Lohnkonto (§ 41 EStG, § 4 LStDV), für Anbauverzeichnisse bei Land- und Forstwirten (§ 142 AO).
B37: EXKURS: In einer Vielzahl außersteuerlicher Gesetze und Rechtsverordnungen sind Pflichten zur Führung bestimmter Bücher und Aufzeichnungen vorgesehen, die als sog. abgeleitete Aufzeichnungspflichten auch für die Besteuerung zu erfüllen sind. Beispielhaft können genannt werden: ■ Altenheime, Altenwohn- und Pflegeheime (Aufzeichnungen nach dem HeimG), ■ Apotheken (Herstellungs- und Prüfungsbücher), ■ Handelsmakler (Tagebücher), ■ Krankenhäuser( Bücher), ■ Lohnsteuerhilfevereine (Aufzeichnungen über Einnahmen und Ausgaben), ■ Spielbanken (Identifizierungs- und Aufzeichnungspflichten), ■ Hersteller von Wein (Wein- und Analysebücher).

Sheet Übung 1-4
B2: 1 - 4 | C2: Übungsaufgaben: Grundlagen der Buchführung
B4: 1. Nennen Sie die vier Bestandteile des kaufmännischen Rechnungswesens! 2. Nennen Sie mindestens drei Aufgaben, die das kaufmännische Rechnungswesen erfüllen soll! 3. Zählen Sie vier externe und vier interne Interessenten an den Daten der Buchführung auf! 4. Nennen Sie zwei Fälle, in denen Gewohnheitsrecht für die Buchführungspraxis bedeutsam ist! 5. In § 267 HGB sind großenspezifische Vorschriften gegeben; diese dienen der Staffelung der Offenlegungspflichten. Große Unternehmen müssen dabei mehr Daten offenlegen und dies schneller tun. Welchen Grund könnte diese Regelung haben? 6. Nennen Sie jeweils vier Dokumentations- und vier Bilanzierungsgrundsätze! 7. Welche Anforderungen stellen Sie an ein Datenbanksystem, das für die Buchhaltung verwendet werden soll? Nennen Sie mindestens drei verschiedene Anforderungen an eine solche Software! 8. Bitte bestimmen Sie, ob es sich in den folgenden Fällen um Kaufleute handelt. Begründen Sie Ihre Ansicht: 8.1 Arzt, 8.2 Zahntechniker, 8.3 Rechtsanwalt, 8.4 Dozent, der zugleich auch ein Buch vertreibt, 8.5 Hotelier, 8.6 Maschinenbaubetrieb (Rechtsform GmbH), 8.7 Handwerksbetrieb, 8.8 Landwirtschaftlicher Familienbetrieb
B5: 9. Sind die folgenden Personen bzw. Organisationen handelsrechtlich buchführungspflichtig? Bitte begründen Sie Ihre Ansicht! 9.1. Hotelier, 400 Zimmer, über 600.000 € Umsatz 9.2. Arzt, Gewinn über 200.000 € pro Jahr 9.3. Der bekannte Dozent, wenn er mit seinem Buch pro Monat knapp unter 2.000 € Gewinn erzielt und einen Umsatz von ca. 50.000 € pro Jahr erreicht, und seine Umsätze aus Lehrtätigkeit nochmal weitere 50.000 € pro Jahr betragen 9.4. Der Handwerker, der einen Umsatz von 150.000 € pro Jahr und einen Gewinn von 24.000 € pro Jahr erzielt 9.5. Der Handwerker aus der vorstehenden Aufgabe, wenn sein jährlicher Gewinn auf 80.000 € ansteigt 9.6. Ein Landwirt, dessen Gewinn 20.000 € pro Jahr erreicht und dessen landwirtschaftliche Fläche 35.000 € wert ist 9.7. Der Landwirt aus der vorstehenden Aufgabe, wenn sein Gewinn auf 60.000 € steigt
B7: 1 - 4 | C7: Lösungen: Grundlagen der Buchführung
B9: 1. Buchführung, Kosten- und Leistungsrechnung, Statistik (Betriebsstatistik), Planrechnung (Budgetierung) 2. Dokumentation, Rechenschaftslegung, Information, Kontrolle, Disposition 3. Externe: Banken, Finanzamt, Behörden, Kapitalanleger, Stellenbewerber, Kunden; Interne: Geschäftsführung, Controller, Revisoren, Mitarbeiter, Kapitaleigentümer 4. Handelsbräuche nach § 346 HGB, Treu und Glauben nach §157 BGB, Buchungssätze mit „Soll“ und „Haben“, Zahlreiche Grundsätze im Rechnungswesen, soweit diese nicht kodifiziert sind 5. Großunternehmen sollen schärferen Vorschriften unterliegen, um die mit ihnen verbundenen Risiken (Arbeitsplätze, Kapitalmarkt) besser kontrollieren und damit minimieren zu können. 6. Dokumentation: Übersichtlichkeit, Richtigkeit, Vollständigkeit, Ordnung des Belegwesens; Bilanzierung: Klarheit, Wahrheit, Kontinuität, Vorsicht.
B10: 7. Es muß den GoB genügen, d. h. die buchungspflichtigen Geschäftsvorfälle müssen richtig, vollständig und zeitgerecht erfaßt sein sowie sich in ihrer Entstehung und Abwicklung verfolgen lassen (Beleg- und Journalfunktion), die Geschäftsvorfälle sind so zu verarbeiten, dass sie geordnet darstellbar sind und ein Überblick über die Vermögens- und Ertragslage gewährleistet ist (Kontenfunktion), die Buchungen müssen einzeln und geordnet nach Konten und diese fortgeschrieben nach Kontensummen oder Salden sowie nach Abschlussposition dargestellt und jederzeit lesbar gemacht werden können, ein sachverständiger Dritter muss sich in dem jeweiligen Verfahren der Buchführung in angemessener Zeit zurechtfinden und sich einen Überblick über die Geschäftsvorfälle und die Lage des Unternehmens verschaffen können, das Verfahren der DV-Buchführung muss durch eine Verfahrensdokumentation, die sowohl die aktuellen als auch die historischen Verfahrensinhalte nachweist, verständlich und nachvollziehbar gemacht werden und es muss gewährleistet sein, dass das in der Dokumentation beschriebene Verfahren dem in der Praxis eingesetzten Programm (Version) voll entspricht (Programmidentität).
B11: 8. Prüfung der Kaufmannseigenschaft: 8.1. kein Kaufmann, wegen Freiberuflichkeit 8.2. Kaufmann, wegen Gewerblichkeit, ggfs. Kleinkaufmann - sonst Musskaufmann 8.3. kein Kaufmann, wegen Freiberuflichkeit 8.4. Kaufmann oder ggfs. Kleinkaufmann mit Vertrieb der Bücher, ansonsten kein Kaufmann wegen Freiberuflichkeit 8.5. Kaufmann, wegen Gewerblichkeit, ggfs. Kleinkaufmann - sonst Musskaufmann 8.6. Formkaufmann (wegen GmbH) 8.7. Kaufmann, wegen Gewerblichkeit, ggfs. Kleinkaufmann - sonst Musskaufmann 8.8. Kannkaufmann 9. Buchführungspflicht: 9.1. Ja, wegen Überschreitung der Umsatzgrenze 9.2. Nein, wegen Nichtgewerblichkeit 9.3. Nein, bei der Gewerbetätigkeit (Bücher) sind die Grenzwerte nicht überschritten und die Lehrtätigkeit ist kein Gewerbe und daher nicht buchführungspflichtig 9.4. Nein, Grenzwerte nicht überschritten 9.5. Ja, Gewinngrenze überschritten
B12: 9.6. Ja, Wert der landwirtschaftlichen Flächen sind überschritten 9.7. Ja, Gewinngrenze überschritten

Sheet 5
A2: ='4'!A23:BA23+1 -> 12
B4: 5 | C4: Organisation der Buchführung
B6: 5.1 | C6: Grund- und Hauptbuch
B8: Man unterscheidet zunächst in 1. Grundbuch mit zeitlicher Aufzeichnung aller Geschäftsfälle in Form von Buchungssätzen und 2. Hauptbuch mit sachlicher Ordnung aller Geschäftsfälle auf Konten. Bei elektronischer Buchhaltung muss nur das Grundbuch durch den Buchhalter durch die Eingabe von Buchungssätzen geführt werden; die Konten des Hauptbuches werden automatisch vom Programm geführt.
B10: 5.2 | C10: Nebenbuchhaltung (Nebenbücher)
B12: Ferner unterscheidet man 1. die Nebenbuchhaltungen, die spezielle buchhalterische Tatbestände und Informationen verarbeiten, z. B. Löhne und Gehälter, Wechsel, Anlagen. Diese leistet Zuarbeiten, die in der 2. Hauptbuchhaltung verarbeitet werden. Nur die Hauptbuchhaltung liefert dem Leser ein vollständiges Bild über die Geschäftsvorfälle und die Lage des Unternehmens.
B14: Die Belege für beide Bereiche der Buchhaltung sind geordnet gemäß den handels- und steuerrechtlichen Aufbewahrungsvorschriften aufzubewahren.
B16: Belege | S16: Nebenbücher
S17: je nach Bedarf
B20: Eingangsrechnungen | T20: Lohn-/Gehaltsbuch
B21: Ausgangsrechnungen | T21: Kassenbuch
B22: Bankkontoauszüge | O22: => | T22: Anlagenbuch/-gitter
B23: Kassenbelege | T23: Kontokorrentbuch
B24: Barquittungen | T24: Offene Posten Buch
B25: etc. | T25: Debitorenbuch
T26: Kreditorenbuch etc.
S28: Grundbuch (Journal) | AJ28: Hauptbuch
S29: Zeitliche Ordnung der | AJ29: sachliche Ordnung
S30: Buchungsaufzeichnungen | AJ30: der Buchungen
T32: Eröffnungsbuchungen | AL32: Bsp.
T33: laufende Buchungen
T34: vorbereitenden | AL34: A | AN34: Maschinen | AV34: P
T35: Abschlussbuchungen
T36: Jahresabschluss
A42: =A2+1 -> 13
B44: 5.3 | C44: Aufbewahrungspflichten
B46: Die Aufbewahrung war im Steuerrecht und im Handelsrecht übereinstimmend geregelt; durch die Neufassung des § 147 AO ergeben sich ab 2002 jedoch gravierende Änderungen. Kaufleute sind gemäß § 257 HGB und § 147 AO zunächst zur Aufbewahrung folgender Unterlagen verpflichtet:
B48: 1. Handelsbücher, Inventare, Eröffnungsbilanzen, Jahresabschlüsse, Lageberichte, Konzernabschlüsse, Konzernlageberichte sowie die zu ihrem Verständnis erforderlichen Arbeitsanweisungen und sonstigen Organisationsunterlagen, 2. Empfangene Handels- oder Geschäftsbriefe, 3. Wiedergaben der abgesandten Handels- oder Geschäftsbriefe, 4. Buchungsbelege, 5. sonstige Unterlagen, soweit sie für die Besteuerung von Bedeutung sind.
B50: Aufzubewahrende Unterlagen sind in systematisch und chronologisch (zeitlich) geordneter Weise bis zum Ende der Aufbewahrungsfrist so zu verwahren, dass sie „innerhalb angemessener Frist“ verfügbar sind. Ab 2002 müssen die aufzubewahrenden Aufzeichnungen während der Dauer der Aufbewahrungsfrist „jederzeit“, also nicht mehr innerhalb der „angemessenen Frist“ verfügbar sein und maschinell ausgewertet werden können (§ 147 Abs. 2 Nr. 2 AO).
B52: 5.4 | C52: Aufbewahrungsfristen
B54: 1. Einer 10jährigen Aufbewahrungsfrist unterliegen Handelsbücher bzw. Bücher und Aufzeichnungen, Inventare, Eröffnungsbilanzen, Jahres- und Konzernabschlüsse, Lageberichte und Konzernlageberichte, die zum Verständnis erforderlichen Arbeitsanweisungen und sonstige Organisationspapiere sowie ab 1999 auch die Belege.
B56: 2. Einer 6jährigen Aufbewahrungsfrist unterliegen empfangene Handels- oder Geschäftsbriefe, die Wiedergabe der abgesandten Handels- oder Geschäftsbriefe, sonstige Unterlagen, soweit sie für die Besteuerung von Bedeutung sind, sowie bis 1998 die Belege.
B58: Die Aufbewahrungsfrist beginnt mit dem Schluss des Kalenderjahres, in dem die letzte Eintragung in das Handelsbuch bzw. Buch gemacht, das Inventar aufgestellt, die Eröffnungsbilanz oder der Jahresabschluß festgestellt, der Konzernabschluss aufgestellt, der Handels- oder Geschäftsbrief empfangen oder abgesandt, der Buchungsbeleg entstanden, die Aufzeichnung vorgenommen oder die sonstigen Unterlagen entstanden sind (§ 257 HGB, § 147 AO).
A61: =A42+1 -> 14
B63: 5.5 | C63: Unterscheidung der Belege
B65: Allgemein kennt die Buchhaltung zwei Kategorien von Belegen: Fremdbelege sind Belege, die von einem anderen Wirtschaftsteilnehmer erstellt wurden, und uns im Geschäftsverkehr zugegangen sind:
B67: * Eingangsrechnungen * Quittungen * Bank- und Postbelege * Erhaltene Wechsel und Schecks * Erhaltene Begleitbriefe zu Schecks und Wechseln * Erhaltene sonstige Handelsbriefe * Gutschriftenanzeigen von Lieferanten * Steuerbescheide * Strafbescheide
B69: Eigenbelege sind alle Belege, die wir im Wirtschaftsverkehr mit anderen selbst hergestellt haben
B71: * Ausgangsrechnungen * Quittungsdurchschriften * Kopien eigener Wechsel und Schecks * Kopien abgesandter Handelsbriefe * Gutschriftenanzeigen an Kunden * Entnahmebelege * Lohn- und Gehaltslisten * Belege über Storno, Umbuchungen und Buchungsfehler * Ergebnisverwendungebeleg
B73: 5.6 | C73: Behandlung von Belegen nach den GoBs
B75: 1. Vorbereitende Arbeiten 1.1. Prüfung auf sachliche und rechnerische Richtigkeit 1.2. Bestimmung des Buchungsbeleges und Zusammenführung von Doppelbelegen (Vermeidung von Doppelbuchungen) 1.3. Ordnen nach Belegarten (Belegkategorisierung) 1.4. Fortlaufende und kategorienweise Nummerierung der Belege 1.5. Vorkontierung der Belege 2. Buchen der Belege 2.1. Buchung in Nebenbuchhaltung, wenn erforderlich 2.2. Buchung im Grundbuch 2.3. Buchung im Hauptbuch (in EDV-Buchhaltung automatisch aus Journalbuchung) 3. Ablage und Aufbewahren Fristen: § 257 Abs. 4 HGB
C76: Aktueller Hinweis:
B78: Verfahrensrecht | Verkürzung der Aufbewahrungsfrist und § 147 Absatz 3 AO (Bundesregierung): Die Bundesregierung hat sich zu der Frage geäußert, inwieweit § 147 Absatz 3 AO den Änderungen durch das Zweite Bürokratieentlastungsgesetz im Hinblick auf die Verkürzung der steuerlichen Aufbewahrungsfrist von Lieferscheinen entgegen steht, da diese auch Unterlagen mit Bedeutung für Steuern darstellen. Hierzu der Parlamentarische Staatssekretär Dr. Michael Meister: Durch das Zweite Bürokratieentlastungsgesetz wurden in § 147 Absatz 3 AO Neuregelungen zu Lieferscheinen, die keine Buchungsbelege nach § 147 Absatz 1 Nummer 4 Abgabenordnung sind, aufgenommen. Beim Empfang solcher Lieferscheine endet die Aufbewahrungsfrist mit dem Erhalt der Rechnung. Beim Versand solcher Lieferscheine, endet sie mit dem Versand der Rechnung. Damit müssen diejenigen Lieferscheine nicht mehr aufbewahrt werden, deren Inhalt eingangs- bzw. ausgangsseitig durch entsprechende Rechnungen nach § 14 Absatz 4 UStG dokumentiert ist. § 147 Absatz 3 AO steht daher der Verkürzung der steuerlichen Aufbewahrungsfrist von Lieferscheinen nicht entgegen. Quelle: BT-Drucks. 18/12750, Antwort auf die Frage 23 des Abgeordneten Richard Pitterle (DIE LINKE.) (il)

Sheet Übung 5
B2: 5 | C2: Übungsaufgaben: Belegwesen
B4: 1. Welchen grundlegenden Zweck erfüllen die Nebenbuchhaltungen? 2. Unterscheiden Sie das Grundbuch (auch Journal genannt) grundsätzlich vom Hauptbuch! 3. In welchen Buchungskreis geben Sie Daten am Computer ein? Grundbuch oder Journal oder beide? 4. Nennen Sie je drei Fremd- und je drei Eigenbelege! 5. Ihr Buchhalter wird die Durchschriften der Ausgangsrechnungen in den Müll und behauptet, dass es genüge, die Daten auf Datenträger zu speichern. Hierfür genüge insbesondere eine Datenbank mit Buchungssätzen. Hat er Recht? 6. Könnte mit den Eingangsrechnungen ebenso verfahren werden? 7. Wäre es zulässig, Belege per Mikrofilm zu speichern? 8. Bis zu welchem Tag müssen die folgenden Belege aufbewahrt werden? 8.1. Tankquittung vom 14.04.2003 8.2. Kopie der Rechnung an Kunden vom 15.05.2003 8.3. Jahresabschluss 2003, Stichtag 31.12.2003, aufgestellt am 13.02.2004 8.4. Datei mit Hauptbuch 2001 (letzter Buchungssatz vom 31.12.2001) 8.5. Software-Handbuch zu Buchführungssoftware, die im Frühjahr 2003 gekauft wurde 8.6. Verfahrensanweisungen des Qualitätsmanagements für die Buchhaltung aus 2002
B5: 8.7. Steuerbescheid zur Gewerbesteuer 2002 mit Festsetzung einer Nachzahlung vom 10.07.2003 8.8. Verbindliches Angebot eines Lieferanten vom 03.09.2003 8.9. Zahlungserinnerung an Kunden vom 19.06.2003 ohne Festsetzung von Mahngebühren, Zinsen oder Kosten 9. Bringen Sie die folgenden Schritte durch Sortieren in die richtige Reihenfolge: _ Nummerieren der Belege _ Buchung im Grundbuch _ Prüfung auf rechnerische+sachliche Richtigkeit _ Vorkontieren _ Buchung im Hauptbuch _ Einordnen in Belegablage + Aufbewahrung _ Zusammenführen von Doppelbelegen
B7: 5 | C7: Lösungen: Belegwesen
B9: 1. Daten bereitzustellen, die die Hauptbuchhaltung nicht enthält und auch nicht kennt, die aber zur Erstellung der Buchungen bedeutsam sind, etwa die vielen persönlichen Daten der Mitarbeiter, die für die Lohn- und Gehaltsabrechnung erforderlich sind. 2. Im Grundbuch ist der Buchungsstoff zeitlich, im Hauptbuch sachlich geordnet. Das Grundbuch enthält Buchungssätze, das Hauptbuch die Konten. 3. Nur im Grundbuch; die Konten des Hauptbuches werden automatisch vom System geführt. 4. Fremdbelege: Eingangsrechnungen, Quittungen, Bank- und Postbelege, Erhaltene Wechsel und Schecks, Erhaltene Begleitbriefe zu Schecks und Wechseln, Erhaltene sonstige Handelsbriefe, Gutschriftenanzeigen von Lieferanten, Steuerbescheide, Strafbescheide; Eigenbelege: Ausgangsrechnungen, Quittungsdurchschriften, Kopien eigener Wechsel und Schecks, Kopien abgesandter Handelsbriefe, Gutschriftenanzeigen an Kunden, Entnahmebelege, Lohn- und Gehaltslisten, Belege über Storno, Umbuchungen und Buchungsfehler, Ergebnisverwendungebeleg/-protokoll. 5. Ja, aber nur, wenn die Inhalte der Datenbank „inhaltlich“ mit den weggeworfenen Originalbelegen übereinstimmen (§ 257 Abs. 3 Nr. 1 HGB).
B10: 6. Nein, weil hier eine bildliche Übereinstimmung erforderlich ist (§ 257 Abs. 3 Nr. 1 HGB). Es wäre jedoch ausreichend, wenn die Datenbank Scans der Belege enthält und diese als Bilder wiedergeben kann. 7. Aus handelsrechtlicher Sicht ja; aus steuerrechtlicher Sicht nein, weil dies keine Auswertung durch die Finanzbehörden i.S.d. § 147 Abs. 6 AO zulässt. 8. Aufbewahrungsfristen: 8.1. 31.12.2013 8.2. 31.12.2013 8.3. 31.12.2013 8.4. 31.12.2011 8.5. 31.12.2013 (Organisationsunterlagen sind ebenfalls aufbewahrungspflichtig!); die Frist würde bei tatsächlich längerer Nutzung der Software ebenfalls länger sein, weil das Handbuch dann noch für die Besteuerung relevant wäre. 8.6. 31.12.2012 (wie vorstehend; es bestünde aber gar keine Aufbewahrungspflicht, wenn die Verfahrensanweisungen nicht die Buchhaltung betreffen bzw. nicht steuerlich relevant wären)
B11: 8.7. 31.12.2013 (das Belegdatum zählt, nicht der Veranlagungszeitraum der Steuer!) 8.8. 31.12.2009 (Angebote sind „Handelsbriefe“ im Sinne der §§ 257 HGB und 147 AO) 8.9. 31.12.2009 (Die Mahnung ist ein „Handelsbrief“, solange aus ihr keine Buchungen resultieren; wären Zinsen, Gebühren oder Kosten festgesetzt worden, so wäre die Mahnung ein Buchungsbeleg und die Frist daher 10 Jahre, also bis zum 31.12.2013) 9. Die richtige Reihenfolge ist: _ Prüfung auf rechnerische Richtigkeit _ Zusammenführen von Doppelbelegen _ Nummerieren der Belege _ Vorkontieren _ Buchung im Grundbuch _ Buchung im Hauptbuch _ Einordnen in Belegablage

Sheet 6
A2: ='5'!A61:BA61+1 -> 15
B4: 6 | C4: Inventur und Inventar
B6: 6.1 | C6: Das Inventar
B8: Unter einem Inventar versteht man eine detaillierte Zusammenstellung der am Bilanzstichtag im Jahresabschluss anzusetzenden Vermögensgegenstände und Schulden einer Unternehmung, und zwar nach Art, Menge und Wert. Der besondere Vorzug des Inventars gegenüber der Bilanz liegt in seinem bis ins einzelne gehenden Nachweis. Das Inventar folgt dabei der Staffelform und gliedert sich in
B10: 1. Vermögenswerte, 2. Schuldwerte sowie 3. Reinvermögen
B12: Die Vermögenswerte (unterteilt in Anlage- und Umlaufvermögen) gliedert man nach ihrer zeitlichen Bindung bzw. steigenden Liquidierbarkeit (beginnend mit Immobilien, endend mit Kassenbestand), die Schulden nach Fälligkeit bzw. Dringlichkeit der Zahlung (beginnend mit langfristigen, endend mit kurzfristigen Schulden).
A14: Beispiel für ein Inventar (vereinfacht):
A16: A. Anlagevermögen
B17: I. Sachanlagevermögen (Buchwerte)
C18: 1. Grundstück und Gebäude | AQ18: 100000
C19: 2. Fuhrpark | AQ19: 5000
C20: 3. Maschinen | AQ20: 20000
C21: 4. Betriebs- und Geschäftsausstattung | AQ21: 10000
A23: B. Umlaufvermögen
C24: 1. Roh-, Hilfs- und Betriebsstoffe | AQ24: 24000
C25: 2. Unfertige und fertige Erzeugnisse | AQ25: 6000
C26: 3. Forderungen aus Lieferungen und Leistungen | AQ26: 7000
C27: 4. Bank(guthaben) | AQ27: 2000
C28: 5. Kasse | AQ28: 1000
A30: = Summe des Vermögens | AW30: =SUM(AQ18:AV30) -> 175000
A32: C: Schulden/Verbindlichkeiten (Fremdkapital)
B34: I. Langfristige Schulden
C35: 1. Darlehen bei Sparkasse | AQ35: -60000
B38: II. kurzfristige Schulden
C39: 1. Verbindlichkeiten aus Lieferungen u. Leistungen | AQ39: -20000
A41: = Summe der Schulden | AW41: =SUM(AQ35:AV41) -> -80000
A43: Vermögen - Schulden = Eigenkapital bzw. Reinvermögen | AW43: =SUM(AW30:AZ41) -> 95000
B45: 6.2 | C45: Begriffsunterscheidung Inventar / Inventur
B47: Inventar (= Bestandsverzeichnis): ausführliches Bestandsverzeichnis des Vermögens und der Schulden
B49: Inventur (= Bestandsaufnahme): Art-, mengen- und wertmäßige Bestandsaufname des Vermögens und der Schulden
A52: =A2+1 -> 16
B54: 6.3 | C54: Die Inventur: grundlegende Definition
B56: Unter einer Inventur versteht man die tatsächliche Bestandsaufnahme des Vermögens und der Schulden zwecks Aufstellung des Inventars. Die Inventur ist bei Beginn oder Beendigung des Handelsgewerbes sowie bei Geschäftsjahresschluss durchzuführen (§ 240 Abs. 1 und 2 HGB) und muss sämtliche Vermögensgegenstände und Schulden umfassen. Normalfall ist die Stichtagsinventur, bei der zu einem Stichtag eine Gesamtaufnahme aller Vermögensgegenstände stattfindet. Diese muss zeitnah, regelmäßig binnen 10 Tagen vor und nach dem Bilanzstichtag (R 30 EStR), erfolgen. Zwischenzeitliche Bestandsveränderungen sind ordnungsgemäß aufzuzeichnen. Daneben sind als Inventurerleichterungen die permanente Inventur und die verlegte Inventur sowie die Stichprobeninventur zulässig.
B58: 6.4 | C58: Bewertung und Bewertungsvereinfachung
B60: Grundsätzlich gilt stets der Grundsatz der Einzelbewertung (§ 252 Abs. 1 Nr. 3 HGB), der besagt, dass jeder Vermögensgegenstand und Schuldposten einzeln zu bewerten ist. Hierbei ist die Verkehrsfähigkeit zugrundezulegen, d. h., die selbständige Nutzbarkeit. Jede Schraube ist daher prinzipiell ein eigenständiger Vermögensgegenstand, der einzeln zu bewerten wäre. Dies ist in der Praxis kaum zu bewerkstelligen, so dass der Gesetzgeber drei wesentliche Arten von Erleichterungen vorgesehen hat:
B62: 1. Vermögensgegenstände des Sachanlagevermögens sowie Roh-, Hilfs- und Betriebsstoffe können, wenn sie regelmäßig ersetzt werden und ihr Gesamtwert für das Unternehmen von nachrangiger Bedeutung ist, mit einer gleichbleibenden Menge und einem gleichbleibenden Wert angesetzt werden, sofern ihr Bestand in seiner Größe, seinem Wert und seiner Zusammensetzung nur geringen Veränderungen unterliegt (§ 240 Abs. 3 HGB). In diesem Fall ist dennoch alle drei Jahre eine körperliche Bestandsaufnahme erforderlich.
B64: 2. Gleichartige Vermögensgegenstände des Vorratsvermögens sowie andere gleichartige oder annähernd gleichwertige bewegliche Vermögensgegenstände und Schulden können jeweils zu einer Gruppe zusammengefaßt und mit dem gewogenen Durchschnittswert angesetzt werden (§240 Abs. 4 HGB). Dieses Verfahren ist auch als Durchschnittsmethode bekannt.
B66: 3. Soweit es den Grundsätzen ordnungsmäßiger Buchführung entspricht, d. h., soweit ein entsprechender belegmäßiger Nachweis geführt werden kann, darf für den Wertansatz gleichartiger Vermögensgegenstände des Vorratsvermögens unterstellt werden, dass die zuerst oder dass die zuletzt angeschafften oder hergestellten Vermögensgegenstände zuerst oder in einer sonstigen bestimmten Folge verbraucht oder veräußert worden sind. Dieses Verfahren ist auch als Verbrauchsfolgebewertung bekannt und umfaßt das FIFO-Verfahren und das LIFO-Verfahren.
A68: =A52+1 -> 17
B70: 6.5 | C70: Besondere Arten der Inventur
B72: Da die Inventur eine große organisatorische Belastung darstellt, hat der Gesetzgeber nicht nur Bewertungserleichterungsvorschriften erlassen, sondern auch besondere Arten der Inventur ermöglicht, die die mit der vollständigen körperlichen Bestandsaufnahme verbundene Arbeitsbelastung verringern sollen.
B74: Permanente Inventur Hierunter versteht man die Durchführung der Inventur über einen längeren Zeitraum oder ununterbrochen gemäß § 241 Abs. 2 HGB. Hier kann die Erfassung der einzelnen Bestände über das gesamte Geschäftsjahr verteilt werden (z. B. Bestandsaufnahme dann, wenn der jeweilige Bestand sehr niedrig ist). Sie setzt genaue Aufzeichnungen über Bestände, Zu- und Abgänge nach Tag, Art und Menge voraus, aus denen sich die Stichtagsbestände der einzelnen Wirtschaftsgüter ermitteln und bewerten lassen. Die permanente Inventur ist nur dann ordnungsgemäß, wenn gewährleistet ist, da jeder Inventurposten einmal im Jahr inventurmäßig erfasst wird; sie darf sich nicht nur auf Stichproben oder die Verprobung eines repräsentativen Querschnitts beschränken (vgl. R 30 EStR). Für Wirtschaftgüter, die besonders wertvoll sind oder unkontrollierbaren Abgängen unterliegen, ist die permanente Inventur nicht zulässig (R 30 EStR).
B76: Verlegte Inventur § 241 Abs. 3 HGB gestattet die Aufstellung eines besonderen Inventars auf einen Zeitpunkt innerhalb der letzten drei Monate vor oder der beiden ersten Monate nach dem Bilanzstichtag, dessen Inventarposten lediglich wertmäßig, nicht aber nach Art und Menge fortzuschreiben bzw. rückzurechnen sind. Dieses besondere Inventar kann auch auf Grund einer permanenten Inventur erstellt werden. Die in dem besonderen Inventar erfaßten Vermögensgegenstände brauchen nicht im Inventar für den Schluss des Geschäftsjahres verzeichnet werden. Die zeitlich verlegte Inventur ist wie die permanente Inventur für Bestände, bei denen ins Gewicht fallende unkontrollierbare Abgänge eintreten, und für besonders wertvolle Wirtschaftsgüter nicht zugelassen (R 30 EStR).
B78: Stichprobeninventur Bei der Aufstellung des Inventars darf der Bestand der Vermögensgegenstände nach Art, Menge und Wert auch mit Hilfe anerkannter mathematisch-statistischer Methoden auf Grund von Stichproben ermittelt werden (§ 241 Abs. 1 HGB). Der Aussagewert des auf diese Weise aufgestellten Inventars muß dem eines auf Grund einer körperlichen Bestandsaufnahme aufgestellten Inventars gleichkommen. Voraussetzung für die Anwendung dieser Methode ist, dass die Lagerpositionen durch Zufallsauswahl aus dem Lagerkollektiv in die Stichprobe gelangen. Das Verfahren muß den GoB entsprechen.

Sheet Übung 6
B2: 6 | C2: Übungsaufgaben: Inventur
B4: 1. Ordnen Sie die folgenden Inventurobjekte dem Vermögen bzw. den Schulden zu: 1.1. Forderung gegen Finanzamt aus Umsatzsteuer 1.2. Verbindlichkeit gegenüber der Gemeinde/Stadt aus Gewerbesteuer 1.3. Summe aller unbezahlten Rechnungen an Lieferanten beträgt ... Euro 1.4. Hypothekendarlehen von der Bank 1.5. Unbezahlte Produktionsmaschine 1.6. Girokonto bei der Bank, hoch überzogen 1.7. Girokonto bei einer anderen Bank, mit Guthabensaldo 2. Ordnen Sie die folgenden Vermögensgegenstände dem Anlage- bzw. dem Umlaufvermögen zu: 1.1. VW Golf, auf dem Hof eines Autohändlers zum Verkauf ausgestellt 1.2. Wie vorstehend, jedoch als Dienstfahrzeug des Autohändlers verwendet 1.3. Mietwagen einer Mietwagenfirma, zur Vermietung an Kunden 1.4. Wertpapiere, zur Spekulation gehalten 1.5. Wertpapiere, zur langfristigen Anlage von Geld 1.6. Wertpapiere des Inhabers, für seine Altersvorsorge gehalten
B5: 3. Nennen Sie die Grenzen des Einzelwertprinzipes! 4. Im Bereich des Materialwesens soll der Arbeitsaufwand durch die Inventur verringert werden. Wäre es zulässig, die Inventur der Hilfsstoffe ganz zu unterlassen? 5. Welche Werte können sich im Unternehmen befinden, aber im Rahmen einer Inventur nicht erfaßt werden?
B6: 6 | C6: Lösungen: Inventur
B8: 1. Zuordnung Vermögen/Schulden: 1.1. Vermögen 1.2. Schulden 1.3. Schulden 1.4. Schulden 1.5. Vermögen (auch, wenn unbezahlt - die Verbindlichkeit wäre separat zu erfassen!) 1.6. Schulden 1.7. Vermögen Hinweis: Das Bankkonto kann sowohl ein Aktiv- als auch ein Passivkonto sein kann! 2. Zuordnen Anlage- und Umlaufvermögen: 1.1. Umlaufvermögen 1.2. Anlagevermögen 1.3. Anlagevermögen
B9: 1.4. Umlaufvermögen 1.5. Anlagevermögen 1.6. Gar kein Vermögensgegenstand, weil nicht betrieblich und damit nicht Gegenstand der Inventur! 3. Die Bewertungsvereinfachungsvorschriften sehen bei Roh-, Hilfs- und Betriebsstoffe, wenn sie regelmäßig ersetzt werden und ihr Gesamtwert für das Unternehmen von nachrangiger Bedeutung ist (§ 240 Abs. 3 Satz 1 HGB), die Durchschnitts- und die Verbrauchsfolgebewertung vor. Diese entschärfen gleichsam das bei einer großen Zahl von kleinen Einzelobjekten nicht unbeschränkt durchführbare Einzelwertprinzip. 4. Ja, max. alle drei Jahre bei Gleichbewertung i.S.d. § 240 Abs. 3 Satz 2 HGB. 5. Werte, die einem Bilanzierungsverbot unterliegen, wie z. B. § 248 Abs. 2 HGB; auch Werte, die durch frühere Buchungen der Wertminderung wie z.B. Abschreibung ausgebucht wurden, aber immernoch vorhanden sind.

Sheet 7
A2: ='6'!A68:BA68+1 -> 18
B4: 7 | C4: Inventar => Bilanz und GuV
B6: Dieser Abschnitt stellt dar, wie aus dem Inventar die Bilanz abgeleitet wird. Das ist grundlegend für die Diskussion der Buchungsmethodik, die sich anschließt.
B8: 7.1 | C8: Bilanz
B10: Allgemein ist eine Bilanz eine Gegenüberstellung der Aktiva (Vermögensgegenstände) und Passiva (Kapitalpositionen) mit dem Ziel, als Restgröße (Nettovermögensgröße) das Eigenkapital zu ermitteln. Die Bilanz wird damit durch Zusammenfassung der Summen der Inventur gebildet:
I12: Bilanzschema
K14: Aktiva | M14: Bilanz 31.12.20XX | AG14: Passiva
J15: I. Anlagevermögen | W15: Eigenkapital
A16: zunehmende | AL16: abnehmende
A17: Liquidität | AL17: Fristigkeit
J18: langfristige Nutzungsabsicht
A19: Mittel- | AL19: Mittel-
A20: verwendung | AL20: herkunft
J21: II. Umlaufvermögen | W21: Fremdkapital
J23: kurzfristige Nutzungsabsicht | W23: Schulden
W24: Verbindlichkeiten
J26: Aktive Rechnungsabgrenzung | W26: Passive Rechnungsabgrenzung
S28: Summe X | AF28: Summe X
B31: Während im Inventar jedoch Einzelwerte aufgeführt sind, also Tausende von Einzelpositionen zu finden sind, werden in die Bilanz nur die Summen übertragen. Die Bilanz ist damit eine gedrängte Gegenüberstellung von Vermögen und Kapital der Unternehmung. Sie gründet sich auf das Inventar, also das Verzeichnis der Vermögensgegenstände und Schulden, liefert aber durch Kurzfassung der Ergebnisse der Inventur eine wesentlich übersichtlichere Gesamtdarstellung. Der Vorzug der Bilanz gegenüber dem Inventar besteht daher in ihrer Knappheit und Klarheit, da sie die vielen Einzelposten des Inventars in Gruppen zusammenfaßt.
B32: Man kann eine Bilanz gut als Waage visualisieren. Tatsächlich kommt das Wort von ital. Bilancia, Balkenwaage. Das Bild stellt dar, dass die Bilanz stets ausgewogen sein muss, d. h., die Vermögensgegenstände müssen den Schulden und dem Eigenkapital entsprechen. Die Buchführung legt also stets doppelt Rechenschaft ab: einmal auf der Aktiv- und einmal auf der Passivseite. Man spricht in diesem Zusammenhang auch von der sogenannten doppelten Buchführung. Das Prinzip der doppelten Rechnungslegung ist kurz auch als Doppik bekannt.
B34: Die Aktivseite legt Rechenschaft ab über das Vermögen. Sie enthält Informationen über die Mittelverwendung, d. h., die Investition. Die Passivseite enthält Daten über die Mittelherkunft, d. h., das Kapital, also die Finanzierung.
B36: Die Aktivseite wird von § 247 Abs. 2 HGB in die Positionen „Anlagevermögen“ und „Umlaufvermögen“ unterteilt. Dabei entscheidet alleine die Nutzungsabsicht, und nicht das tatsächliche Verhalten: eine Ware, die eigenbetrieblich genutzt wird, geht in das Anlagevermögen über, während eine mit Verkaufsabsicht gehaltene Ware im Umlaufvermögen bleibt, selbst dann, wenn sie sich de facto nicht kurzfristig (sondern nur überhaupt irgendwann) verkaufen läßt.
B38: Das Eigenkapital ist das Kapital im Eigentum der Gesellschafter, also ohne Rückzahlungsfrist, während Fremdkapital Finanzierungsmittel sind, die einem externen Kapitalgeber zurückzuzahlen sind. Die Rechnungsabgrenzungsposten enthalten vorausgezahlte Aufwendungen oder vorauserhaltene Erlöse. Aktiv- und Passivseite, d. h., Investition und Finanzierung, müssen einander stets entsprechen. Die Summe der verfügbaren Mittel (Passiva) muß der Summe der verfügten Mittel (Investition) entsprechen. Man sagt, die Bilanz müsse ausgewogen sein. Unterschiede in der Summe der Aktiva und Passiva deuten immer auf Fehler, z. B. auf Vermögensgegenstände, die in der Inventur vergessen worden sind.
A41: =A2+1 -> 19
B43: Die doppelte Rechenschaftslegung in der Bilanz setzt sich im gesamten System der Buchführung fort. Über jeden Euro wird zwei Mal Rechenschaft gelegt: wo er hergekommen ist (Finanzierung) und wo er hingekommen ist (Investition). Man spricht daher auch von der doppelten Buchführung.
B44: Beispiel einer Bilanz
B46: Nachfolgend betrachten wir als Beispiel die Bilanz einer kleinen Kommanditgesellschaft (keine GmbH & Co. KG): Das Unternehmen ist ein Buchgeschäft in einer Einkaufszone. Die §§ 265 ff. HGB sind für Personengesellschaften nicht anwendbar, so dass das Anlage- und das Umlaufvermögen, Eigenkapital, Schulden und Rechnungsabgrenzungsposten nur „gesondert ausgewiesen und hinreichend aufgegliedert“ (§ 247 Abs. 1 HGB) sein müssen. Zur dieser hinreichenden Aufgliederung gehört die Trennung der verschiedenen Arten von Anlage- und Umlaufvermögen sowie die Aufstellung über die Einlagen der beteiligten Gesellschafter.
B47: Es hätte in diesem Fall gereicht, die Kommanditisten gemeinsam in einer Position „Kommanditkapital“ auszuweisen. Aus Gründen des besseren Verständnisses wurde die Position jedoch separat dargestellt. Der Warenbestand umfaßt das Lager und den Warenbestand im Verkaufsbereich. Die sonstigen Forderungen enthalten u. a. auch die antizipativen Rechnungsabgrenzungsposten; in den sonstigen Verbindlichkeiten sind außer diesen auch die Umsatzsteuer-, Lohnsteuer- und Sozialversicherungs-verbindlichkeiten enthalten. In dieser Bilanz (wie auch in allen folgenden) sind die Unterschriften der persönlich haftenden Gesellschafter § 245 HGB) bzw. der entsprechenden Rechtsvertreter aus Vereinfachungsgründen weggelassen worden.
S50: Max & Moritz KG, Pforzheim
K51: Aktiva | M51: Bilanz 31.12.20XX | AG51: Passiva
J52: Anlagevermögen | W52: Eigenkapital
J53: Maschinen und Anlagen | S53: 13300 | W53: Komplementar X | AF53: 25000
A54: zunehmende | J54: Fahrzeuge/Fuhrpark | S54: 40000 | AL54: abnehmende
A55: Liquidität | J55: Betriebs- und | W55: Kommanditist Y | AF55: 10000 | AL55: Fristigkeit
J56: Geschäftsausstattung | S56: 35800 | W56: Kommanditist Z | AF56: 10000
A57: Mittel- | AL57: Mittel-
A58: verwendung | AL58: herkunft
J59: Umlaufvermögen | W59: Fremdkapital
J60: Warenbestand | S60: 340500 | W60: Verbindlichkeiten (Kreditinstitute) | AF60: 240000
J61: Forderungen aus Lieferungen | S61: 125000 | W61: Verbindlichkeiten Lieferungen | AF61: 290000
J62: Sonstige Forderungen | S62: 29000 | W62: sonstige Verbindlichkeiten | AF62: 80000
J63: Schecks, Kasse, Bank | S63: 70000
J64: Aktive Rechnungsabgrenzung | S64: 1800 | W64: Passive Rechnungsabgrenzung | AF64: 400
S66: =SUM(S53:V64) -> 655400 | AF66: =SUM(AF53:AI64) -> 655400
A70: =A41+1 -> 20
B72: 7.2 | C72: Bilanz und GuV
B74: In der Bilanz wird Rechenschaft über die Mittelherkunft, also die Finanzierung (das Kapital), und über die Mittelverwendung, also die Investition (das Vermögen) gelegt. Die Bilanz ist darum eine Beständerechnung, denn Vermögen und Kapital zeichnen sich durch eine gewisse Dauer aus. Sie sind Bestandsgrößen (Bestandskonten). Sie können daher im Rahmen der Inventur durch Zählen, Wiegen, Nachrechnen und ähnliche Arbeiten festgestellt werden. Es gibt aber auch Phänomene, die durch eine einzelne Inventur nicht zu erfassen sind:
B76: - An Mitarbeiter werden Löhne gezahlt, - der Wert der Anlagen wird durch Abschreibung oder durch Beschädigung gemindert und - die Bank bucht Darlehenszinsen ab.
B78: Diese Vorgänge heißen Aufwendungen. Durch Aufwendungen werden Aktiva gemindert, also Vermögensgegenstände verbraucht:
B80: - der Wert von Anlagen sinkt durch Abschreibung, - durch die Auszahlung von Gehältern und Beiträgen zur Zwangsversicherung oder durch die Abbuchungen der Bank wird der Bestand an Bargeld gemindert.
B82: Diese Phänomene ließen sich aber erfassen, indem man die Ergebnisse zweier Inventuren nacheinander vergleicht. Dadurch würden die Wertminderungen offenbar. Das ist aber eine sehr ungenaue Methode. Also richtet man für jede Art von Aufwendung (Verbrauch) ein eigenes Konto ein. Diese Konten heißen Aufwandskonten. Wichtige Beispiele sind:
B84: - Materialaufwendungen, - Personalaufwendungen, - Abschreibungsaufwendungen, - Bestandsminderungen in Zwischen- und Ausgangslagern, - Büroaufwendungen, - Energieaufwendungen, - Zinsaufwendungen
B86: In der Praxis werden zur Vereinfachung hierbei viele Fehler gemacht. Dies gilt besonders für den Handel. Dort werden die Einkäufe von Waren oft sofort als Aufwand/Warenverbrauch gebucht obwohl die Ware noch im Warenbestand ist.
B88: - der Einkauf von Waren (oder anderen Materialarten, z. B. in der Industrie) ist ein ausschließlich bilanzieller Vorgang. Die eingekauften Bedarfsgegenstände sind in der Bilanz bei den Aktiva aufzuführen, denn sie werden ins Lager verbracht (= Lagerbestand). Sie sind Vermögensgegenstände. - Erst bei Entnahme der Bedarfsgegenstände aus dem Lager entsteht ein Aufwand. Dieser Aufwand ist ein Waren- oder Materialeinsatz. Der Buchungsbeleg ist in der Industrie ein Materialentnahmeschein und im Handel wird die Warenentnahme durch den Kunden mit der Scannerkasse erfasst.
B90: Neben den Aufwendungen gibt es noch ein zweites Phänomen, das nicht in der Bilanz zu erfassen ist:
B92: - An Kunden werden Produkte oder Waren verkauft, - an Kunden werden Dienstleistungen erbracht oder - der Bestand an Produkten in Zwischenlagern steigt.
B94: Diese Vorgänge heißen Erträge. Durch Erträge werden Bestände gemehrt: - das Lager wird größer oder - die Forderungen oder der Bestand an Geld steigt.
A96: =A70+1 -> 21
B98: Erträge und Aufwendungen können gleichzeitig entstehen, müssen aber aufgrund des Einzelwertgrundsatzes (§ 252 Abs. 1 Nr. 3 HGB) und des Verrechnungsverbotes (§ 246 Abs. 2 Satz 1 HGB) jeweils separat ausgewiesen und gebucht werden. Den Aufwand (Warenentnahme durch den Kunden) mit dem Ertrag (Verkauf an den Kunden) zu verrechnen ist verboten, obwohl diese beiden Vorgänge in sachlichem Zusammenhang zueinander stehen, also unmittelbar gleichzeitig erfolgen.
B101: Wichtige Beispiele für Erträge sind: - Verkäufe an Kunden (Hauptgeschäft), - Nebengeschäfte (z. B. Vermietung leerstehender Gebäude), - Verkäufe an Gesellschafter (Entnahmen), - Zinserträge aus vergebenen Darlehen, - Erträge aus Währungsumrechnung (Fremdwährung steigt und wir haben eine Forderung in dieser Fremdwährung), - Erträge aus Wertaufholung (§ 253 Abs. 5 HGB), - Mehrung in Zwischenlagern (Unfertige Erzeugnisse) und Ausgangslagern (Fertige Erzeugnisse)
B103: Der Bestandteil des Jahresabschlusses, in dem die Aufwendungen und Erträge auszuweisen sind, ist die Gewinn- und Verlustrechnung (GuV). Der Saldo der Gewinn- und Verlustrechnung verändert das Eigenkapitalkonto, denn Aufwendungen sind Minderungen und Erträge sind Mehrungen von Vermögensgegenständen. Das führt zu einer entsprechenden Veränderung des Eigenkapitals, denn die Bilanz muss ja stets ausgewogen sein.
B105: Die Gewinn- und Verlustrechnung ist eine Zeitraumrechnung. Sie wird jeweils für den Zeitraum zwischen zwei Bilanzstichtagen aufgestellt. Die allgemeine Form der Gewinn- und Verlustrechnung ist: Erträge – Aufwendungen = Jahresergebnis Ist das Jahresergebnis ein Gewinn, so nennt man es auch Jahresüberschuss. Ist das Jahresergebnis ein Verlust, so heißt es Jahresfehlbetrag. Dies ist eine Gewinndefinition von vielen möglichen Varianten. Man sollte daher nie von „Gewinn“ oder „Verlust“ reden; dies sind umgangssprachliche Termini und keine Fachbegriffe.
A107: =A96+1 -> 22
B109: Gliederung nach § 275 HGB (Kapitalgesellschaften und Personengesellschaften & Co): Die Gewinn- und Verlustrechnung ist in Staffelform nach dem Gesamtkostenverfahren oder dem Umsatzkostenverfahren aufzustellen. Dabei sind die bezeichneten Posten in der angegebenen Reihenfolge gesondert auszuweisen. Bei Anwendung des Gesamtkostenverfahrens sind auszuweisen: 1. Umsatzerlöse 2. Erhöhung oder Verminderung des Bestands an fertigen und unfertigen Erzeugnissen 3. andere aktivierte Eigenleistungen 4. sonstige betriebliche Erträge 5. Materialaufwand: a) Aufwendungen für Roh-, Hilfs- und Betriebsstoffe und für bezogene Waren b) Aufwendungen für bezogene Leistungen 6. Personalaufwand: a) Löhne und Gehälter b) soziale Abgaben und Aufwendungen für Altersversorgung und für Unterstützung, davon für Altersversorgung
B110: 7. Abschreibungen: a) auf immaterielle Vermögensgegenstände des Anlagevermögens und Sachanlagen b) auf Vermögensgegenstände des Umlaufvermögens, soweit diese die in der Kapitalgesellschaft üblichen Abschreibungen überschreiten 8. sonstige betriebliche Aufwendungen 9. Erträge aus Beteiligungen, davon aus verbundenen Unternehmen 10. Erträge aus anderen Wertpapieren und Ausleihungen des Finanzanlagevermögens, davon aus verbundenen Unternehmen 11. sonstige Zinsen und ähnliche Erträge, davon aus verbundenen Unternehmen 12. Abschreibungen auf Finanzanlagen und auf Wertpapiere des Umlaufvermögens 13. Zinsen und ähnliche Aufwendungen, davon an verbundene Unternehmen 14. Steuern vom Einkommen und vom Ertrag 15. Ergebnis nach Steuern 16. sonstige Steuern 17. Jahresüberschuss/Jahresfehlbetrag.
B112: - „Sonstige betriebliche Erträge“ sind ein Nebengeschäft - Die Bestandsminderung ist eine Aufwendung. Sie wird daher subtrahiert. „FE“ sind Fertigerzeugnisse und „UFE“ sind Unfertigerzeugnisse. Nur die Bestandsänderungen in Zwischen- und Ausgangslagern sind hier auszuweisen, nicht aber die in Eingangslagern: dort werden ja die Entnahmen schon als Aufwendungen gebucht, so dass keine Bestandsänderung mehr zu erfassen ist! - Die „Erträge aus Währungsumrechnung“ sind aufgrund § 256a HGB ausgewiesen und entstehen, wenn eine Forderung in Fremdwährung (nicht Euro) besteht, und der Kurs dieser Fremdwährung steigt.
B113: - „Zinsaufwendungen“ sind natürlich nur die eigentlichen Zinszahlungen, die die Bank aufgrund eines Darlehens bucht. Die Rückzahlung des Darlehens selbst (die Tilgung) ist ein rein bilanzielles Phänomen und hat nichts in der GuV zu suchen, sondern ist erfolgsneutral zu buchen.
B115: Hinweis: Eine Personengesellschaft ist selbst nicht einkommensteuerpflichtig sondern jeweils ihre Gesellschafter. Die Einkommensteuer ist keine betriebliche Steuer und steht daher nicht in der GuV.

Sheet Übung 7
B2: 7.1 | C2: Übungsaufgabe: Grundschema der Bilanz
B4: Betrachten Sie zunächst das allgemeine Grundschema der Bilanz:
I6: Bilanzschema
K8: Aktiva | M8: Bilanz 31.12.201X | AG8: Passiva
J9: Anlagevermögen | W9: Eigenkapital
A10: zunehmende | AL10: abnehmende
A11: Liquidität | AL11: Fristigkeit
J12: langfristige Nutzungsabsicht
A13: Mittel- | AL13: Mittel-
A14: verwendung | AL14: herkunft
J15: Umlaufvermögen | W15: Fremdkapital
J17: kurzfristige Nutzungsabsicht | W17: Schulden
W18: Verbindlichkeiten
J20: Aktive Rechnungsabgrenzung | W20: Passive Rechnungsabgrenzung
S22: Summe X | AF22: Summe X
B25: In Ihrer Buchführung finden Sie die folgenden Konten, die hier leider völlig ungeordnet herumstehen: „Grundstücke und Gebäude“, „Sozialversicherungsschulden“„Langfristige Darlehensschuld Voba 123456“, „Wechselschulden“, „Maschinen“, „Betriebs- und Geschäftsausstattung“, „Steuerschulden“, „Ausgereichte (gewährte) Darlehen an Verbundunternehmen“, „Eigenkapital Vollhafter“, „Kapital Stiller Gesellschafter“, „Forderungen gegen Kunden aus Lieferungen“, „Girokonto mit Guthaben“, „Kasse“, „Beteiligungen an anderen Unternehmen“, „Eigenkapital Teilhafter“, „Verbindlichkeiten bei Lieferanten“, „Materiallager“, „Überzogenes Girokonto“
B27: Ordnen Sie diese Konten der jeweils richtigen Seite im Bilanzschema zu. Beginnen Sie beim Vermögen mit dem Anlagevermögen und beim Kapital mit den Eigentümerrechten, d.h. ordnen Sie die Aktiva nach Liquidität und die Passiva nach Fristigkeit:
B29: 7.1 | C29: Lösung: Grundschema der Bilanz
J33: Aktiva | M33: Bilanz 31.12.201X | AG33: Passiva
J34: Anlagevermögen | W34: Eigenkapital
J35: Grundstücke und Gebäude | W35: Eigenkapital Vollhafter
A36: zunehmende | J36: Maschinen | W36: Eigenkapital Teilhafter | AL36: abnehmende
A37: Liquidität | J37: Betriebs- und Geschäftsausst. | W37: Kapital stiller Gesellschafter | AL37: Fristigkeit
A38: Mittel- | J38: Beteiligungen an anderen UN | AL38: Mittel-
A39: verwendung | J39: Ausleihungen an Verbund-UN | AL39: herkunft
J41: Umlaufvermögen | W41: Fremdkapital
J42: Vorräte (Materiallager) | W42: Darlehen Voba 123456
J43: Forderungen aus LuL | W43: Wechselschulden
J44: Girokonto mit Guthaben | W44: Verbindlichkeiten LuL
J45: Kasse | W45: Steuerschulden
W46: überzogenes Girokonto
W47: Sozialversicherungschulden
S48: =SUM(S35:V46) -> 0 | AF48: =SUM(AF35:AI46) -> 0
B51: 7.2 | C51: Übungsaufgabe: Doppelte Buchführung - Bilanzkonten
B54: Bitte ermitteln Sie für die nachstehenden Geschäftsvorfälle, um welchen Buchungstyp (Aktivtausch, Passivtausch, Bilanzverlängerung, Bilanzverkürzung) es sich im Bezugssystem der Bilanz handelt. Ordnen Sie alle Geschäftsfälle einem der vier genannten elementaren Buchungsfälle zu. Sind mehrere Alternativen genannt, so nennen Sie alle möglichen Alternativen. In dieser Übung wird die Umsatzsteuer aus Vereinfachung nicht betrachtet.
B56: 1. Kauf eines Geschäftsfahrrades gegen bar 2. Kauf von Waren gegen Barzahlung 3. Kauf eines Bürocomputers „auf Ziel“ (d.h. auf Rechnung) 4. Barzahlung der Rechnung aus der vorstehenden Aufgabe 5. Kauf eines Computers gegen Überweisung 6. Banküberweisung an einen Lieferer 7. Ein Kunde zahlt seine Rechnung in bar 8. Wir nehmen ein Darlehen bei der Bank auf 9. Wir gewähren ein Darlehen 10. Wir stunden einem Kunden seine Rechnung 11. Barabhebung vom Bankkonto 12. Wir überweisen der Bank eine Darlehenstilgung 13. Wir zahlen eine Verbindlk. durch Übereignung einer Forderung 14. Wir erhalten eine Zahlung durch Übereignung einer Forderung 15. Kapitaleinlage des Inhabers durch Bareinzahlung
B58: 7.2 | C58: Lösung: Doppelte Buchführung - Bilanzkonten
B60: 1. Aktivtausch (Betriebs- und Geschäftsausstattung nimmt zu, Kasse nimmt ab) 2. Aktivtausch 3. Aktiv- Passiv-Zunahme, Bilanzverlängerung 4. Aktiv- Passiv- Minderung, Bilanzverkürzung 5. Aktivtausch wenn Bank im Guthaben, sonst Bilanzverlängerung 6. Bilanzverkürzung wenn Bank im Guthaben, sonst Passivtausch 7. Aktivtausch 8. Bilanzverlängerung !!! wenn Bank im Guthaben, sonst Passivtausch 9. Aktivtausch wenn Bank im Guthaben, sonst Bilanzverlängerung 10. Aktivtausch 11. Aktivtausch wenn Bank im Guthaben, sonst Aktiv- Passiv-Zuname = Bilanzverlängerung 12. Bilanzverkürzung wenn Bank im Guthaben, sonst Passivtausch 13. Aktiv- Passiv-Minderung, Bilanzverkürzung 14. Aktivtausch 15. Aktiv- Passiv-Zunahme, Bilanzverlängerung
B63: 7.3 | C63: Übungsaufgabe: Doppelte Buchführung - Bilanz- und Erfolgskonten
B66: Bitte ermitteln Sie für die nachstehenden Geschäftsvorfälle, um welchen Buchungstyp es sich im Bezugssystem der Bilanz und der Gewinn- und Verlustrechnung handelt. Ordnen Sie alle Geschäftsfälle einem der vier genannten elementaren Buchungsfälle zu (Aktiv-, Passiv-, Bilanzverlängerung, Bilanzkürzung, Aufwand, Ertrag bzw. Erlös). Sind mehrere Alternativen genannt, so nennen Sie alle möglichen Alternativen. In dieser Übung wird die Umsatzsteuer nicht betrachtet.
B68: 1. Wie nehmen ein Darlehen bei der Bank auf. 2. Hierauf zahlen wir eine Tilgung in bar. 3. Hierauf zahlen wir eine Tilgung durch Überweisung. 4. Hierauf zahlen wir Zinsen in bar. 5. Hierauf zahlen wir Zinsen durch Überweisung. 6. Wir kaufen Waren auf Rechnung. 7. Barzahlung dieser Rechnung. 8. Zielverkauf der Waren aus Nr. 6. an einen Kunden. 9. Der Kunde aus Nr. 8. zahlt seine Rechnung bar. 10. Wir bestellen eine Produktionsmaschine. 11. Baranzahlung auf Maschine aus 10. vor Herstellung. 12. Lieferung und Abrechnung der Anlage aus 10./11.. 13. Erweiterungsinvestition in Maschine auf Rechnung. 14. Reparatur einer Maschine gegen Barzahlung. 15. Barkauf Faxgerät 1.500 Euro. 16. Barkauf Kleincomputer 399,99 Euro. 17. Barkauf Bürolocher 9,99 Euro.
B70: 7.3 | C70: Lösung: Doppelte Buchführung - Bilanz- und Erfolgskonten
B72: 1. Bilanzverlängerung (Bank im Guthaben) oder Passivtausch (Bank überzogen) 2. Bilanzverkürzung 3. Bilanzverkürzung (wenn Bank im Guthaben), sonst Passivtausch 4. Aufwandsbuchung 5. Aufwandsbuchung 6. Bilanzverlängerung 7. Bilanzverkürzung 8. Ertragsbuchung 9. Aktivtausch 10. Keine Buchung 11. Aktivtausch 12. Bilanzverlängerung 13. Bilanzverlängerung wenn auf Rechnung 14. Aufwandsbuchung 15. Aktivtausch 16. Aktivtausch (auch bei gWG!) 17. Aufwandsbuchung (Verbrauchsfiktion!)
B75: 7.4 | C75: Übungsaufgabe: Buchungssätze, Bestandsbuchungen
B78: Bei dieser Übung müssen Sie Buchungssätze auf Bilanzkonten bilden.
B80: Teil A: Bitte entscheiden Sie, ob diese Fälle Bilanzverlängerungen, Bilanzverkürzungen, Aktivtäusche oder Passivtäusche sind, und bilden Sie dann Buchungssätze:
B82: 1. Kauf einer Maschine gegen Barzahlung 2. Kauf einer Maschine gegen Bankscheck 3. Ein Lieferant gewährt uns auf eine seiner Forderungen eine langfristige Stundung 4. Rückzahlung („Tilgung“) eines von uns aufgenommenen Darlehens in bar 5. Tilgung eines von uns aufgenommenen Darlehens durch Banküberweisung einer Rate 6. Kauf einer Maschine gegen Übereignung einer Forderung
B84: Teil B: Welche Geschäftsfälle haben zu den nachstehenden Buchungen geführt, und um welche Fälle handelt es sich?
B86: 1. BGA AN Kasse 2. BGA AN Verbindlichkeiten 3. Kasse AN Forderungen 4. Bank AN Forderungen 5. Verbindlichkeiten AN Forderungen 6. Darlehensforderungen AN Bank 7. Bank AN Darlehensforderungen 8. Bank AN Darlehensverbindlichkeiten 9. Darlehensverbindlichkeiten AN Bank 10. Darlehensverbindlichkeiten AN Forderungen
B88: 7.4 | C88: Lösung: Buchungssätze, Bestandsbuchungen
B90: Teil A: 1. Aktivtausch – Maschinen AN Kasse 2. Aktivtausch/Bilanzverlängerung – Maschinen AN Bank 3. Passivtausch – Verbindlichkeiten aus L&L AN Darlehensverbindlichkeiten 4. Bilanzverkürzung – Darlehensverbindlichkeiten AN Kasse 5. Bilanzverkürzung/Passivtausch – Darlehensverbindlichkeiten AN Bank 6. Aktivtausch – Maschinen AN Forderungen
B92: Teil B: 1. Barkauf von Büroausrüstungsgegenständen 2. Zielkauf von Büroausrüstungsgegenständen 3. Eingang einer Zahlung von einem Kunden in bar 4. Eingang einer Zahlung von einem Kunden in per Überweisung 5. Wir zahlen eine Verbindlichkeit durch Übereignung einer Forderung 6. Wir gewähren ein Darlehen per Überweisung 7. Unser Darlehensschuldner zahlt uns eine Tilgungsrate 8. Wir nehmen ein Darlehen durch Überweisung auf 9. Wir zahlen eine Darlehenstilgung auf ein von uns aufgenommenes Darlehen 10. Wir zahlen eine Darlehenstilgung durch Übereignung einer Forderung
B96: 7.4 | C96: Übungsaufgabe: Buchungssätze, Bestandsbuchungen
B98: Teil C: Bitte beantworten Sie die folgenden theoretischen Fragen:
B100: 1. Woran können Sie erkennen, ob die Bank ein Aktiv- oder ein Passivkonto ist? 2. Gibt es außer der Bank noch weitere Konten, die in der Bilanz auf beiden Seiten stehen können? 3. Wenn Sie einen Kontoauszug kriegen, und darauf ein Geldeingang dokumentiert ist, dann steht die Buchung im „Haben“. Dennoch müssen Sie als Buchhalter die Bank bei Eingang von Geld im „Soll“ buchen. Weshalb? Ist das nicht ein Widerspruch? 4. Was ist auf der Aktivseite der Bilanz der grundlegende Unterschied zwischen „Anlagevermögen“ und „Umlaufvermögen“? 5. In § 248 Abs. 2 HGB steht folgender Satz: „Für immaterielle Vermögensgegenstände des Anlagevermögens, die nicht entgeltlich erworben wurden, darf ein Aktivposten nicht angesetzt werden“. Was für Vermögensgegenstände könnten hier gemeint sein, und welchen Sinn hat diese Regelung? 6. § 246 Abs. 2 HGB verbietet, Aktiva mit Passiva zu verrechnen. Was ist der Sinn dieser Regelung? 7. Für welche Form von Fremdkapital müssen Sie normalerweise keine Zinsen entrichten? 8. An welchem Kalendertag endet die Aufbewahrungsfrist für die Benzinquittung von heute morgen, wenn Sie den Dienstwagen betankt haben? 9. Was ist der Unterschied zwischen Grundbuch und Hauptbuch?
B102: 7.4 | C102: Lösung: Buchungssätze, Bestandsbuchungen
B104: Teil C: 1. Am Saldo – und nur am Saldo! 2. Forderungen und Verbindlichkeiten, wenn Schuldner zugleich Kunden sind; ferner das Postgirokonto. 3. Die Bank bucht aus ihrer Sicht und nicht aus unserer! 4. Anlagevermögen ist dazubestimmt, dem Betrieb langfristig zu dienen (§247 Abs. 2 HGB); es kommt also nur auf die Nutzungsabsicht an! 5. Eigene Patente, Marken- und sonstige Schutzrechte sowie eigene Software; Gläubigerschutz. 6. Forderungen und Verbindlichkeiten dürfen nicht aufgerechnet werden. 7. Lieferantenrechnungen (ohne Skonti) und Kundenanzahlungen vor Erbringung und Abrechnung der Leistung. Falsch aber Lieferantenrechnungen mit Skonto: „3% Skonto in 1 Woche, sonst 21 Tage Netto Kasse“ entspricht beispielsweise einem Zinssatz i.H.v. 78% p.a.! 8. Ende des Jahres plus 10 Jahre (§§ 257 HGB, 147 AO). 9. Im Grundbuch ist der Buchungsstoff zeitlich geordnet und im Hauptbuch ist er sachlich geordnet.
B107: 7.5 | C107: Übungsaufgabe: Buchungssätze, Bestands- und Erfolgsbuchungen
B109: 1. Wareneinkauf AN Verbindlichkeiten L&L 1500 € 2. Kasse AN Warenverkauf 750 € 3. Verbindlichkeiten L&L AN Wareneinkauf 150 € 4. Portokosten AN Kasse 19,50 € 5. Kasse 1500 AN BGA 1000, sonstige betriebliche Erträge 500 € 6. Kasse 4000, sonstige betriebliche Aufwand 1000 AN Maschinen 5000 € 7. Maschinen AN Verbindlichkeiten L&L 12500 € 8. Verbindlichkeiten L&L AN Maschinen 500 € 9. Verbindlichkeiten L&L AN Bank 10000 € 10. Verbindlichkeiten L&L AN Darlehensverbindlichkeiten 2000 € 11. Instandhaltungsaufwendungen AN Kasse 59 € 12. EDV-Lizenzrechte AN Bank 1650 € 13. Forderungen L&L AN Warenverkauf 1850 €
B110: 14. Bank AN Forderungen L&L 1000 € 15. Kasse AN Forderungen L&L 850 € 16. A.o.Aufwand AN Kasse 100 € 17. A.o.Aufwand AN Wareneinkauf 250 € 18. Bank AN Zinserträge 65,10 € 19. GuV AN Portokosten 654,60 € 20. Warenverkauf AN GuV 295436,36 € 21. SBK AN Wareneinkauf 54783,20 € 22. GuV AN Eigenkapital 15478,30 € 23. Eigenkapital AN GuV 21049,74 €
B112: 7.5 | C112: Lösung: Buchungssätze, Bestands- und Erfolgsbuchungen
B114: 1. Wareneinkauf auf Ziel 2. Barverkauf von Waren 3. Rücksendung oder Minderung von Waren 4. Barzahlung von Postgebühren 5. Verkauf von alten Anlagegegenständen über Buchwert (= Buchgewinn) 6. Verkauf von alten Maschinen unter ihrem Buchwert (= Buchverlust) 7. Kauf einer Maschine auf Ziel 8. Rücksendung oder Minderung von Maschinenlieferant 9. Zahlung eines Lieferanten durch Überweisung 10. Langfristige Stundung eines Lieferanten 11. Barzahlung einer Reparatur 12. Kauf von Software per Scheck 13. Zielverkauf von Waren
B115: 14. Zahlungseingang von Kunden auf Bankkonto 15. Zahlungseingang von Kunden in bar 16. Minderbetrag in Kasse (z.B. Diebstahl) 17. Verlust oder Verderb von Waren 18. Gutschrift von Zinserträgen bei der Bank 19. Abschluss des Portoaufwandes in die GuV 20. Abschluss des Warenverkaufes in die GuV 21. Abschluss des Wareneinkaufes (d.h., des Schlussbestandes) in die Bilanz 22. Abschluss der GuV mit Gewinn (Personengesellschaft) 23. Abschluss der GuV mit Verlust (Personengesellschaft)
B118: 7.6 | C118: Übungsaufgabe: Bilanz
B120: Das Inventar (Staffelform) eines Handwerksbetriebes des Baugewerbes sieht zu einem Bilanzstichtag folgendermaßen aus: A. Vermögen: 1. Fuhrpark: Bagger 60.000 €, Drehkran 80.000 €, Lastwagen 40.000 €, Baustellenfahrzeug 10.000 €, Dienstfahrzeug 12.000 €, 2. Betriebs- und Geschäftsausstattung Computer 15.000 €, Büroeinrichtung 8.000 €, Sonstige Geräte 7.000 €, 3. Rohstoffe: Zement, Beton 20.000 €, Div. Steine, Baumaterial 25.000 €, Div. Hilfsstoffe 5.000 € 4. Forderungen an Kunden: Hinz 40.000 €, Kunz 60.000 €, Meier 100.000 €, Müller 50.000 €, 5. Bankguthaben 3.000 €, Kasse 2.000 €
B121: B. Schulden 1. Darlehen Sparkasse 150.000 € Hypobank 50.000 € 2. Verbindlichkeiten Lieferanten Peters oHG 25.000 € Schulz KG 40.000 € Bauhof AG 1.000 € 3. Sonstige Schulden Sozialversicherung 6.000 € Finanzamt 4.000 €
B122: Das Unternehmen gehört Herrn Sucht, der ein Einzelunternehmer ist (eingetragener Kaufmann). Stellen Sie die Bilanz für Hern Sucht auf. Ermitteln Sie den Wert der einzelnen Positionen und gliedern Sie die Bilanz nach Anlage- und Umlaufvermögen sowie nach Eigen- und Fremdkapital. Die gesetzliche Struktur der Bilanz nach § 266 HGB braucht nicht angewandt zu werden, da es sich nicht um eine Kapitalgesellschaft handelt!
B123: 7.6 | C123: Lösung: Bilanz
S126: Einzelunternehmer Sucht
K127: Aktiva | M127: Bilanz 31.12. | AG127: Passiva
J128: Anlagevermögen | W128: Eigenkapital
J129: Fuhrpark | S129: 202000 | AF129: 261000
A130: zunehmende | J130: Betriebs- und | AL130: abnehmende
A131: Liquidität | J131: Geschäftsausstattung | S131: 30000 | AL131: Fristigkeit
A132: Mittel- | AL132: Mittel-
A133: verwendung | AL133: herkunft
J134: Umlaufvermögen | W134: Fremdkapital
J135: Roh-, Hilfs- und Betriebsstoffe | S135: 50000 | W135: Verbindlichkeiten (Kreditinstitute) | AF135: 200000
J136: Forderungen aus LuL | S136: 250000 | W136: Verbindlichkeiten Lieferungen | AF136: 66000
J137: Schecks, Kasse, Bank | S137: 5000 | W137: sonstige Verbindlichkeiten | AF137: 10000
S141: =SUM(S129:V139) -> 537000 | AF141: =SUM(AF129:AI139) -> 537000
B144: 7.7 | C144: Übungsaufgaben: GuV
B146: An einem Stichtag stehen die folgenden Informationen zur Verfügung: Umsatzerlöse 620.000 €, Personalaufwand 300.000 € Materialeinkauf 200.000 €, Materialaufwand 220.000 € Minderung Guthaben Bankkonto 15.000 €, Abschreibungen 80.000 € Rückzahlungen Darlehen 25.000 €, Zinsaufwand 10.000 € Privatentnahme Gesellschafter 20.000 €, Bestandsmehrungen Zwischenlager 40.000 € Einkommensteuer Gesellschafter 8.000 €, Sonstige betriebliche Erträge 80.000 € Sonstige betriebliche Aufwendungen 70.000 €, 1. Stellen Sie eine ordnungsgemäße Gewinn- und Verlustrechnung auf. Scheiden Sie Positionen aus, die nicht in die GuV gehören. 2. Berechnen Sie das Jahresergebnis vor Steuern und bezeichnen Sie es mit dem richtigen Begriff.
B148: 7.7 | C148: Lösung: GuV
A149: Gewinn- und Verlustrechnung (Staffelform):
B150: Umsatzerlöse | AQ150: 620000
B151: + sonstige betriebliche Erträge | AQ151: 80000
B152: + Bestandsmehrungen Zwischenlager | AQ152: 40000
B153: - Materialaufwand | AQ153: -220000
B154: - Personalaufwand | AQ154: -300000
B155: - Abschreibungen | AQ155: -80000
B156: - sonstige betriebliche Aufwendungen | AQ156: -70000
B157: - Zinsaufwendungen | AQ157: -10000
A159: = Jahresüberschuss (Gewinn) | AW159: =SUM(AQ150:AV159) -> 60000
B161: Lösungshinweise: die Positionen „Minderung Guthaben Bankkonto“, „Rückzahlungen Darlehen“, Privatentnahme Gesellschafter“ und „Einkommensteuer Gesellschafter“ sind bilanzielle Phänomene und daher nicht Teil der GuV. Es muss erkannt werden, dass „Bestandsmehrungen Zwischenlager“ ein Ertrag ist . Die Position ist daher zu addieren. Die Einkommensteuer ist kein Phänomen der GuV, weil die Gesellschafter (und nicht die Gesellschaft!) einkommensteuerpflichtig sind (Personengesellschaft, ungleich einer Kapitalgesellschaft). Ferner muss erkannt werden, dass „Rückzahlungen Darlehen“ eine Tilgung (und daher ein bilanzielles Phänomen und kein Aufwand) ist.

Sheet 8
A2: ='7'!A107:BA107+1 -> 23
B4: 8 | C4: Die Ableitung der Buchungsmethodik
B6: Buchungsregeln sind allgemein gesagt die Regeln, auf welcher Seite von Konten welche Sachverhalte zu erfassen sind. Die Buchungsregeln bilden Grundlage für die Bildung von Buchungssätzen und betreffen Vereinbarungen darüber, was auf der linken „Soll“-Seite und der rechten „Haben“-Seite der Konten zu stehen hat. Sie sind für jede Kontenart einzeln definiert und bilden ein in sich geschlossenes Regelwerk.
B8: 8.1 | C8: Buchungsregeln
B10: Aktiv- und Passivkonten (Bestandskonten): Die Buchungsregeln der Aktiva und der Passiva sind genau spiegelverkehrt, d. h., was man in den Aktiva im „Soll“ bucht, das gehört bei den Passiva in’s „Haben“. Merksatz: Die Bestandskonten haben ihre Anfangsbestände und Mehrungsbuchungen auf der Seite, auf der sie in der Bilanz stehen, und die Minderungsbuchungen und Schlußsalden auf der gegenüberliegenden Seite.
B12: Aufwands- und Ertragskonten (Erfolgskonten): Diese Konten sind Unterkonten zum Eigenkapital. Merksatz: Aufwendungen und Erträge bucht man so, wie man ihre Auswirkung im Eigenkapitalkonto buchen würde, also Aufwendungen im „Soll“ (=Eigenkapitalminderung!) und Erträge im „Haben“ (=Eigenkapitalmehrung!).
B14: Dabei unterscheidet man Regeln für vier Kontenarten: - Aktivkonten sind Konten, die Wertbestände auf Vermögenskonten abbilden; - Passivkonten sind Konten, die Wertbestände auf Kapitalkonten abbilden; - Aufwandskonten sind Konten, die einen Wertverzehr von Vermögen (= Verbräuche) abbilden und - Ertragskonten sind Konten, die Verwertungen von Vermögen (= Wertmehrungen) darstellen.
B16: Bestandskonten
I17: Aktivkonten
K19: Soll | M19: z. B. BGA | AG19: Haben
J20: Anfangsbestand
J21: aus der Eröffnungsbilanz | W21: - Minderungen / Abgänge
J23: + Mehrungen / Zugänge | W23: = Schlussbestand
W24: in der Schlussbilanz
S25: Summe X | AF25: Summe X
I29: Passivkonten
K31: Soll | M31: z B. Verbindlichkeiten (Darlehen) | AG31: Haben
W32: Anfangsbestand
J33: - Minderungen / Abgänge | W33: aus der Eröffnungsbilanz
J35: = Schlussbestand | W35: + Mehrungen / Zugänge
J36: in der Schlussbilanz
S37: Summe X | AF37: Summe X
A41: =A2+1 -> 24
B44: Erfolgskonten (=> GuV / Gewinn-/Verlustrechnung)
I46: Aufwands- und Kostenkonten
K48: Soll | AG48: Haben
J50: Summe der | W50: - Aufwandsminderungen
J51: Aufwandsbuchungen
W52: = Schlussbestand => GuV
S54: Summe X | AF54: Summe X
I58: Erlös- und Leistungskonten
K60: Soll | AG60: Haben
J62: - Erlösminderungen | W62: Summe der
W63: Erlösbuchungen
J64: = Schlussbestand => GuV
S66: Summe X | AF66: Summe X
B69: Die Summe der Buchungen im „Soll“ und der im „Haben“ muss stets gleich sein, und zwar sowohl im einzelnen Konto als auch in jeder beliebigen Summe von Konten.
B71: Eine Saldendifferenz ist ein untrügliches Zeichen für einen Buchungsfehler. Es ist nicht möglich, durch regelgerechtes Buchen Saldendifferenzen zu erzeugen, d. h., bei fehlerfreier und vollständiger Anwendung aller Buchungsvorschriften werden alle einzelnen Konten ebenso wie die Bilanz immer ausgewogen sein. Das angewandte Regelwerk ist in sich stabil und fehlerintolerant.
B73: 8.2 | C73: Ableitung von Buchungssätzen
B75: In der Praxis ist es schwierig, Buchungen so zu notieren, dass ein sachverständiger Dritter damit klarkommt. Eine formelhafte Notationsweise ist also erforderlich, um - Fehler auszuschließen und - die Kommunikation über buchhalterische Sachverhalte (Standard) zu erleichtern und zu beschleunigen. Dies ist im wesentlichen die Aufgabe des Buchungssatzes, der die Kontierung eines Geschäftsvorfalles in kurzer, formaler Art und Weise darstellt.
B77: Der Buchungssatz hat die Form „Soll“ an „Haben“ wobei unter „Soll“ und „Haben“ die jeweils beteiligten Konten und die dort zu erfassenden Geldbeträge zu verstehen sind, etwa: Kasse an Bank 1.000 Euro Es kann auch mehr als ein Konto unter „Soll“ und/oder unter „Haben“ vorkommen: Wareneinkauf und Vorsteuer an Verbindlichkeiten Die im „Soll“ und im „Haben“ zu buchenden Geldbeträge müssen einander jedoch in der Summe stets entsprechen. Ist das nicht der Fall, so wird die nachfolgende Bilanz nicht ausgewogen sein. Eine unausgewogene Bilanz ist damit immer ein sicheres Zeichen für einen fehlerhaften Buchungssatz. Das im „Soll“ zu bebuchende Konto ist immer zuerst und das im „Haben“ zu buchende Konto immer zuletzt zu nennen.
A79: =A41+1 -> 25
B81: Auf der Soll- und auf der Haben-Seite können jeweils Wertmehrungen oder auch Wertminderungen stehen, was die Angelegenheit ebenfalls nicht erleichtert: man muss die Buchungsregeln genau kennen um zu wissen, ob das zuerst genannte „Soll“-Konto sich durch einen Geschäftsfall mehrt oder mindert; ebenso ist die Nennung des „Haben“-Kontos an zweiter Stelle keine Gewähr dafür, daß dieses Konto eine Mehrung oder Minderung erfährt. Dies kann nur und ausschließlich aus den Buchungsregeln geschlossen werden. Das Wörtchen „AN“ hat damit nur und ausschließlich die Funktion der Trennung der Soll- von den Haben-Konten. Es deutet keine Bewegungs- oder Buchungsrichtung an. Auf folgende Art ist ein Buchungssatz zu bilden:
B83: Die „fünf eisernen Regeln“: 1. Was für Konten sind an der durchzuführenden Buchung beteiligt? Es müssen immer mindestens zwei verschiedene Konten sein, können aber auch wesentlich mehr als zwei Konten werden! 2. Was für Konten sind das? Handelt es sich um Aktiv-, Passiv- (Bestandskonten), Aufwands- oder Erlöskonten? 3. Nehmen diese Konten, jeweils einzeln betrachtet, durch die auf ihnen durchzuführende Buchung ab oder zu? 4. Wo, d.h., im „Soll“ oder im „Haben“, sind diese Zu- oder Abnahmen zu buchen? Verwenden Sie die Buchungsregeln! 5. Aus den bisherigen Erkenntnissen erst im Grundbuch, d. h., durch einen Buchungssatz SOLL AN HABEN, und dann im Hauptbuch (d. h., auf Konten) buchen. Bei elektronischer Buchführung wird die Hauptbuchbuchung vom Programm erledigt, und der Buchhalter muß lediglich die Buchungssätze eingeben.
B85: Allgemein kann man Buchungsvorgänge wie folgt einteilen: 1) Eröffnungsbuchungen sind solche, die der Einrichtung der Buchführung oder der Vorbereitung des Geschäftsjahres (am 1.1.) dienen und 2) laufende Geschäftsbuchungen dienen der Abbildung konkreter Einzelvorgänge des operativen Geschäfts, also wirtschaftlicher Prozesse innerhalb der Unternehmung oder im Austausch mit Dritten während des Geschäftsjahres. 3) Abschlussbuchungen, also Buchungen, die in direktem Zusammenhang mit dem Jahresabschluss stehen. Hier unterscheidet man zwei Kategorien: - vorbereitende Abschlussbuchungen sind alle Buchungen, die Wertbewegungen am Jahresende aufgrund spezifischer Rechtsvorschriften abbilden, die im Jahresabschluss berücksichtigt sein müssen, im Laufe des Geschäftsjahres aber (noch) nicht berücksichtigt werden und - durchführende Abschlussbuchungen sind alle, die den Jahresabschluss selbst erstellen, also das Jahr tatsächlich abschließen.
A88: =A79+1 -> 26
B90: 8.3 | C90: Beispiele für Buchungssätze
B92: Beispiel 1: „Wir kaufen einen neuen Computer im Wert von 8.000 €“. Der Buchungsbeleg ist eine Rechnung = Kauf „auf Ziel“).
B93: 1. Was für Konten sind beteiligt? „Büro- und Geschäftsausstattung“ und „Lieferschulden“ 2. Was für Konten sind das? „Büro- und Geschäftsausstattung“ ist ein Aktivkonto (Vermögensgegenstand!) und „Lieferschulden“ ist ein Passivkonto (Schulden!) 3. Nehmen diese Konten ab oder zu? „Büro- und Geschäftsausstattung“ nimmt zu und „Lieferschulden“ nimmt ebenfalls zu. Es liegt damit eine Bilanzverlängerung vor. 4. Wo, ist zu buchen? „Büro- und Geschäftsausstattung“ im SOLL (wegen Zunahme!) und „Lieferschulden“ im HABEN (ebenfalls wegen der Zunahme) 5. Buchungssatz: „Büro- und Geschäftsausstattung AN Lieferschulden 8.000“
B95: Beispiel 2: „Wir leisten eine Teilzahlung aus vorstehender Rechnung in Höhe von 6.000 € in bar“. Der Buchungsbeleg ist eine Quittung.
B96: Bildung des Buchungssatzes: 1. Was für Konten sind beteiligt? „Lieferschulden“ und „Kasse“ 2. Was für Konten sind das? „Lieferschulden“ ist ein Passivkonto und „Kasse“ ist ein Aktivkonto 3. Nehmen diese Konten ab oder zu? Beide Konten nehmen ab (es handelt sich damit um eine Bilanzverkürzung) 4. Wo, ist zu buchen? „Lieferschulden“ im SOLL (wegen der Abnahme) und „Kasse“ im HABEN (ebenfalls wegen Abnahme) 5. Buchungssatz: „Lieferschulden AN Kasse 6.000“
A99: =A88+1 -> 27
B101: Beispiel 3: „Wir kaufen Rohstoffe im Wert von 10.000 € gegen Barzahlung“. Der Buchungsbeleg ist ebenfalls eine Quittung.
B102: Bildung des Buchungssatzes: 1. Was für Konten sind beteiligt? „Rohstoffe“ und „Kasse“ 2. Was für Konten sind das? „Rohstoffe“ und „Kasse“ sind beides Aktivkonten 3. Nehmen diese Konten ab oder zu? „Rohstoffe“ nimmt zu und „Kasse“ nimmt ab. Es handelt sich daher um einen Aktivtausch 4. Wo, ist zu buchen? „Rohstoffe“ im SOLL (wegen der Zunahme) und „Kasse“ im HABEN (wegen der Abnahme) 5. Buchungssatz: „Rohstoffe AN Kasse 10.000“
B104: Beispiel 4: „Der Lieferant aus Beispiel 1 und 2 gewährt für die Restschuld eine langfristige Stundung“. Der Buchungsbeleg ist ein Handelsbrief.
B105: Bildung des Buchungssatzes: 1. Was für Konten sind beteiligt? „Lieferschulden“ und „Darlehen“ (Darlehensverbindlichkeiten sind immer langfristige Schulden) 2. Was für Konten sind das? „Lieferschulden“ und „Darlehen“ sind beides Passivkonten. Es liegt damit ein Passivtausch vor 3. Nehmen diese Konten ab oder zu? „Lieferschulden“ nimmt ab und „Darlehen“ nimmt zu 4. Wo, ist zu buchen? „Lieferschulden“ im SOLL (wegen der Abnahme) und „Darlehen“ im HABEN (wegen der Zunahme) 5. Buchungssatz: „Lieferschulden AN Darlehen 2.000“
B107: Beispiel 5: „Wir verbrauchen Rohstoffe im Wert von 5.000 €“. Der Buchungsbeleg ist ein Materialentnahmeschein.
B108: 1. Was für Konten sind beteiligt? „Rohstoffaufwand“ und „Rohstoffe“ 2. Was für Konten sind das? „Rohstoffaufwand“ ist ein Aufwandskonto (weil es einen Verbrauch abbildet) und „Rohstoffe“ ist ein Aktivkonto (Bestand an Vermögensgegenständen!) 3. Nehmen diese Konten ab oder zu? „Rohstoffaufwand“ nimmt zu (es kommt ein neuer Verbrauch hinzu) und „Rohstoffe“ nimmt ab (um den Betrag des Verbrauches). Es liegt damit eine Aufwandsbuchung vor, die indirekt eine Verminderung des Eigenkapitals ist. 4. Wo, ist zu buchen? „Rohstoffaufwand“ im SOLL (wegen Verbrauchszunahme!) und „Rohstoffe“ im HABEN (wegen der Abnahme des Bestandes) 5. Buchungssatz: „Rohstoffaufwand AN Rohstoffe 5.000“
B109: In diesem Fall würde der Verbrauch über die GuV-Rechnung an das Eigenkapital abgerechnet werden und der Restbestand noch in der Bilanz erscheinen.
B111: Beispiel 6: „Nach Abschluss eines Projektes schreiben wir einem Kunden eine Rechnung im Wert von 20.000 € für erbrachte Leistungen“.
B112: Bildung des Buchungssatzes: 1. Was für Konten sind beteiligt? „Forderungen“ und „Verkaufserlöse“ 2. Was für Konten sind das? „Forderungen“ ist ein Aktivkonto (auch Forderungen sind Vermögensgegenstände!) und „Verkaufserlöse“ ist ein Ertragskonto (weil Vermögensgegenstände verwertet wurden) 3. Nehmen diese Konten ab oder zu? Beide Konten nehmen zu (es handelt sich damit um eine Ertragsbuchung, die indirekt eine Bilanzverlängerung ist) 4. Wo, ist zu buchen? „Forderungen“ im SOLL (wegen der Zunahme) und „Verkaufserlöse“ im HABEN (ebenfalls wegen Zunahme) 5. Buchungssatz: „Forderungen AN Verkaufserlöse 20.000“
A115: =A99+1 -> 28
B117: 8.4 | C117: Die vier elementaren Buchungsfälle
B119: Man kann sich die Bilanz als Waage („Bilanzwaage“) mit einem kleinen Schälchen für jede Position vorstellen. Jeder Buchungsfall verändert die Gewichte in den Schälchen:
B121: Buchung 1: „Wir kaufen einen neuen Computer im Wert von 8.000 €“. Der Buchungsbeleg ist eine Rechnung (=Kauf „auf Ziel“):
B123: => Geschäftsausstattung: ZUNAHME => Lieferschulden: ZUNAHME Geschäftsausstattung AN Lieferschulden 8.000
B124: Die Summe der Aktiv- und der Passivseite der Bilanz steigen gleichzeitig: Bilanzverlängerung (Bilanzmehrung)
B126: Buchung 2: „Wir leisten eine Teilzahlung aus vorstehender Rechnung in Höhe von 6.000 € in bar“. Der Buchungsbeleg ist eine Quittung.
B128: => Kasse: ABNAHME => Lieferschulden: ABNAHME Lieferschulden AN Kasse 6.000 Die Summe der Aktiv- und der Passivseite der Bilanz sinken gleichzeitig. Bilanzverkürzung (Bilanzminderung)
B130: Buchung 3: „Wir kaufen Rohstoffe im Wert von 10.000 € gegen Barzahlung“. Der Buchungsbeleg ist ebenfalls eine Quittung.
B132: => Rohstoffe: ZUNAHME => Kasse: ABNAHME Rohstoffe AN Kasse 10.000 Die Summe der Aktiva sinkt und steigt zugleich, bleibt also insgesamt gleich. Aktivtausch
B134: Buchung 4: „Der Lieferant aus Buchung 1 und 2 gewährt für die Restschuld eine langfristige Stundung“. Der Buchungsbeleg ist ein Handelsbrief.
B136: => Darlehensschulden: ZUNAHME => Lieferschulden: ABNAHME Lieferschulden AN Darlehensschulden 2.000 € Die Summe der Passiva sinkt und steigt zugleich, bleibt also insgesamt gleich. Passivtausch
A138: =A115+1 -> 29
B141: Jede Bilanzbuchung kann in einen der vier Fälle eingeordnet werden, aber manche komplexere Buchungen gehören zu mehreren Fällen gleichzeitig. Die Buchungsregeln sind so beschaffen, dass bei sach- und regelgerechter Buchung niemals eine unausgewogene Bilanz entstehen kann.
B143: 8.5 | C143: Der Buchungskreislauf der Bilanz-Konten (siehe Anlagen)
B145: Das Eröffnungsbilanzkonto (Zwischenkonto) am Jahresanfang muss „seitenverkehrt“ erscheinen, damit die Buchungslogik „Soll AN Haben“ auch bei den Eröffnungsbuchungen erhalten bleibt. Die Buchungen der Eröffnungssalden lauten: Aktivkonto AN Eröffnungsbilanzkonto Eröffnungsbilanzkonto AN Passivkonto Die Abschlussbuchungen am Jahresende sind: Schlussbilanzkonto AN Aktivkonto Passivkonto AN Schlussbilanzkonto Bei sach- und regelgerechter Buchung kann es daher nie eine unausgewogene Schlussbilanz geben.
B147: 8.6 | C147: Erfolgskonten, GuV und Eigenkapital (siehe Anlagen)
B149: Aufwand - Verbrauch: Minderungen auf Aktivkonten, die Verbräuche darstellen, heißen Aufwand. Sie werden auf einer eigenen Kontenklasse, den Aufwandskonten erfasst. Alle Aufwandskonten mindern eigentlich das Eigenkapital (verkürzen also indirekt die Bilanz). Sie werden aus Gründen der Übersichtlichkeit und Klarheit jedoch über eigene Konten geführt, die Aufwandskonten. Diese werden in der GuV-Rechnung abgeschlossen.
B151: Ertrag - Verwertung: Mehrungen auf Aktivkonten, die keine Umbuchungen anderer Bestände sind, heißen Ertrag oder Erlös. Es handelt sich um die Verwertung von Gütern. Sie mehren indirekt das Eigenkapital, sind also indirekte Bilanzverlängerungen. Erträge werden aus Gründen der Klarheit und Übersichtlichkeit ebenfalls über eigene Konten geführt, die Ertragskonten. Auch die Ertragskonten rechnet man zunächst in die GuV-Rechnung ab.
B153: Gewinn- und Verlustrechnung (GuV, G&V): Diese ist ein Unterkonto zum Konto „Eigenkapital“. Da das Eigenkapital durch direkt abgerechnete Aufwendungen und Erträge jedoch unübersichtlich wäre, und Probleme bei der Zurechnung zu den einzelnen Gesellschaftern entstehen würden, erfasst die GuV-Rechnung zunächst alle erfolgswirksamen Vorgänge, und rechnet dann nur noch deren Saldo (Restgröße), d. h., den Gewinn bzw. Verlust der Rechnungsperiode, an das Konto „Eigenkapital“ ab (bei Personengesellschaften ggfs. in mehreren Teilbuchungen für jeden beteiligten Gesellschafter.)

Sheet 8.5 Bilanz
A2: zu 8.5 Der Buchungskreislauf der Bilanz-Konten (Bestandskonten)
B4: Das Eröffnungsbilanzkonto muss „seitenverkehrt“ erscheinen, damit die Buchungslogik „Soll AN Haben“ auch bei den Eröffnungsbuchungen erhalten bleibt. Die Buchungen der Eröffnungssalden lauten: Aktivkonto AN Eröffnungsbilanzkonto Eröffnungsbilanzkonto AN Passivkonto Die Abschlussbuchungen am Jahresende sind: Schlussbilanzkonto AN Aktivkonto Passivkonto AN Schlussbilanzkonto Bei sach- und regelgerechter Buchung kann es daher nie eine unausgewogene Schlussbilanz geben.
AY6: - nur ein Zwischenkonto -
AW7: (spiegelbildliche Darstellung der Eröffnungsbilanz 1.1.)
K8: Aktiva | M8: Eröffnungsbilanz 01.01. | AG8: Passiva | AV8: Passiva | AY8: Eröffnungsbilanzkonto 01.01. | BS8: Aktiva
J9: Anlagevermögen | W9: Eigenkapital | AU9: =W9 -> Eigenkapital | BI9: =J9 -> Anlagevermögen
J10: BGA | S10: 30000 | AF10: 40000 | BD10: =AF10 -> 40000 | BI10: =J10 -> BGA | BR10: 30000
J11: Umlaufvermögen | BI11: =J11 -> Umlaufvermögen
J12: Rohstoffe | S12: 20000 | W12: Fremdkapital | AU12: =W12 -> Fremdkapital | BI12: =J12 -> Rohstoffe | BR12: 20000
J13: Kasse | S13: 20000 | W13: Darlehen | AF13: 25000 | AU13: =W13 -> Darlehen | BD13: =AF13 -> 25000 | BI13: =J13 -> Kasse | BR13: =S13 -> 20000
W14: Lieferschulden | AF14: 5000 | AU14: =W14 -> Lieferschulden | BD14: =AF14 -> 5000
S15: =SUM(S9:V14) -> 70000 | AF15: =SUM(AF9:AI14) -> 70000 | BD15: =SUM(BD9:BG14) -> 70000 | BR15: =SUM(BR9:BU14) -> 70000
A18: zu 8.5 Der Buchungskreislauf der Bilanz-Konten
D21: 1. Bestandskonten | R21: Fälle siehe bitte 8.4 | AW21: 2. Erfolgskonten | BK21: werden hier zunächst aus Vereinfachung vernachlässigt
AW22: 3. Privatbereich | BK22: siehe Kapitel 11
C26: Soll | E26: =BI10 -> BGA | W26: Haben | Z26: Soll | AB26: =AU13 -> Darlehen | AT26: Haben
C27: AB | J27: =BR10 -> 30000 | N27: Abgänge | T27: 0 | Z27: Abgänge | AG27: 0 | AK27: AB | AQ27: =BD13 -> 25000
C28: Zugänge (1) | J28: 8000 | AK28: Zugänge
AK29: (4) | AQ29: 2000
N30: EB | T30: =J27+J28-T27 -> 38000 | Z30: EB | AG30: =AQ27+AQ29-AG27 -> 27000
J32: =SUM(J27:M31) -> 38000 | T32: =SUM(T27:W31) -> 38000 | AG32: =SUM(AG27:AJ31) -> 27000 | AQ32: =SUM(AQ27:AT31) -> 27000
C34: Soll | E34: =BI12 -> Rohstoffe | W34: Haben | Z34: Soll | AB34: =AU14 -> Lieferschulden | AT34: Haben
C35: AB | J35: =BR12 -> 20000 | N35: Abgänge | T35: 0 | Z35: Abgänge | AK35: AB | AQ35: =BD14 -> 5000
Z36: (2) | AG36: 6000
C37: Zugänge | Z37: (4) | AG37: 2000 | AK37: Zugänge
C38: Kauf (3) | J38: 10000 | AK38: (1) | AQ38: 8000
N40: EB | T40: =J35+J38-T35 -> 30000 | Z40: EB | AG40: =AQ35+AQ38+AQ39++AQ40-AG36-AG37-AG38 -> 5000
J42: =SUM(J35:M41) -> 30000 | T42: =SUM(T35:W41) -> 30000 | AG42: =SUM(AG35:AJ41) -> 13000 | AQ42: =SUM(AQ35:AT41) -> 13000
C44: Soll | E44: =BI13 -> Kasse | W44: Haben | Z44: Soll | AB44: Eigenkapital | AT44: Haben
C45: AB | J45: =BR13 -> 20000 | N45: Abgänge | Z45: Abgänge | AK45: AB | AQ45: =BD10 -> 40000
N46: (2) | T46: 6000 | Z46: Privatentnahme | AG46: =BF54 -> 0
N47: (3) | T47: 10000 | Z47: Verlust (GuV) | AG47: 0
C48: Zugänge | J48: 0 | AK48: Zugänge
AK49: Privateinlage | AQ49: 0
AK50: Gewinn (GuV) | AQ50: 0
N51: EB | T51: =J45+J46+J47+J48+J49+J50+J51+J52-T45-T46-T47-T48-T49-T50 -> 4000 | Z51: EB | AG51: =AQ45+AQ46+AQ47+AQ48+AQ49+AQ50+AQ51+AQ52-AG45-AG46-AG47-AG48-AG49-AG50 -> 40000
J53: =SUM(J45:M52) -> 20000 | T53: =SUM(T45:W52) -> 20000 | AG53: =SUM(AG45:AJ52) -> 40000 | AQ53: =SUM(AQ45:AT52) -> 40000
J58: Aktiva | M58: Schlussbilanz 31.12. | AG58: Passiva
J59: Anlagevermögen | W59: =AB44 -> Eigenkapital | AF59: =AG51 -> 40000
A60: Vermögen | J60: =E26 -> BGA | S60: =T30 -> 38000 | AL60: Kapital
A61: Investition | AL61: abnehmende
A62: zunehmende | J62: Umlaufvermögen | W62: Fremdkapital | AL62: Fristigkeit
A63: Liquidität | J63: =E34 -> Rohstoffe | S63: =T40 -> 30000 | W63: =AB26 -> Darlehen | AF63: =AG30 -> 27000 | AL63: Mittel-
A64: Mittel- | J64: =E44 -> Kasse | S64: =T51 -> 4000 | W64: =AB34 -> Lieferschulden | AF64: =AG40 -> 5000 | AL64: herkunft
A65: verwendung | AL65: Finanzierung
S67: =SUM(S59:V66) -> 72000 | AF67: =SUM(AF59:AI66) -> 72000

Sheet 8.6 GuV
A2: zu 8.6 Erfolgskonten, GuV und Eigenkapital
B4: Das Eröffnungsbilanzkonto muss „seitenverkehrt“ erscheinen, damit die Buchungslogik „Soll AN Haben“ auch bei den Eröffnungsbuchungen erhalten bleibt. Die Buchungen der Eröffnungssalden (bei Geschäftsjahresbeginn bzw. bei Betriebseröffnung) lauten: Aktivkonto AN Eröffnungsbilanzkonto Eröffnungsbilanzkonto AN Passivkonto Die Abschlussbuchungen am Geschäftsjahresende lauten: Schlussbilanzkonto AN Aktivkonto Passivkonto AN Schlussbilanzkonto Bei sach- und regelgerechter Buchung kann es daher nie eine unausgewogene Schlussbilanz geben.
AY6: - Zwischenkonto -
K8: Aktiva | M8: Eröffnungsbilanz 01.01. | AG8: Passiva | AV8: Passiva | AY8: Eröffnungsbilanzkonto 01.01. | BS8: Aktiva
J9: Anlagevermögen | W9: Eigenkapital | AU9: =W9 -> Eigenkapital | BI9: =J9 -> Anlagevermögen
J10: BGA | S10: 200000 | AF10: =40000+170000 -> 210000 | BD10: =AF10 -> 210000 | BI10: =J10 -> BGA | BR10: =S10 -> 200000
J11: Umlaufvermögen | BI11: =J11 -> Umlaufvermögen
J12: Rohstoffe | S12: 20000 | W12: Fremdkapital | AU12: =W12 -> Fremdkapital | BI12: =J12 -> Rohstoffe | BR12: 20000
J13: Kasse | S13: 20000 | W13: Darlehen | AF13: 25000 | AU13: =W13 -> Darlehen | BD13: =AF13 -> 25000 | BI13: =J13 -> Kasse | BR13: =S13 -> 20000
W14: Lieferschulden | AF14: 5000 | AU14: =W14 -> Lieferschulden | BD14: =AF14 -> 5000
S15: =SUM(S9:V14) -> 240000 | AF15: =SUM(AF9:AI14) -> 240000 | BD15: =SUM(BD9:BG14) -> 240000 | BR15: =SUM(BR9:BU14) -> 240000
D18: 1. Bestandskonten | R18: Fälle siehe bitte 8.4 | AW18: 2. Erfolgskonten
AX20: Aufwandskonten = Unterkonten der GuV
AZ22: Soll | BB22: Rohstoffaufwand | BJ22: Haben | BL22: Soll | BN22: Löhne/Gehälter | BV22: Haben | BX22: Soll | BZ22: Sozialvers. AG | CH22: Haben | CJ22: Soll | CL22: Abschreibungen | CT22: Haben
C23: Soll | E23: =BI10 -> BGA | W23: Haben | Z23: Soll | AB23: =AU13 -> Darlehen | AT23: Haben | AZ23: 30000 | BL23: 20000 | BX23: 18000 | CJ23: =T25 -> 42000
C24: AB | J24: =BR10 -> 200000 | N24: Abgänge | Z24: Abgänge | AG24: 0 | AK24: AB | AQ24: =BD13 -> 25000 | BL24: 15000
C25: Zugänge (1) | J25: 8000 | N25: (9) Abschreibung | T25: 42000 | AK25: Zugänge | BF25: =AZ23+AZ24 -> 30000 | BR25: =BL23+BL24 -> 35000 | CD25: =BX23+BX24 -> 18000 | CP25: =CJ23+CJ24 -> 42000
AK26: (4) | AQ26: 2000 | AZ26: =AZ23+AZ24+AZ25 -> 30000 | BF26: =BF25 -> 30000 | BL26: =BL23+BL24+BL25 -> 35000 | BR26: =BR25 -> 35000 | BX26: =BX23+BX24+BX25 -> 18000 | CD26: =CD25 -> 18000 | CJ26: =CJ23+CJ24+CJ25 -> 42000 | CP26: =CP25 -> 42000
N27: EB | T27: =J24+J25-T25 -> 166000 | Z27: EB | AG27: =AQ24+AQ26-AG24 -> 27000
AX28: Ertragskonten = Unterkonten der GuV
J29: =SUM(J24:M28) -> 208000 | T29: =SUM(T24:W28) -> 208000 | AG29: =SUM(AG24:AJ28) -> 27000 | AQ29: =SUM(AQ24:AT28) -> 27000
AZ30: Soll | BB30: Umsatzerlöse | BJ30: Haben | BL30: Soll | BN30: Bestandsver. | BV30: Haben | BX30: Soll | BZ30: sonstige Erträge | CH30: Haben | CJ30: Soll | CL30: Zinserträge | CT30: Haben
C31: Soll | E31: =BI12 -> Rohstoffe | W31: Haben | Z31: Soll | AB31: =AU14 -> Lieferschulden | AT31: Haben | BF31: =J56 -> 120000 | BR31: 0 | CD31: =J57 -> 15000 | CP31: =J58 -> 5000
C32: AB | J32: =BR12 -> 20000 | N32: Abgänge | Z32: Abgänge | AK32: AB | AQ32: =BD14 -> 5000
N33: (5) Verbrauch | T33: =AZ23 -> 30000 | Z33: (2) | AG33: 6000
C34: Zugänge | Z34: (4) | AG34: 2000 | AK34: Zugänge
C35: Kauf (3) | J35: 10000 | AK35: (1) | AQ35: 8000 | AZ35: =BF31+BF32+BF33+BF34-AZ31-AZ32-AZ33-AZ34 -> 120000 | BL35: =BR31+BR32+BR33+BR34+BR35 -> 0 | BX35: =CD31+CD32+CD33+CD34+CD35 -> 15000 | CJ35: =CP31+CP32+CP33+CP34+CP35 -> 5000
AZ36: =AZ35 -> 120000 | BF36: =BF31+BF32+BF33+BF34+BF35 -> 120000 | BL36: =BL35 -> 0 | BR36: =BR31+BR32+BR33+BR34+BR35 -> 0 | BX36: =BX35 -> 15000 | CD36: =CD31+CD32+CD33+CD34+CD35 -> 15000 | CJ36: =CJ35 -> 5000 | CP36: =CP31+CP32+CP33+CP34+CP35 -> 5000
N37: EB | T37: =J32+J35+J36+J37-T33-T34 -> 0 | Z37: EB | AG37: =AQ32+AQ35+AQ36++AQ37-AG33-AG34-AG35 -> 5000
J39: =SUM(J32:M38) -> 30000 | T39: =SUM(T32:W38) -> 30000 | AG39: =SUM(AG32:AJ38) -> 13000 | AQ39: =SUM(AQ32:AT38) -> 13000 | AX39: 3. Privatbereich | BW39: Aufwand | BZ39: Gewinn- und Verlustrechnung | CT39: Ertrag
BW40: =BB22 -> Rohstoffaufwand | CF40: =BF25 -> 30000 | CJ40: =BB30 -> Umsatzerlöse | CS40: =AZ35 -> 120000
C41: Soll | E41: =BI13 -> Kasse | W41: Haben | Z41: Soll | AB41: Eigenkapital | AT41: Haben | BW41: =BN22 -> Löhne/Gehälter | CF41: =BR25 -> 35000 | CJ41: =BN30 -> Bestandsver. | CS41: =BL35 -> 0
C42: AB | J42: =BR13 -> 20000 | N42: Abgänge | Z42: Abgänge | AK42: AB | AQ42: =BD10 -> 210000 | AZ42: Soll | BB42: =AK46 -> Privateinlage | BJ42: Haben | BW42: =BZ22 -> Sozialvers. AG | CF42: =CD25 -> 18000 | CJ42: =BZ30 -> sonstige Erträge | CS42: =BX35 -> 15000
N43: (2) | T43: 6000 | Z43: Privatentnahme | AG43: =BF55 -> 0 | BW43: =CL22 -> Abschreibungen | CF43: =CP25 -> 42000 | CJ43: =CL30 -> Zinserträge | CS43: =CJ35 -> 5000
N44: (3) | T44: 10000 | Z44: Verlust (GuV) | AG44: 0
C45: Zugänge | J45: 0 | AK45: Zugänge
AK46: Privateinlage | AQ46: =AZ47 -> 0
AK47: =BW47 -> (13) Gewinn | AQ47: =CF47 -> 15000 | AZ47: =BF43+BF44+BF45+BF46+BF47 -> 0 | BW47: (13) Gewinn | CF47: =CS40+CS41+CS42+CS43+CS44+CS45+CS46-CF40-CF41-CF42-CF43-CF44-CF45-CF46 -> 15000 | CJ47: Verlust
N48: EB | T48: =J42+J43+J44+J45+J46+J47+J48+J49-T42-T43-T44-T45-T46-T47 -> 4000 | Z48: EB | AG48: =AQ42+AQ43+AQ44+AQ45+AQ46+AQ47+AQ48+AQ49-AG42-AG43-AG44-AG45-AG46-AG47 -> 225000 | AZ48: =AZ47 -> 0 | BF48: =BF43+BF44+BF45+BF46+BF47 -> 0
CF49: =SUM(CF40:CI47) -> 140000 | CS49: =SUM(CS40:CV47) -> 140000
J50: =SUM(J42:M49) -> 20000 | T50: =SUM(T42:W49) -> 20000 | AG50: =SUM(AG42:AJ49) -> 225000 | AQ50: =SUM(AQ42:AT49) -> 225000 | AZ50: Soll | BB50: =Z43 -> Privatentnahme | BJ50: Haben | CR50: Kontrolle: Summendifferenz | CS50: =CS49-CF49 -> 0
C52: Soll | E52: Bank | W52: Haben
C53: AB | J53: 0
N54: Abgänge
C55: Zugänge | N55: (6) Löhne | T55: =BL23 -> 20000 | BF55: =AZ51+AZ52+AZ53+AZ54 -> 0
C56: (10) Verkauf | J56: 120000 | N56: (7) Gehälter | T56: =BL24 -> 15000 | AZ56: =AZ51+AZ52+AZ53+AZ54+AZ55 -> 0 | BF56: =BF55 -> 0
C57: (11) sonstiges | J57: 15000 | N57: (8) SV-Beiträge | T57: =BX23 -> 18000
C58: (12) Zinsertrag | J58: 5000
N59: EB | T59: =J53+J56+J57+J58-T55-T56-T57 -> 87000
J61: =SUM(J53:M60) -> 140000 | T61: =SUM(T53:W60) -> 140000
J64: Aktiva | M64: Schlussbilanz 31.12. | AG64: Passiva
J65: Anlagevermögen | W65: =AB41 -> Eigenkapital | AF65: =AG48 -> 225000
A66: Vermögen | J66: =E23 -> BGA | S66: =T27 -> 166000 | AL66: Kapital
A67: Investition | AL67: abnehmende
A68: zunehmende | J68: Umlaufvermögen | W68: Fremdkapital | AL68: Fristigkeit
A69: Liquidität | J69: =E31 -> Rohstoffe | S69: =T37 -> 0 | W69: =AB23 -> Darlehen | AF69: =AG27 -> 27000 | AL69: Mittel-
A70: Mittel- | J70: =E52 -> Bank | S70: =T59 -> 87000 | W70: =AB31 -> Lieferschulden | AF70: =AG37 -> 5000 | AL70: herkunft
A71: verwendung | J71: =E41 -> Kasse | S71: =T48 -> 4000 | AL71: Finanzierung
Q73: =SUM(S65:V72) -> 257000 | AE73: =SUM(AF65:AI72) -> 257000
AD75: Kontrolle: Bilanzsummendifferenz | AE75: =Q73-AE73 -> 0

Sheet Übung 8
B2: 8 | C2: Übungsaufgabe: Bestands-/ Erfolgsbuchungen
B4: Bilden Sie Buchungssätze für die folgenden Geschäftsvorfälle. Nur Bilanzkonten sind zu berücksichtigen. Die Umsatzsteuer soll in dieser Übung nicht betrachtet werden: 1. Kauf eines Dienstfahrzeuges auf Rechnung 2. Einzahlung von der Kasse auf das Bankkonto 3. Kauf einer Ware vom Lieferanten auf Rechnung 4. Rücksendung der Ware aus der vorstehenden Aufgabe wegen Mängeln 5. Wir nehmen ein Darlehen bei der Bank auf, das unbar (also auf das Bankkonto) ausgezahlt wird 6. Wir gewähren einem Kunden ein Darlehen als Barzahlung 7. Ein Kunde, dem wir letztes Jahr eine Ware verkauft hatten, zahlt seine Schulden bei uns durch Überweisung 8. Der Inhaber legt Kapital durch Barzahlung in das Unternehmen ein 9. Wir zahlen eine Forderung eines Lieferanten, indem wir ihm eine Forderung übereignen (Forderungszession) 10. Kauf eines Computers mit Anzahlung in bar; der Rest wird erst in 4 Wochen fällig
B6: Bilden Sie Buchungssätze für die folgenden Geschäftsvorfälle. Verwenden Sie Bilanz- und Erfolgskonten. Die Umsatzsteuer soll in dieser Übung nicht betrachtet werden: 1. Wir kaufen eine Ware vom Lieferanten auf Rechnung 2. Wir verkaufen einem Kunden die Ware aus der vorstehenden Aufgabe gegen Barzahlung 3. Wir zahlen eine Tilungsrate und Zinsen auf ein Darlehen durch Banklastschrift 4. Verbrauch von Rohstoffen, gebucht per Materialentnahmeschein 5. Ein Teil der Rohstoffe aus der vorstehenden Aufgabe wurde nicht verbraucht und kommt zurück ins Lager 6. Wir kaufen Rohstoffe von einem Lieferanten auf Rechnung 7. Die Miete für das Bürogebäude wird fällig 8. Die Miete aus der vorstehenden Aufgabe wird durch Bankabbuchung gezahlt 9. Wir erhalten einen Steuerbescheid über Gewerbesteuer 10. Der Inhaber erhält einen Einkommensteuerbescheid 11. Kasse AN Maschinen und Außerordentliche Erträge 12. Die GuV wird mit Gewinn abgeschlossen (Einzelkaufmann)
B8: Welche Geschäftsfälle haben zu den nachstehenden Buchungen geführt? 1. Forderungen AN Warenverkauf 2. Warenverkauf AN Forderungen 3. Bank AN Darlehensforderungen und Zinsertrag 4. Forderungen und Kasse AN Verkaufserlöse 5. Außerordentlicher Aufwand AN Kasse 6. Außerordentlicher Aufwand AN Rohstoffe 7. Löhne und Sozialaufwendungen AN Verbindlichkeiten Mitarbeiter, Verbindlichkeiten Finanzamt, Verbindlichkeiten Sozialversicherung 8. Instandhaltungsaufwendungen AN Kasse 9. Lizenzen/immaterielle Vermögensgegenstände an Verbindlichkeiten 10. Warenverkauf AN GuV 11. Schlussbilanz AN Hilfsstoffe 12. Eigenkapital AN GuV (Einzelkaufmann)
B9: 8 | C9: Lösung: Bestands-/Erfolgsbuchungen
B11: 1. Fuhrpark AN Verbindlichkeiten 2. Bank AN Kasse 3. Waren AN Verbindlichkeiten 4. Verbindlichkeiten AN Waren 5. Bank AN Darlehensverbindlichkeiten 6. Darlehensforderungen AN Kasse 7. Bank AN Forderungen 8. Kasse AN Eigenkapital (bzw. Kasse AN Privat = Unterkonto des Eigenkapitals!) 9. Verbindlichkeiten AN Forderungen 10. Geschäftsausstattung AN Kasse und Verbindlichkeiten
B13: 1. Wareneinkauf AN Verbindlichkeiten bzw. Abwicklung über das Privatkonto 2. Kasse AN Warenverkauf Hinweis: der Warenverkauf muss über zwei Konten abgewickelt werden! 3. Darlehensverbindlichkeiten und Zinsaufwand AN Bank 4. Rohstoffaufwand AN Rohstoffe 5. Rohstoffe AN Rohstoffaufwand 6. Rohstoffe AN Verbindlichkeiten 7. Mietaufwand AN Verbindlichkeiten 8. Verbindlichkeiten AN Bank 9. Gewerbesteueraufwendungen AN Verbindlichkeiten Finanzamt 10. Keine Buchung, weil kein betrieblicher Vorgang 11. Verkauf einer Altanlage über Buchwert gegen Barzahlung 12. GuV AN Eigenkapitel
B16: 8 | C16: Übungsaufgabe: Gesamtübung
B18: Ein kleiner Handelsbetrieb stellt zu Beginn eines Jahres die folgende Eröffnungsbilanz auf:
J20: Aktiva | M20: Bilanz 01.01.201X | AG20: Passiva
J21: Anlagevermögen | W21: Eigenkapital
AF22: 26000
A23: zunehmende | J23: Betriebs- und | AL23: abnehmende
A24: Liquidität | J24: Geschäftsausstattung | S24: 40000 | AL24: Fristigkeit
A26: Mittel- | AL26: Mittel-
A27: verwendung | AL27: herkunft
J28: Umlaufvermögen | W28: Fremdkapital
J29: Waren | S29: 10000 | W29: Verbindlichkeiten (Kreditinstitute) | AF29: 30000
J30: Bank | S30: 5000
J31: Kasse | S31: 1000
S35: =SUM(S22:V33) -> 56000 | AF35: =SUM(AF22:AI33) -> 56000
B38: Im Laufe des Geschäftsjahres sind die folgenden Buchungen beispielhaft zu erfassen: 1. Ein neuer Computer im Wert von 2.000 Euro wird auf Ziel (d.h. gegen Rechnung) gekauft. 2. Für den Computer aus Nr. 1 werden durch Überweisung 1.000 Euro angezahlt. 3. Es werden Waren im Wert von 6.000 Euro gegen direkte Banklastschrift gekauft. 4. Die Miete für den Laden i.H.v. 2.000 Euro wird vom Bankkonto abgebucht. 5. Ein Kunde kauft Waren zum Verkaufspreis von 15.000 Euro gegen direkte Bankbuchung (EC-Karte). Diese Waren hatten einen Einkaufspreis i.H.v. 9.000 Euro. 6. Die Bank bucht für das bestehende Darlehen: 5.000 Euro Zinsen und 8.000 Euro Tilgung. 7. An eine studentische Aushilfe werden 400 Euro Lohn in bar bezahlt. Beiträge zur Zwangsversicherung sollen nicht betrachtet werden. 8. Die Schlussinventur findet Waren im Wert von 7.000 Euro im Lager.
B39: Aufgaben: 1. Buchen Sie alle Buchungen im Grundbuch (Journal), d.h. erstellen Sie die Buchungssätze, die diese Buchungsfälle abbilden. 2. Buchen Sie im Hauptbuch, d.h. führen Sie T-Konten. 3. Stellen Sie eine ordnungsgemäße GuV-Rechnung auf. 4. Ermitteln Sie die Schlussbilanz des Geschäftsjahres.

Sheet 8 Anlage
A2: Anlage: Allgemeine Kontenübersicht
B4: Aktiva, Passiva, Aufwands- und Ertragskonten
B6: Aktiva | M6: Passiva | X6: Aufwendungen | AI6: Erträge
B8: Anlagevermögen | M8: Eigenkapital | X8: Rohstoffaufwand | AI8: Warenerlöse
B9: Grundstücke | M9: Vollhafter | X9: (Fertigungsmaterial | AI9: Umsatzerlöse
B10: Gebäude | M10: Kommanditisten | X10: Materialeinzelkosten) | AI10: Mieterträge
B11: Maschinen | M11: gezeichnetes Kapital | X11: Hilfsstoffaufwand | AI11: Pachterträge
B12: Büro/Geschäftsaus- | M12: (Kap.Gesellschaften) | X12: Betriebsstoffaufwand | AI12: Leasingerlöse
B13: stattung (BGA) | M13: Rücklagen | X13: Löhne | AI13: Zinsertrag
B14: Büromaschinen | M14: Bilanzgewinn | X14: Gehälter | AI14: a. o. Ertrag
B15: Fuhrpark | M15: (Kap.Gesellschaften) | X15: Sozialaufwendungen | AI15: Unterkonten
B16: Geringwertige Wirt- | M16: Gewinnvortrag | X16: (AG-Anteil) | AI16: Kundenskonto
B17: schaftsgüter | M17: (Kap.Gesellschaften) | X17: Steuern | AI17: Kundenboni
B18: (Sammelposten) | X18: Gebühren | AI18: Erlösschmälerungen
B19: Wertpapiere des | M19: langfristiges | X19: Rechtsberatungs-
B20: Anlagevermögens | M20: Fremdkapital | X20: aufwand
M21: Darlehen | X21: Büroaufwendungen
B22: Umlaufvermögen | M22: Hypotheken | X22: Kosten des Geld-
B23: Rohstoffe | X23: verkehrs | AI23: Eröffnungskonten
B24: Hilfsstoffe | M24: kurzfristiges | X24: Mietaufwand
B25: Betriebsstoffe | M25: Fremdkapital | X25: Pachtaufwand | AI25: Eröffnungsbilanzkonto
B26: Unfertige Erzeugnisse | M26: Verindlichkeiten aus | X26: Leasingaufwendungen
B27: Fertigerzeugnisse (FE) | M27: Lieferungen/Leistungen | X27: Instandhaltungsauf- | AI27: Abschlusskonten
B28: Wareneinkauf (WEK) | M28: erhaltene Anzahlungen | X28: wand
B29: Unterkonten | M29: Umsatzsteuer | X29: Sondereinzelkosten | AI29: Privatkonto
B30: Lieferantenskonti | M30: Schuldwechsel | X30: des Vertriebs
B31: Lieferantenboni | M31: Bankschulden | X31: Abschreibung | AI31: Betriebsergebnis-
B32: Erlösschmälerungen | M32: Postgiroschulden | X32: Zinsaufwand | AI32: konto
B33: Forderungen aus | M33: Verindlichkeiten an | X33: außerordentlicher
B34: Lieferungen und | M34: Finanzamt | X34: Aufwand (a. o. A.) | AI34: neutrales Ergebnis-
B35: Leistungen (LuL) | M35: Verbindlichkeiten gegen | AI35: konto
B36: geleistete Anzahlungen | M36: Sozialversicherungs-
B37: Zweifelhafte Forderungen | M37: träger | AI37: Gewinn- und Verlust-
B38: sonstige Vermögensgegenstände | M38: sonstige Verbindlich- | AI38: konto
B39: Forderungen an | M39: keiten
B40: Mitarbeiter | AI40: Schlussbilanzkonto
B41: Vorsteuer | M41: Rechnungsabgrenzungs- | AI41: (SBK)
B42: sonstige Forderungen | M42: posten
B43: Schecks | M43: PRAP (passive)
B44: Bankguthaben
B45: Postgiroguthaben
B46: Kasse
B47: Rechnungsabgrenzungs-
B48: posten
B49: ARAP (aktive)
B52: siehe SKR 04 bzw. 03

Sheet 8 Anlage Bilanz
A2: Anlage: vereinfachtes Bilanzgliederungsschema nach BilMoG: § 266 HGB für Kapitalgesellschaften und Co.
A4: XY GmbH, Sitz
A5: Bilanz zum 31. Dezember 201X
A8: AKTIVA | M8: 2013-12-31 | Q8: =+M8-365 -> 2012-12-31 | U8: PASSIVA | AF8: =+M8 -> 2013-12-31 | AJ8: =+Q8 -> 2012-12-31
M10: EUR | O10: EUR | Q10: EUR | S10: EUR | AF10: EUR | AH10: EUR | AJ10: EUR | AL10: EUR
A11: A. | B11: Anlagevermögen | U11: A. | V11: Eigenkapital
B13: I. | C13: Immaterielle Vermögensgegenstände | V13: I. | W13: Gezeichnetes Kapital | AF13: 0 | AJ13: 0
C14: 1. | D14: Selbst geschaffene gewerbliche Schutzrechte und | V14: II. | W14: Kapitalrücklage | AF14: 0 | AJ14: 0
D15: ähnliche Rechte und Werte | M15: 0 | Q15: 0 | V15: III. | W15: Gewinnrücklagen
C16: 2. | D16: entgeltlich erworbene Konzessionen, gewerbliche Schutzrechte und ähnliche | V16: IV. | W16: Gewinnvortrag/Verlustvortrag | AF16: 0 | AJ16: 0
D17: Rechte und Werte sowie Lizenzen an solchen Rechten | V17: V. | W17: Jahresüberschuss/Jahresfehlbetrag | AF17: 0 | AH17: =SUM(AF13:AF17) -> 0 | AJ17: 0 | AL17: =SUM(AJ13:AJ17) -> 0
D18: und Werten | M18: 0 | Q18: 0
C19: 3. | D19: Geschäfts- und Firmentwert | M19: 0 | Q19: 0
C20: 4. | D20: Geleistete Anzahlungen | M20: 0 | O20: =SUM(M17:M20) -> 0 | Q20: 0 | S20: =SUM(Q17:Q20) -> 0
U21: B. | V21: Rückstellungen
B22: II. | C22: Sachanlagen
C23: 1. | D23: Grundstücke, grundstücksgleiche Rechte und Bauten | V23: 1. | W23: Rückstellungen für Pensionen/ähnliche Verpflichtungen | AF23: 0 | AJ23: 0
D24: einschließlich der Bauten auf fremden Grundstücken | Q24: 0 | V24: 2. | W24: Steuerrückstellungen | AF24: 0 | AJ24: 0
C25: 2. | D25: Technische Anlagen und Maschinen | Q25: 0 | V25: 3. | W25: Sonstige Rückstellungen | AF25: 0 | AH25: =SUM(AF23:AF25) -> 0 | AJ25: 0 | AL25: =SUM(AJ23:AJ25) -> 0
C26: 3. | D26: Andere Anlagen, Betriebs- und Geschäftsausstattung | Q26: 0
C27: 4. | D27: Geleistete Anzahlungen und Anlagen im Bau | O27: =SUM(M23:M27) -> 0 | Q27: 0 | S27: =SUM(Q23:Q27) -> 0
B29: III. | C29: Finanzanlagen | U29: C. | V29: Verbindlichkeiten
C30: Beteiligungen | O30: 0 | S30: 0
V31: 1. | W31: Verbindlichkeiten gegenüber Kreditinstituten | AF31: 0 | AJ31: 0
O32: =SUM(O13:O30) -> 0 | S32: =SUM(S13:S30) -> 0 | W32: 0
W33: 0
A34: B. | B34: Umlaufvermögen | V34: 2. | W34: Verbindlichkeiten aus Lieferungen und Leistungen | AF34: 0 | AJ34: 0
W35: 0
B36: I. | C36: Vorräte | W36: 0
C37: 1. | D37: Roh-, Hilfs- und Betriebsstoffe | M37: 0 | Q37: 0 | V37: 3. | W37: Verbindlichkeiten gegenüber Gesellschaftern | AF37: 0 | AJ37: 0
C38: 2. | D38: Unfertige Erzeugnisse und Leistungen | M38: 0 | Q38: 0 | W38: 0
C39: 3. | D39: Fertige Erzeugnisse und Waren | M39: 0 | Q39: 0 | W39: 0
C40: 4. | D40: geleistete Anzahlungen | M40: 0 | O40: =SUM(M37:M40) -> 0 | Q40: 0 | S40: =SUM(Q37:Q40) -> 0 | V40: 4. | W40: Sonstige Verbindlichkeiten | AF40: 0 | AJ40: 0
W41: 0
B42: II. | C42: Forderungen und sonstige Vermögensgegenstände | W42: 0
C43: 1. | D43: Forderungen aus Lieferungen und Leistungen | M43: 0 | Q43: 0 | W43: 0
D44: 0 | W44: 0
D45: 0 | W45: 0
C46: 2. | D46: Forderungen gegen verbundene Unternehmen | M46: 0 | Q46: 0 | W46: 0
D47: 0 | W47: 0
D48: 0 | W48: 0 | AH48: =SUM(AF31:AF48) -> 0 | AL48: =SUM(AJ31:AJ48) -> 0
C49: 3. | D49: Forderungen gegen Unternehmen, mit denen | M49: 0 | Q49: 0
D50: ein Beteiligungsverhältnis besteht
D51: 0 | U51: D. | V51: Rechnungsabgrenzungsposten | AH51: =SUM(AF34:AF51) -> 0 | AL51: =SUM(AJ34:AJ51) -> 0
D52: 0
C53: 4. | D53: Sonstige Vermögensgegenstände | M53: 0 | Q53: 0
D54: 0 | U54: E. | V54: Passive latente Steuern | AH54: =SUM(AF37:AF54) -> 0 | AL54: =SUM(AJ37:AJ54) -> 0
D55: 0 | O55: =SUM(M43:M55) -> 0 | S55: =SUM(Q43:Q55) -> 0
B57: III. | C57: Kassenbestand und Guthaben bei Kreditinstituten | O57: 0 | S57: 0
O59: =SUM(O37:O57) -> 0 | S59: =SUM(S37:S57) -> 0
A61: C. | B61: Rechnungsabgrenzungsposten | O61: 0 | S61: 0
B62: 0
B63: 0
A65: D. | B65: Aktive latente Steuern | O65: 0 | S65: 0
A67: E. | B67: Aktiver Unterschiedsbetrag aus der Vermögensrechnung | O67: 0 | S67: 0
O68: =+O32+O59+O61 -> 0 | S68: =+S32+S59+S61 -> 0 | AH68: =SUM(AH13:AH48) -> 0 | AL68: =SUM(AL13:AL48) -> 0

Sheet 9
A2: ='8'!A138:BA138+1 -> 30
B4: 9 | C4: Verbuchung von Abschreibungen
B6: Abschreibung ist allgemein gesagt diejenige buchhalterische Vorgehensweise, durch welche Vermögensgegenständen niedrigere Wertansätze zugewiesen werden, um den Wertverlust, den diese Vermögensgegenstände im Zeitablauf erleiden, abzubilden. Sie ist damit ein Bewertungsproblem, das die Bilanzierungsentscheidung (Aktivierung) voraussetzt. Die Abschreibung ist sowohl im Steuer- als auch im Handelsrecht vorgeschrieben. Man unterscheidet verschiedene Arten von Abschreibungen:
B8: 9.1 | C8: Arten der Abschreibungen
B10: 1) Planmäßige Abschreibung: Die Abschreibung, die nach einem Abschreibungsplan stattfindet. 2) Außerplanmäßige Abschreibung: Die Abschreibung, die ohne einen Abschreibungsplan aufgrund außerordentlicher wertmindernder Anlässe stattfindet 3) Bilanzielle Abschreibung: Die Abschreibung, die die Wertansätze in der Bilanz vermindert. 4) Kalkulatorische Abschreibung: Die Abschreibung, die die Wertansätze für die Kalkulation ermittelt. Im Gegensatz zur bilanziellen Abschreibung ist sie auf Wiederbeschaffungswerte gerichtet. 5) Direkte Abschreibung: Methode der Abschreibung, die direkt das zu mindernde Anlagekonto berührt. 6) Indirekte Abschreibung: Methode der Abschreibung, die das zu mindernde Anlagekonto nicht berührt, sondern eine passive Korrekturposition bebucht.
B11: 7) Degressive Abschreibung: Abschreibung, die am Anfang der Abschreibungszeit größere und gegen Ende kleinere Abschreibungsbeträge erfaßt, um einen zu Anfang höheren Wertverlust etwa technischer Güter besser abzubilden. 8) Lineare Abschreibung, lineare: Die Abschreibung, die in allen Rechnungsperioden gleich hohe Abschreibungsbeträge erfaßt. 9) Abschreibung nach Maßgabe der Leistung: Die Abschreibung, die sich in ihrer Höhe nach der tatsächlichen Leistung einer Anlage richtet.
B13: 9.2 | C13: Buchungstechnik bei Abschreibungen
B15: Allgemein bildet die Abschreibung eine Wertminderung im Anlagekonto (Anlagevermögen) ab, denn die bilanzielle Abschreibung ist ja eine Absetzung für Abnutzung. Dies wird gemäß den Buchungsregeln als Haben-Buchung im jeweiligen Anlagekonto erfasst:
B17: Der Standartbuchungssatz lautet: Abschreibung (Aufwand).......................... 3.000 AN Anlagekonto (Bestandskonto)......................... 3.000
A20: =A2+1 -> 31
B22: 9.3 | C22: Planmäßige und außerplanmäßige Abschreibung
B24: Diese Methode verteilt bei Vermögensgegenständen des abnutzbaren Anlagevermögens die Anschaffungs- oder Herstellungskosten (= Bemessungsgrundlage = BMG) nach einem vorher festgelegten Plan auf die voraussichtliche Nutzungsdauer. Der steuerrechtliche Ausdruck heißt "Absetzung für Abnutzung" (AfA).
B26: Die planmäßige Abschreibung kann nach verschiedenen Methoden vorgenommen werden, zwischen denen der Bilanzierende wählen kann. Die einmal gewählte Methode muss für die Dauer der Nutzung beibehalten werden, Abweichungen sind nur in außergewöhnlichen Fällen zulässig. In diesem Fall haben Kapitalgesellschaften die Abweichung im Anhang anzugeben, zu begründen und ihren Einfluß auf die Vermögens-, Finanz- und Ertragslage darzustellen. Determinanten des Abschreibungsplanes sind die Höhe der Anschaffungs- oder Herstellungskosten, die voraussichtliche Nutzungsdauer, die gewählte Abschreibungsmethode und die Höhe eines etwaigen Restwertes.
B28: Eine außerplanmäßige Abschreibung dagegen ist ein Abschreibungsverfahren, das bei abnutzbarem und nichtabnutzbarem Anlagevermögen sowie Umlaufvermögen zulässig oder geboten ist, um niedrigere Wertansätze zur Anwendung zu bringen, die sich aus dem Niederstwertprinzip ergeben. Anlass ist also stets ein außerplanmäßiges Schadensereignis, das einen Wertverlust bedingt. Hierfür kommen etwa Zerstörung, Beschädigung oder ähnliche Anlässe in Betracht. Bei Grundstücken können auch die Entdeckung von Umweltlasten, die neu gebaute Autobahn nebenan oder ähnliche Faktoren die Grundlage sein. Die außerplanmäßige Abschreibung ist steuer- wie handelsrechtlich nur bei dauernder Wertminderung zulässig. Ziel ist Verwirklichung von Gläubigerschutz und Vorsichtsprinzip.
B30: 9.4 | C30: Degressive und lineare Abschreibung
B32: Hierbei haben wir es hier mit der planmäßigen Verteilung der Anschaffungs- oder Herstellungskosten auf einen Abschreibungszeitraum zu tun, und zwar im Falle der linearen Abschreibung in gleichen Jahresraten auf die Jahre der Nutzung. Der Abschreibungsprozentsatz ergibt sich aus dem Quotienten aus 100 und der Nutzungsdauer; der Abschreibungsbetrag in Geldeinheiten aus Anschaffungs- oder Herstellungskosten und der Nutzungsdauer:
B34: Die Methode ist einfach zu handhaben und sowohl steuer- als auch handelsrechtlich zulässig (§ 7 Abs. 1 EStG und § 253 HGB). Sie wird häufig angewandt und liefert bei kurzen Nutzungsdauern höhere jährliche Abschreibungsbeträge als die degressive Abschreibungmethode. Durch die Abschaffung des Maßgeblichkeitsgrundsatzes durch die Bilanzrechtsmodernisierung ab 2009/2010 besteht jedoch keine direkte Kopplung mehr zwischen Steuer- und Handelsbilanz. Der reine Umstand, dass ein Abschreibungsverfahren steuerlich zulässig (und üblich) ist begründet nicht, dass die Methode auch handelsrechtlich angewandt werden muss. Die gleichzeitige Anwendung einer Methode in der Handelsbilanz und einer ganz anderen Methode in der Steuerbilanz ist daher zulässig und kann ein Instrument des Steuermanagements bzw. Bilanzpolitik darstellen.
A37: =A20+1 -> 32
B39: Unterschiedliche Methoden der handels- und der steuerlichen Abschreibung können jedoch zu steuerlichen Differenzen und damit zu einer latenten Steuer führen. Der Wechsel von der linearen zur degressiven AfA ist unzulässig (§ 7 Abs. 3 EStG). Das lineare Verfahren ist Voraussetzung, um die degressive Abschreibung zu ermitteln. Da sich die degressive Abschreibung nicht für Nutzungszeiten unter ca. 5 bis 6 Jahren eignet, ist die lineare Methode für diese Anlagegüter das einzige sinnvoll anwendbare Verfahren. Betrachten wir das an einem kleinen Beispiel. Ein Anlagegut im Wert von 100.000 € soll linear abgeschrieben werden. Das ergibt den folgenden linearen Abschreibungsplan:
C42: Jahr | R42: AfA in Euro | AI42: Restbuchwert zum 31.12.
C44: Anschaffungsdatum | R44: 2010-01-01 | AI44: Ausweis auf dem Bestandskonto
C45: Nutzungsdauer | R45: 10 | AI45: zum Beispiel Maschinen, jeweils
C46: Anschaffungskosten | R46: 1000000 | AI46: zum Jahresende:
C48: 2010 | R48: =$R$46/$R$45 -> 100000 | AM48: =R46-R48 -> 900000
C49: =C48+1 -> 2011 | R49: =$R$46/$R$45 -> 100000 | AM49: =AM48-R49 -> 800000
C50: =C49+1 -> 2012 | R50: 100000 | AM50: =AM49-R50 -> 700000
C51: 2013 | R51: 100000 | AM51: 600000
C52: 2014 | R52: 100000 | AM52: 500000
C53: 2015 | R53: 100000 | AM53: 400000
C54: 2016 | R54: 100000 | AM54: 300000
C55: 2017 | R55: 100000 | AM55: 200000
C56: 2018 | R56: 100000 | AM56: 100000
C57: 2019 | R57: 100000 | AM57: 0
B60: Unter einer degressiven Abschreibung dagegen versteht man die planmäßige Verteilung der Anschaffungs- oder Herstellungskosten in fallenden Jahresraten, wobei die Ausgangsbasis des jährlichen Abschreibungsbetrages nicht die Anschaffungs- oder Herstellungskosten, sondern die jeweiligen Restbuchwerte sind. Die degressive Abschreibung ist in § 7 Abs. 2 Satz 2 Teilsätze 2 und 3 EStG geregelt und hat eine relative und eine absolute Grenze. Je nach Anschaffung gelten folgende zulässige maximale degressive Abschreibungen:
C62: Anschaffung | R62: Regel | AI62: maximal
C64: bis 2000 | R64: 3 x lineare AfA | AM64: 0.3
C65: 2001 - 2005 | R65: 2 x lineare AfA | AM65: 0.2
C66: 2006 - 2007 | R66: 3 x lineare AfA | AM66: 0.3
C67: 2008 | R67: keine degressive AfA | AM67: 0
C68: 2009 - 2010 | R68: 2,5 x lineare AfA | AM68: 0.25
C69: ab 2011 | N69: erneute Abschaffung der degressiven AfA | AM69: 0
A72: =A37+1 -> 33
B74: Bei der Entscheidung, welche Formel anwendbar ist, kommt es auf den Anschaffungszeitpunkt an. Die Grenzwerte bleiben für bestehende Wirtschaftsgüter auch nach Änderung der Rechtsvorschriften gleich (Vertrauensschutz). Die alten Vorschriften gelten damit noch u.U. jahrzehntelang fort: Beispiel ein in 2007 angeschaffter Gegenstand darf auch weiterhin mit maximal 30% vom Buchwert degressiv steuerlich abgeschrieben werden. Das gilt auch für 2008, wo die degressive AfA für Neufälle abgeschafft wurde, und für Folgejahre.
B76: Betrachten wir auch hierzu ein Beispiel. Es gelten die oben gemachten Ausgangsannahmen, d. h., die Anlage habe einen Anschaffungskostenwert von 100.000 € und werde über 10 Jahre abgeschrieben. Die Anschaffung liegt in 2002, d. h., die höchste zulässige degressive AfA beträgt 20 %:
C79: Jahr | R79: AfA in Euro | AI79: Zeit-/Restbuchwertzum 31.12.
C81: Anschaffungsdatum | R81: 2002-01-01 | AI81: Ausweis auf dem Bestandskonto
C82: Nutzungsdauer | R82: 10 | AI82: zum Beispiel Maschinen, jeweils
C83: Anschaffungskosten | R83: 100000 | AI83: zum Jahresende:
C85: 2002 | R85: =R83*0.2 -> 20000 | AM85: =R83-R85 -> 80000
C86: =C85+1 -> 2003 | R86: =AM85*0.2 -> 16000 | AM86: =AM85-R86 -> 64000
C87: =C86+1 -> 2004 | R87: =AM86*0.2 -> 12800 | AM87: =AM86-R87 -> 51200
C88: 2005 | R88: =AM87*0.2 -> 10240 | AM88: =AM87-R88 -> 40960
C89: 2006 | R89: =AM88*0.2 -> 8192 | AM89: 32768
C90: 2007 | R90: 6553.6 | AM90: 26214.4
C91: 2008 | R91: 5242.88 | AM91: 20971.52
C92: 2009 | R92: 4194.304 | AM92: 16777.216
C93: 2010 | R93: 3355.4432 | AM93: 13421.7728
C94: 2011 | R94: 2684.35456 | AM94: 10737.41824
C95: =C94+1 -> 2012 | R95: 2147.483648 | AM95: 8589.934592
C96: 2013 | R96: 1717.986918 | AM96: 6871.947674
C97: 2014 | R97: 1374.389535 | AM97: 5497.558139
C98: 2015 | R98: 1099.511628 | AM98: 4398.046511
C99: 2016 | R99: 879.6093022 | AM99: 3518.437209
C100: 2017 | R100: 703.6874418 | AD100: etc. | AM100: 2814.749767 | AY100: etc.
B102: Wird die degressive Abschreibung als alleinige Methode angewandt, so wird der Nullwert offensichtlich nie erreicht, d. h., das abzuschreibende Anlagegut wird nicht voll abgeschrieben. Das ist steuerlich nicht optimal. § 7 Abs. 3 EStG sieht daher die Option eines Wechsels zur linearen Abschreibung vor, wobei der Zeitpunkt dieses Wechsels vom Steuerpflichtigen bestimmt, ein einmal vollzogener Wechsel aber nicht rückgängig gemacht werden kann. Diese Regelung ist eine Durchbrechung des Grundsatzes der Methodenstetigkeit und besitzt Fortgeltung. Soll beispielsweise im vorstehend betrachteten Beispiel im 7. Jahr der Wechsel von der degressiven zur linearen Abschreibung vollzogen werden, so müsste der im 7. Jahr anstehende Restwert von 20.971,52 € für die restliche Zeit linear abgeschrieben werden.
A105: =A72+1 -> 34
B107: Soll, um den Nullpunkt zu erreichen, auf lineare AfA gewechselt werden, so hat sich die Fausregel eingebürgert, zu dem Zeitpunkt zu wechseln, zu dem der degressive Restwert kleiner wird als eine anfängliche lineare AfA-Rate gewesen wäre. Dieses Verfahren eignet sich nicht für kurze und lange, sondern nur für mittlere Nutzungsdauern um ca. 10 Jahre. Die Anwendung der Faustregel setzt die Rechtsverhältnisse der Zeit bis 2000 oder 2006/2007 voraus.
B109: 9.5 | C109: Geringwertige Wirtschaftsgüter (Bewertungsvereinfachung)
B111: Es gibt im Steuerrecht vielfältige Wahlrechte für die Behandlung von geringwertigen Wirtschaftsgütern nach § 6 Abs. 2 und dem Sammelposten nach § 6 Abs. 2a EStG. Um den Rahmen nicht zu sprengen, werden nur die Regelungen erwähnt, die in der Praxis die größte Bedeutung haben:
B112: Durch das Unternehmensteuerreformgesetz wurde (sollte) ab 2008 die Abschreibung der gewingwertigen Wirtschaftsgüter "entbürokratisiert" (werden). Sie ist jedoch jetzt wesentlich komplexer und umständlicher! Grundsätzlich gelten Wirtschaftsgüter im Bereich über 150 Euro (ab 2018: 250 Euro) bis einschließlich 1.000 Euro als geringwertige Wirtschaftsgüter (gWG). Die Verbrauchsfiktionsgrenze wurde damit von 60 Euro auf 150 Euro und ab 2018 auf 250 Euro angehoben. Alles, was unter dieser Grenze liegt, wird im Moment der Anschaffung sofort als Aufwand verbucht. Maßgeblich ist jeweils der einzeln nutzbare („verkehrsfähige“) Gegenstand. Objekte, die weiterveräußert werden sollen (Waren) oder zur Verarbeitung angeschafft werden (Roh-, Hilfs- und Betriebsstoffe) fallen nicht unter diese Grenze. Sie sind weiterhin stets bei Anschaffung zu aktivieren. Die Obergrenze der geringwertigen Wirtschaftsgüter beträgt 1.000 Euro. Dies bedeutet, dass selbst "kleine" Notebook Computer und ähnliche Gegenstände schon als geringwertige Wirtschaftsgüter durchgehen.
B113: Wirtschaftsgüter des Anlagevermögens (abnutzbare, bewegliche), die selbständig nutzungsfähig sind, mit Anschaffungs- oder Herstellungskosten von über 150 Euro und maximal 410 Euro (ab 2018 800 Euro), können im Jahr der Anschaffung oder Herstellung voll abgeschrieben werden. Im Gegensatz zu den Wirtschaftsgütern bis 150 Euro sind hier gesonderte Aufzeichnungspflichten zu erfüllen (§ 6 Abs. 2 Satz 4 und 5 EStG)
A115: =A105+1 -> 35
B117: Diese werden in der Praxis dadurch erfüllt, dass alle Wirtschaftsgüter, die unter diese Regelung fallen erst auf ein Bestandskonto gebucht werden und dann eine Abschlussbuchung auf das Konto Sofortabschreibung GWG vorgenommen wird. Wirtschaftsgüter, deren Anschaffungskosten über 410 Euro (ab 2018: 800 Euro) bis 1.000 Euro liegen, werden in der Praxis in aller Regel genauso aktiviert und auf die betriebsgewöhnliche Nutzungsdauer abgeschrieben wie Wirtschaftsgüter über 1.000 Euro. Von der Regelung zu den Sammelposten nach § 6 Abs. 2a EStG wird in der Regel kein Gebrauch gemacht und deshalb soll diese hier auch nicht besprochen werden.
B119: Ein weiterer wichtiger durch die Unternehmensteuerreform 2008 entstandener Unterschied ist, dass die AfA der gWG auch weiterhin steuerlich vorzunehmen ist, wenn der Gegenstand aus dem Anlagevermögen ausscheidet. Wertminderungen oder -erhöhungen des gWG während seiner fiktiven Abschreibungszeit werden also ignoriert! Die Buchungsmethode bei Verkauf oder Verlust ist also von der bei „normalen“ Anlagegegenständen verschieden. Würde man bei einem Gegenstand, der kein geringwertiges Wirtschaftsgut ist, und der während der Abschreibung aus dem Anlagevermögen ausscheidet, den Verkaufswert mit dem Buchwert abgleichen und einen entsprechenden Aufwand oder Ertrag im Zusammenhang mit dem Ausscheiden des Gegenstandes buchen, ist bei geringwertigen Wirtschaftsgütern ab 2008 die pauschale Abschreibung fortzusetzen und der Gegenstand stets mit einem Ertrag auszubuchen.
B121: Zufammenfassend können Geringwertige Wirtschaftsgüter (GWG) wahlweise wie folgt eingestuft werden: a) GWG mit einem Nettobetrag ohne Vorsteuer bis 410 € (ab 2018: 800 Euro) sind sofort als Betriebsausgabe (Aufwand) gewinnmindernd abzuziehen, wobei im Falle von GWG bis 150 € (ab 2018: 250 Euro) eine gesonderte Aufzeichnung unterbleiben kann (§ 6 Abs. 2 Sätze 4 und 5 EStG ). Lediglich für Wirtschaftsgüter über 150 € (ab 2018: 250 Euro) sind der Tag der Anschaffung/Herstellung/Einlage sowie die Anschaffungs- oder Herstellungskosten gemäß § 6 Abs. 2 Satz 4 EStG in einem gesonderten Verzeichnis zu erfassen, sofern dies nicht bereits aus der Buchführung ersichtlich ist.
B122: b) Alternativ ist es möglich, die GWG mit einem Nettobetrag ohne Vorsteuer von mehr als 150 € (ab 2018: 250 Euro) bis 1.000 € in einen Sammelposten (Pool-Abschreibung) einzustellen und GWG mit einem Nettobetrag von weniger als 150 € (ab 2018: < 250 Euro)sofort abzuschreiben. Der Sammelposten ist analog zur Regelung der Jahre 2008 und 2009 ( Unternehmensteuerreformgesetz 2008, § 6 Abs. 2a EStG a. F.) gewinnmindernd im Jahr der Bildung sowie in den nachfolgenden vier Jahren aufzulösen. Gesonderte Dokumentationsanforderungen bestehen lediglich im Hinblick auf eine ggf. abweichende Wahlrechtsausübung in der Handelsbilanz gemäß § 5 Abs. 1 Sätze 2 und 3 EStG.
B123: c) Daneben besteht weiterhin die Möglichkeit, die beweglichen Wirtschaftsgüter des Anlagevermögens separat zu aktivieren und über die betriebsgewöhnliche Nutzungsdauer abzuschreiben. Hinweis: Es gilt bei der Auswahl der Methoden zu beachten, dass das Stetigkeitsgebot gewahrt wird. Die Möglichkeit der Sofortabschreibung ist dabei stets wirtschaftsgutbezogen individuell und die Sammelpostenregelung stets wirtschaftsjahrbezogen auszuüben, d. h. das Wahlrecht kann nur einheitlich für alle GWG von mehr als 150 Euro (250 Euro), aber nicht mehr als 1.000 € Nettobetrag ohne Vorsteuer ausgeübt werden (siehe beigefügte Anlage Schaubild GWG).
A126: =A115+1 -> 36
B128: 9.6 | C128: Übungen zu Abschreibungen
B130: Übung 9.6.1:
B131: Berechnen und verbuchen Sie die lineare Abschreibung für einen am 30.07.2008 gekauften Transporter mit Anschaffungskosten von 36.000 € für den 31.12.2010; Nutzungsdauer: 8 Jahre.
B134: Industrie UN | J134: 30.07.2008 Kauf: Maschine | X134: Lieferant
M136: Entgelt | O136: 36000
M137: +Umsatzsteuer 19% | O137: =O136*19% -> 6840 | S137: (Vorsteuer)
M138: = Kaufpreis | O138: =O136*1.19 -> 42840
B140: AK
B141: 36000 | E141: Restbuchwert zum 31.12.
E142: =B141-E145 -> 33750 | I142: =E142-I145 -> 29250 | M142: =I142-M145 -> 24750 | Q142: =M142-Q145 -> 20250 | U142: =Q142-U145 -> 15750 | Y142: =U142-Y145 -> 11250 | AC142: =Y142-AC145 -> 6750 | AG142: =AC142-AG145 -> 2250 | AL142: 0
E144: Abschreibung
E145: =B141/8/12*6 -> 2250 | I145: =$B$141/8 -> 4500 | M145: =$B$141/8 -> 4500 | Q145: =$B$141/8 -> 4500 | U145: =$B$141/8 -> 4500 | Y145: =$B$141/8 -> 4500 | AC145: =$B$141/8 -> 4500 | AG145: =$B$141/8 -> 4500 | AL145: =AG142 -> 2250 | AP145: = Summe | AT145: =SUM(E145:AO145) -> 36000
B149: 30.07.08 | E149: 31.12.08 | I149: 31.12.09 | M149: 31.12.10 | Q149: 31.12.11 | U149: 31.12.12 | Y149: 31.12.13 | AC149: 31.12.14 | AG149: 31.12.15 | AL149: 31.12.16
B152: Buchungssatz: | H152: Soll | R152: =SUM(R153:U154) -> 42840 | X152: Haben | AL152: =SUM(AL153:AO154) -> 42840 | AP152: (Kontrollsumme)
B153: 2008: Lieferung | H153: Maschine | R153: =O136 -> 36000 | V153: an | X153: Bank | AL153: =R153+R154 -> 42840
B154: Maschine | H154: Vorsteuer | R154: =R153*0.19 -> 6840 | V154: an
B157: Buchungssatz: | H157: Soll | R157: =SUM(R158:U159) -> 4500 | X157: Haben | AL157: =SUM(AL158:AO159) -> 4500
B158: 31.12.10: | H158: =B159 -> Abschreibung | R158: =M145 -> 4500 | V158: an | X158: =H153 -> Maschine | AL158: =R158+R159 -> 4500
B159: Abschreibung
B162: Buchungssatz: | H162: Soll | R162: =SUM(R163:U164) -> 24750 | X162: Haben | AL162: =SUM(AL163:AO164) -> 24750
B163: 31.12.10: | H163: =B164 -> Schlussbilanz | R163: =M142 -> 24750 | V163: an | X163: Maschine | AL163: =R163+R164 -> 24750
B164: Schlussbilanz
B167: Übung 9.6.2:
B168: Berechnen und verbuchen Sie die lineare Abschreibung (Satz 2,5 %) eines Gebäudes, welches mit Grundstück 1,2 Mio. € Anschaffungskosten hatte. Das Grundstück ist 800 qm groß, vergleichbare Nachbargrundstücke kosten 430 €/qm.
M170: Anschaffungskosten gesamt | O170: 1200000
M171: ./. Grund / Boden | T171: (keine Abschreibung vom Grund / Boden, nur Gebäude wird abgeschrieben)
M172: 800 qm x 430 Euro/qm = | O172: =-800*430 -> -344000
M173: = Gebäude Anschaffungskosten | O173: =SUM(O170:S172) -> 856000
M175: davon 2,5% | O175: =O173*2.5% -> 21400
B178: Buchungssatz: | H178: Soll | R178: =SUM(R179:U180) -> 21400 | X178: Haben | AL178: =SUM(AL179:AO180) -> 21400
B179: Gebäude- | H179: Abschreibung | R179: =O175 -> 21400 | V179: an | X179: Gebäude | AL179: =R179+R180 -> 21400
B180: Abschreibung
A184: =A126+1 -> 37
B187: Übung 9.6.3:
B188: Kauf von 10 Bohrmaschinen am 01.12.2009 zu insgesamt € 3.360; geschätzte Nutzungsdauer: 4 Jahre. Berechnen Sie die steuerlich günstigste Abschreibung! Vorsicht!
B190: AK < 150 | P190: 150 < AK < 1.000 | AD190: AK > 1.000
B196: Sofortaufwand | P196: Pool-AfA: 1/5 | AD196: AfA: Nutzungsdauer
R198: 10 = | U198: 3360 | AD198: Zum Vergleich, wenn nur 1 Maschine zum gleichen Preis angeschafft wird
R200: 1 = | U200: =U198/10 -> 336 | AF200: 1 = | AI200: =U198 -> 3360
P201: 150 < 336 < 1.000 | AD201: 3.360 > 1.000
P204: Pool-Abschreibung 2009: | AD204: Bohrmaschine: AfA 2009
P205: 3.360 : 5 Jahre = | X205: =U198/5 -> 672 | AD205: 3.360 : 4 Jahre = | AL205: =AI200/4 -> 840
M206: beachte zeitanteilig nicht zulässig | AD206: beachte evtl. zeitanteilig
P207: AfA 672 an Sammelposten 2009 672 | AD207: AfA 840 an Bohrmaschine 840
AD209: AfA-Differenz zwischen Pool-AfA bzw. Qualifizierung als normales AfA-Gut: | AE209: =AL205-X205 -> 168
B211: Übung 9.6.4:
B212: Eine Maschine (Anschaffung 25.04.01, Nutzungsdauer 10 Jahre) wird Ende des Jahres 03 mit 4.000 € linear abgeschrieben. a) Wie hoch war der Listenpreis, wenn die Anschaffungsnebenkosten 1.000 € betrugen? b) Wie hoch ist die Abschreibung im Jahr 10, wenn die Maschine noch mindestens im Jahr 11 weiter genutzt werden kann?
M213: 10 x AfA 4.000 | O213: =10*4000 -> 40000
M214: - AK-Nebenkosten | O214: -1000
M215: = Listenpreis netto | O215: =SUM(O213:R214) -> 39000
B217: AK
B218: 40000 | E218: Restbuchwert
E219: =B218-E222 -> 37000 | I219: =E219-I222 -> 33000 | M219: =I219-M222 -> 29000 | Q219: =M219-Q222 -> 25000 | U219: =Q219-U222 -> 21000 | Y219: =U219-Y222 -> 17000 | AC219: =Y219-AC222 -> 13000 | AG219: =AC219-AG222 -> 9000 | AK219: =AG219-AK222 -> 5000 | AO219: =AK219-AO222 -> 1000 | AS219: =AO219-AS222 -> 0
E221: Abschreibung
E222: =B218/10/12*9 -> 3000 | I222: =$B$218/10 -> 4000 | M222: =$B$218/10 -> 4000 | Q222: =$B$218/10 -> 4000 | U222: =$B$218/10 -> 4000 | Y222: =$B$218/10 -> 4000 | AC222: =$B$218/10 -> 4000 | AG222: =$B$218/10 -> 4000 | AK222: =$B$218/10 -> 4000 | AO222: =B218/10 -> 4000 | AS222: =B218/10/12*3 -> 1000
B225: 25.04.01 | E225: 31.12.01 | I225: 31.12.02 | M225: 31.12.03 | Q225: 31.12.04 | U225: 31.12.05 | Y225: 31.12.06 | AC225: 31.12.07 | AG225: 31.12.08 | AK225: 31.12.09 | AO225: 31.12.10 | AS225: 31.12.11
B228: Buchungssatz: | H228: Soll | R228: =SUM(R229:U230) -> 1000 | X228: Haben | AL228: =SUM(AL229:AO230) -> 1000
B229: 31.12.10: | H229: =B230 -> Abschreibung | R229: =AS222 -> 1000 | V229: an | X229: Maschinen | AL229: =R229+R230 -> 1000
B230: Abschreibung
B232: Alternativ:
B233: Buchungssatz: | H233: Soll | R233: =SUM(R234:U235) -> 999 | X233: Haben | AL233: =SUM(AL234:AO235) -> 999
B234: 31.12.10: | H234: =B235 -> Abschreibung bei | R234: =AS222-1 -> 999 | V234: an | X234: Maschinen | AL234: =R234+R235 -> 999
B235: Abschreibung bei | H235: =B236 -> Erinnerungswert
B236: Erinnerungswert
B239: Übung 9.6.5:
B240: Die X-GmbH (Wirtschaftsjahr = Kalenderjahr) ist ein IT-Dienstleister (Wartung von Kopiergeräten) im Raum Rostock. Im August 2011 werden für die Außendienstmitarbeiter drei Smartpads mit einem Stückpreis in Höhe von 238 € inkl. USt sowie fünf Laptops zu je 952 € inkl. USt angeschafft.
B241: Aufgrund des sehr guten Jahresergebnisses wünscht die Geschäftsleitung der X-GmbH eine möglichst steuermindernde Behandlung sämtlicher Investitionen. Die voraussichtliche Nutzungsdauer der Vermögensgegenstände/Wirtschaftsgüter entspricht der betriebsgewöhnlichen Nutzungsdauer.
B243: 1. Aufwandsmaximale Abschreibung in Handels- und Steuerbilanz: Die angeschafften Smartpads weisen Netto-Anschaffungskosten von 200 € auf (238 €/ 1,19). Es handelt sich um bewegliche Wirtschaftsgüter des Anlagevermögens, die einer selbständigen Nutzung fähig sind. Dementsprechend stehen der X-GmbH alle drei Wahlmöglichkeiten des § 6 Abs. 2, 2a EStG bzw. § 7 Abs. 1 Satz 1 EStG zur Verfügung. Aufgrund der intendierten Steuerminderung ist im vorliegenden Fall eine Sofortabschreibung der Smartpads zielführender als eine Aktivierung und Abschreibung über drei bzw. fünf Jahre, da so die vollen 200 € sofort als Aufwand erfasst werden können. Im Zugangszeitpunkt ist deshalb zu buchen:
B244: Buchungssatz: | H244: Soll | R244: =SUM(R245:U246) -> 714 | X244: Haben | AL244: =SUM(AL245:AO246) -> 714 | AP244: (Kontrollsumme)
B245: 08/2011: Lieferung | H245: Sofortabschreibung | R245: 600 | V245: an | X245: Bank | AL245: =R245+R246 -> 714
B246: Smartpads | H246: Vorsteuer | R246: =R245*0.19 -> 114 | V246: an
B248: Durch die Sofortabschreibung der Smartpads wurde das zustehende Wahlrecht ausgeübt, so dass eine Anwendung des Sammelpostens nicht mehr in Betracht kommt. Dementsprechend müssen die Laptops gemäß § 7 Abs. 1 Satz 1 EStG aktiviert und über die Nutzungsdauer von typisierten drei Jahren abgeschrieben werden (Gebot!).
B249: Es ist monatsanteilig abzuschreiben, wobei angefangene Monate vollständig mit eingerechnet werden (§ 7 Abs. 1 Satz 4 EStG ). Es ergeben sich von August bis Dezember fünf Monate, daraus resultiert eine Abschreibung für 2011 in Höhe von 800/3 • (5/12) = 111,11 €. Unter Aktivierung des Zugangs in voller Höhe ergibt sich :
B251: Buchungssatz: | H251: Soll | R251: =SUM(R252:U253) -> 4760 | X251: Haben | AL251: =SUM(AL252:AO253) -> 4760 | AP251: (Kontrollsumme)
B252: 08/2011: Lieferung | H252: BGA | R252: =800*5 -> 4000 | V252: an | X252: Bank | AL252: =R252+R253 -> 4760
B253: Laptops | H253: Vorsteuer | R253: =R252*0.19 -> 760 | V253: an
B255: Buchungssatz: | H255: Soll | R255: =SUM(R256:U257) -> 555.5555556 | X255: Haben | AL255: =SUM(AL256:AO257) -> 555.5555556
B256: 31.12.11: | H256: =B257 -> Abschreibung | R256: =R252/3/12*5 -> 555.5555556 | V256: an | X256: =H252 -> BGA | AL256: =R256+R257 -> 555.5555556
B257: Abschreibung
B259: 2. Variante: Buchung bei der Sammelpostenmethode (Pool-Abschreibung) Sofern im vorliegenden Sachverhalt die Sammelpostenmethode anzuwenden ist, sind sowohl die Smartpads als auch die Laptops dem Sammelposten 2011 (Bestandskonto) zuzuführen, da die jeweiligen Nettoanschaffungskosten mehr als 150 € betragen, aber 1.000 € nicht übersteigen. Bei Zugang werden diese deshalb auf dem entsprechenden Buchungskonto erfasst:
B260: Buchungssatz: | H260: Soll | R260: =SUM(R261:U262) -> 5474 | X260: Haben | AL260: =SUM(AL261:AO262) -> 5474 | AP260: (Kontrollsumme)
B261: 08/2011: Lieferung | H261: Sammelposten 2011 | R261: =800*5+R245 -> 4600 | V261: an | X261: Bank | AL261: =R261+R262 -> 5474
B262: Laptops/Smartpads | H262: Vorsteuer | R262: =R261*0.19 -> 874 | V262: an
B264: Eine monatsanteilige Abschreibung gibt es beim Sammelpostenverfahren nicht. Dementsprechend werden alle Zugänge erfasst und bei Bilanzerstellung die anteilige Auflösung von 1/5 erfasst. Im vorliegenden Fall ergibt sich eine Auflösung des Bilanzpostens wie folgt: 4.600/5 = 920 €:
B266: Buchungssatz: | H266: Soll | R266: =SUM(R267:U268) -> 920 | X266: Haben | AL266: =SUM(AL267:AO268) -> 920 | AP266: (Kontrollsumme)
B267: 12/2011: | H267: Abschreibung | R267: =R261/5 -> 920 | V267: an | X267: =H261 -> Sammelposten 2011 | AL267: =R267+R268 -> 920
B268: Abschreibung | H268: Sammelposten 2011

Sheet Schaubild GWG
A3: Schaubild: (praxisrelevante) Wahlmöglichkeiten bei geringwertigen Wirtschaftsgütern:
A5: 1. Möglichkeit: Sammelposten
B7: 0,00 Euro bis 150,00 Euro | E7: 150,01 Euro bis 1.000,00 Euro | I7: ab 1.000,01 Euro
B8: Sofortabzug als | E8: Einstellung in Sammelposten | I8: Ausweis als Wirtschaftsgut, das
B9: Aufwand | E9: Abschreibung über pauschal 5 Jahre | I9: über die betriebsgewöhnliche
E10: Abgänge aus dem Sammelposten | I10: Nutzungsdauer abzuschreiben ist
E11: bleiben unberücksichtigt
A17: 0,00 Euro | C17: 150,00 Euro | E17: 410,00 Euro | H17: 1.000,00 Euro
A20: 2. Möglichkeit (praxisrelevanter): GWG Sofortabzug
B22: 0,00 Euro bis 150,00 Euro | E22: 150,01 Euro bis 410,00 Euro | H22: ab 410,01 Euro
B23: Sofortabzug als | E23: GWG | H23: Ausweis als Wirtschaftsgut, das
B24: Aufwand | E24: mit Sofortabschreibung | H24: über die betriebsgewöhnliche
H25: Nutzungsdauer abzuschreiben ist
A29: Ab 01.01.2018:
A31: 1. Möglichkeit: Sammelposten
B33: 0,00 Euro bis 250,00 Euro | E33: 250,01 Euro bis 1.000,00 Euro | I33: ab 1.000,01 Euro
B34: Sofortabzug als | E34: Einstellung in Sammelposten | I34: Ausweis als Wirtschaftsgut, das
B35: Aufwand | E35: Abschreibung über pauschal 5 Jahre | I35: über die betriebsgewöhnliche
E36: Abgänge aus dem Sammelposten | I36: Nutzungsdauer abzuschreiben ist
E37: bleiben unberücksichtigt
A43: 0,00 Euro | C43: 250,00 Euro | E43: 800,00 Euro | H43: 1.000,00 Euro
A46: 2. Möglichkeit (praxisrelevanter): GWG Sofortabzug
B48: 0,00 Euro bis 250,00 Euro | E48: 250,01 Euro bis 800,00 Euro | H48: ab 800,01 Euro
B49: Sofortabzug als | E49: GWG | H49: Ausweis als Wirtschaftsgut, das
B50: Aufwand | E50: mit Sofortabschreibung | H50: über die betriebsgewöhnliche
H51: Nutzungsdauer abzuschreiben ist
B54: GWG 2018: Wesentliche Neuerungen
B56: - Die neue gesetzliche Regelung hebt die vorgenannten Grenzwerte im Wesentlichen an. Der neue Grenzwert für
B57: geringwertige Wirtschaftsgüter nach § 6 Abs. 2 Satz 1 GWG beträgt zukünftig 800 Euro.
B58: Bei der Aufzeichnungspflicht nach § 6 Abs. 2 Satz 4 verbleibt es aber bei den 150 Euro!
B59: - Für die Alternative des Sammelpostens nach § 6 Abs. 2a Satz 1 EStG beträgt der untere Grenzwert zukünftig 250 Euro
B60: der ober von 1.000 Euro bleibt unverändert. Unverändert bleiben die übrigen Voraussetzungen und Folgen der
B61: Bildung des Sammelpostens.
B62: - Zudem können gemäß § 6 Abs. 2a Satz 4 EStG Wirtschaftsgüter, die einer selbständigen Nutzung fähig sind, bei einem
B63: Wert von 250 Euro (statt bislang 150 Euro) in voller Höhe im Jahr der Anschaffung oder Herstellung als Betriebsausgabe
B64: abgezogen werden.

Sheet 10
A2: ='9'!A184:BA184+1 -> 38
B4: 10 | C4: Die Umsatzsteuer
B6: 10.1 | C6: Umsatzsteuerpflicht
B8: Der Umsatzsteuer unterliegen gemäß § 1 UStG: 1. Lieferungen und sonstige Leistungen (= Dienstleistungen), die ein Unternehmer gegen Entgelt im Rahmen seines Unternehmens ausführt. 2. Einfuhr von Gegenständen aus dem Drittlandsgebiet in das Zollgebiet (Einfuhrumsatzsteuer). 3. Innergemeinschaftlicher Erwerb im Inland gegen Entgelt.
B10: 10.2 | C10: Systematik der Umsatzsteuer
B12: Die foldende Skizze demonstriert, dass die Umsatzsteuer, im täglichen Sprachgebrauch "Mehrwertsteuer" im Rahmen des Leistungserstellungsprozesses von einem Unternehmer zum nächsten bzw. Endverbraucher fortgeführt („überwälzt“) wird:
B14: 1) Jeder Unternehmer muss die Steuer in seiner Rechnung ausweisen und an die Behörden abführen (die sogenannte Umsatzsteuer-Zahllast). Die im Verkauf berechnete Umsatzsteuer wird also „für“ das Finanzamt erhoben und diesem geschuldet. Sie ist damit eine Verbindlichkeit.
B16: 2) Der Unternehmer erhält die Steuerbeträge, die in den erhaltenen Rechnungen ausgewiesen sind, aber vom Finanzamt erstattet. Die sogenannte Vorsteuer-Überhänge sind also Forderungen gegen das Finanzamt.
B18: Umsatzsteuerschuld und Umsatzsteuerforderung können miteinander verrechnet werden. Dies ist kein Verstoß gegen das Verrechnungsverbot des § 246 Abs. 2 HGB.
B20: Die Umsatzsteuer ist also für alle Unternehmer erfolgsneutral. Da nur der Nichtunternehmer (idR Privatpersonen) die Vorsteuer-Erstattung nicht in Anspruch nehmen kann, trägt dieser am Ende der Leistungskette die Steuerlast. Dies begründet, dass die Steuer aus Sicht der Unternehmer ein Durchlaufposten ist.
B22: 10.3 | C22: Umsatzsteuer im Einkauf- und Verkaufsprozess
B24: USt-pflichtig sind alle entgeltlichen Leistungen eines Unternehmens im Inland. Problem: Ein Produkt kann direkt vom Erzeuger zum Endverbraucher gelangen, dann fällt die USt nur einmal an, liegen auf dem Weg vom Erzeuger der Grundstoffe über die Weiterverarbeitungsindustrie und verschiedene Handelsstufen bis zum Endverbraucher aber z.B. 6 Stufen, fällt sechsmal die USt an. Würde man jetzt die USt kumulieren, hätte es die fatale Folge, dass Produkte für den Endverbraucher um so teurer würden, je arbeitsteiliger die Wirtschaft organisiert ist, dass aber eigentlich unerwünschte Konzentrationsprozesse in der Wirtschaft die Produkte verbilligen würden. Daher gibt es seit 1968 die USt in der Form der nicht-kumulativen.
A27: =A2+1 -> 39
B29: a) Einkauf:
B31: Industrie-UN | L31: Einkauf: Rohstoffe auf Ziel | X31: Urproduktion
K33: Eingangsrechnung:
M34: Entgelt | O34: 400
M35: +Umsatzsteuer 19% | O35: =O34*19% -> 76 | S35: (Vorsteuer = Forderung)
M36: = Kaufpreis | O36: =O34*1.19 -> 476 | S36: (brutto = inklusive Umsatzsteuer)
B38: Verkauf
B39: b) Verkauf:
B42: Industrie-UN | O42: Verkauf fertiges Produkt | X42: Kunde
K44: Ausgangsrechnung:
M45: Entgelt | O45: 500
M46: +Umsatzsteuer 19% | O46: =O45*19% -> 95 | S46: (Umsatzsteuer = Verbindlichkeit)
M47: =Verkaufspreis | O47: =O45*1.19 -> 595 | S47: =S36 -> (brutto = inklusive Umsatzsteuer)
B49: Damit hat unser Industrie-UN selbst USt 76 € bezahlt, von seinem Kunden aber USt 95 € erhalten. Da die USt nur den ENDVERBRAUCHER treffen soll, erhält jeder Weiterverkäufer die selbst beim Einkauf bezahlte USt vom FA zurück (Vorsteuer), d. h. er zieht sie von der beim Verkauf eingenommenen USt ab und überweist den Rest (Zahllast) ans Finanzamt.
B51: Industrie-UN | X51: Finanzamt
M53: Umsatzsteuer | O53: =O46 -> 95 | T53: (aus dem Verkauf)
M54: -Vorsteuer | O54: =O35 -> 76 | T54: (aus dem Einkauf)
M55: = Zahllast | O55: =O53-O54 -> 19 | T55: Umsatzsteuervoranmeldung | AG55: (zum 10. Folgemonats)
T56: Bezahlung ans Finanzamt
O57: oder
M59: Verkauf | O59: =O45 -> 500 | T59: netto
M60: Kauf | O60: =O34 -> 400 | T60: netto
M61: Mehrwert | O61: =O59-O60 -> 100 | T61: x | U61: 0.19 | X61: = | Y61: =O61*U61 -> 19
B63: Im Beispiel beträgt die Zahllast: 95 € ./. 76 € = 19 € (Bezahlung Finanzamt). Dies ist genau der vom Industrie-Unternehmen geschaffene Mehrwert 500 – 400 = 100 x 19% = 19 also der Differenz zwischen Ver- und Einkaufspreis. Daher der Name Mehrwertsteuer!
B65: c) Die Umsatzsteuer-Zahllast muss grundsätzlich jeweils bis zum 10. des Folgemonats der Leistung (= Lieferung der Ware) beim Finanzamt angemeldet und bezahlt werden.
B67: d) Export ist steuerfrei, weil jedes Empfängerland seinen eigenen USt-Satz hat. Beim Import fällt Einfuhrumsatzsteuer (Drittland) an in Höhe der deutschen USt. Bei EU-Importen spricht man von der Erwerbsteuer.
A69: =A27+1 -> 40
B72: e) Der ermäßigte Steuersatz von 7 % gilt für bestimmte Grundnahrungsmittel, Bücher, Zeitungen, Wasser usw., steuerfrei sind z.B. Bankumsätze, Versicherungsumsätze, Ärzte, Zinsen. Der Normalsatz begann 1968 mit 10 % und beträgt seit Januar 2007 inzwischen 19 %.
B74: f) Die USt ist wie z.B. die Tabaksteuer oder Mineralölsteuer eine Verbrauch-Steuer, d.h. sie wird zwar von den Unternehmen ans FA abgeführt, letztlich aber über die Preise vom Endverbraucher getragen.
B76: Umsatzstufe | J76: Verkaufs- | O76: ./.Einkaufs- | T76: = Mehr- | Y76: Umsatz- | AD76: ./. Vor- | AI76: = Zahl-
J77: preis | O77: preis | T77: wert | Y77: Steuer | AD77: Steuer | AI77: last
J78: Entgelt
B79: I. Urproduktion | J79: 3000 | O79: 0 | T79: =J79-O79 -> 3000 | Y79: =J79*19% -> 570 | AD79: =-O79*19% -> 0 | AI79: =Y79+AD79 -> 570
B81: II. Industrie | J81: 4000 | O81: =J79 -> 3000 | T81: =J81-O81 -> 1000 | Y81: =J81*19% -> 760 | AD81: =-O81*19% -> -570 | AI81: =Y81+AD81 -> 190
B83: III. Großhandel | J83: 8000 | O83: =J81 -> 4000 | T83: =J83-O83 -> 4000 | Y83: =J83*19% -> 1520 | AD83: =-O83*19% -> -760 | AI83: =Y83+AD83 -> 760
B85: IV. Einzelhandel | J85: 10000 | O85: =J83 -> 8000 | T85: =J85-O85 -> 2000 | Y85: =J85*19% -> 1900 | AD85: =-O85*19% -> -1520 | AI85: =Y85+AD85 -> 380
B87: Endverbraucher | J87: entfällt | O87: entfällt | T87: =O87 -> entfällt | Y87: entfällt | AD87: entfällt | AI87: entfällt
AH88: MEHRWERT | AI88: 10000
AI89: =SUM(AI79:AM85) -> 1900
AH90: ENDVERBRAUCHER | AI90: =AI88+AI89 -> 11900
B94: 10.4 | C94: Verbuchung der Umsatzsteuer
B96: Beispiel 1: Verkäufe 60.000 > Einkäufe 50.000
B99: Industrie | H99: (1) Einkauf: Rohstoffe auf Ziel | X99: Urproduktion
M101: Entgelt aus Eingangsrechnungen | O101: 50000
M102: +Umsatzsteuer 19% | O102: =O101*19% -> 9500 | S102: (Vorsteuer)
M103: =Kaufpreis (brutto) | O103: =O101*1.19 -> 59500 | S103: (bezahlt)
B105: Verkauf
B107: Industrie | H107: (2) Verkauf fertiges Produkt | X107: Kunde
M109: Entgelt aus Ausgangsrechnungen | O109: 60000
M110: +Umsatzsteuer 19% | O110: =O109*19% -> 11400
M111: =Verkaufspreis (brutto) | O111: =O109*1.19 -> 71400
A114: =A69+1 -> 41
A116: Soll | C116: Rohstoffe | U116: H | X116: Soll | Z116: Umsatzerlöse | AR116: H
A117: Anfangsbestand | H117: 0 | L117: Abgänge | R117: 0
A119: Zugänge (1) | H119: =O101 -> 50000 | AI119: (2) | AO119: =O109 -> 60000
L121: Endbestand | R121: =H117+H118+H119+H121+H122-R117-R118-R119 -> 50000 | X121: Saldo => GuV | AE121: =AO117+AO118+AO119++AO121+AO122-AE117-AE118-AE119 -> 60000
H123: =SUM(H117:K122) -> 50000 | R123: =SUM(R117:U122) -> 50000 | AE123: =SUM(AE117:AH122) -> 60000 | AO123: =SUM(AO117:AR122) -> 60000
A125: Soll | C125: Vorsteuer | U125: H | X125: Soll | Z125: Umsatzsteuer | AR125: H
L126: Abgänge | R126: 0
X127: =C125 -> Vorsteuer | AE127: =R130 -> 9500
A128: Zugänge (1) | H128: =O102 -> 9500 | X128: (3) | AI128: Zugänge (2) | AO128: =O110 -> 11400
L130: Endbestand (3) | R130: =H126+H127+H128+H129+H130+H131-R126-R127-R128-R129 -> 9500 | X130: Zahllast | AE130: =AO126+AO127+AO128+AO129+AO130+AO131-AE126-AE127-AE128-AE129 -> 1900
L131: => Umsatzsteuer | X131: (4)
H132: =SUM(H126:K131) -> 9500 | R132: =SUM(R126:U131) -> 9500 | AE132: =SUM(AE126:AH131) -> 11400 | AO132: =SUM(AO126:AR131) -> 11400
A134: Soll | C134: Forderungen a LuL | U134: H | X134: Soll | Z134: Verbindlichkeiten a LuL | AR134: H
A135: Anfangsbestand | H135: =Q108 -> 0 | L135: Abgänge | X135: Abgänge | AI135: Anfangsbestand | AO135: 0
A137: Zugänge (2) | H137: =O111 -> 71400 | AI137: Zugänge (1) | AO137: =O103 -> 59500
L139: Endbestand | R139: =H135+H136+H137+H138+H139+H140-R135-R136-R137-R138 -> 71400 | X139: Endbestand | AE139: =AO135+AO136+AO137+AO138+AO139+AO140-AE135-AE136-AE137-AE138 -> 59500
H141: =SUM(H135:K140) -> 71400 | R141: =SUM(R135:U140) -> 71400 | AE141: =SUM(AE135:AH140) -> 59500 | AO141: =SUM(AO135:AR140) -> 59500
A143: Soll | C143: Bank | U143: H
A144: Anfangsbestand | H144: =Q117 -> 0 | L144: Abgänge | R144: =AE130 -> 1900
L145: (4)
A146: Zugänge | H146: 0
L148: Endbestand | V148: (= Bankkonto wurde überzogen)
B151: Buchungssatz: | H151: Soll | R151: =SUM(R152:U154) -> 59500 | X151: Haben | AL151: =SUM(AL152:AO154) -> 59500
B152: 1. Einkauf | H152: =C116 -> Rohstoffe | R152: =H119 -> 50000 | V152: an | X152: =Z134 -> Verbindlichkeiten a LuL | AL152: =AO137 -> 59500
H153: =C125 -> Vorsteuer | R153: =H128 -> 9500
B155: Buchungssatz: | H155: Soll | R155: =SUM(R156:U158) -> 71400 | X155: Haben | AL155: =SUM(AL156:AO158) -> 71400
B156: 2. Verkauf | H156: =C134 -> Forderungen a LuL | R156: =H137 -> 71400 | V156: an | X156: =Z116 -> Umsatzerlöse | AL156: =AO119 -> 60000
X157: =Z125 -> Umsatzsteuer | AL157: =AO128 -> 11400
B159: Buchungssatz: | H159: Soll | R159: =SUM(R160) -> 9500 | X159: Haben | AL159: =SUM(AL160) -> 9500
B160: 3. Umbuchung | H160: =Z125 -> Umsatzsteuer | R160: =AE127 -> 9500 | V160: an | X160: =C125 -> Vorsteuer | AL160: =R130 -> 9500
B161: Vorsteuer
B163: Buchungssatz: | H163: Soll | R163: =SUM(R164:U165) -> 1900 | X163: Haben | AL163: =SUM(AL164:AO165) -> 1900
B164: 4. Bezahlung | H164: =Z125 -> Umsatzsteuer | R164: =AE130 -> 1900 | V164: an | X164: =C143 -> Bank | AL164: =R144 -> 1900
B165: Finanzamt
B168: Berechnung der Zahllast gegenüber dem Finanzamt (zum 10. des Folgemonats):
M170: Summe Ausgangsrechnungen (netto) | O170: 60000
M171: Summe Eingangsrechnungen (netto) | O171: 50000
M172: Mehrwert | O172: =O170-O171 -> 10000 | T172: x | U172: 0.19 | X172: = | Y172: =O172*U172 -> 1900
C175: oder: | M175: Umsatzsteuer | O175: =O170*U172 -> 11400
M176: Vorsteuer | O176: =-O171*U172 -> -9500
M177: Zahllast | O177: =O175+O176 -> 1900 | S177: (= Bezahlung ans Finanzamt)
A180: =A114+1 -> 42
B182: Beispiel 2: Verkäufe 60.000 < Einkäufe 100.000
B185: Industrie | H185: (1) Einkauf: Rohstoffe auf Ziel | X185: Urproduktion
M187: Entgelt aus Eingangsrechnungen | O187: 100000
M188: +Umsatzsteuer 19% | O188: =O187*19% -> 19000 | S188: (Vorsteuer)
M189: =Kaufpreis | O189: =O187*1.19 -> 119000
B191: Verkauf
B193: Industrie | H193: (2) Verkauf fertiges Produkt | X193: Kunde
M195: Entgelt aus Ausgangsrechnungen | O195: 60000
M196: +Umsatzsteuer 19% | O196: =O195*19% -> 11400
M197: =Verkaufspreis | O197: =O195*1.19 -> 71400
A202: S | C202: Rohstoffe | U202: H | X202: S | Z202: Umsatzerlöse | AR202: H
A203: Anfangsbestand | H203: 0 | L203: Abgänge | R203: 0
A205: Zugänge (1) | H205: =O187 -> 100000 | AI205: (2) | AO205: =O195 -> 60000
L207: Endbestand | R207: =H203+H204+H205+H207+H208-R203-R204-R205 -> 100000 | X207: Saldo => GuV | AE207: =AO203+AO204+AO205++AO207+AO208-AE203-AE204-AE205 -> 60000
H209: =SUM(H203:K208) -> 100000 | R209: =SUM(R203:U208) -> 100000 | AE209: =SUM(AE203:AH208) -> 60000 | AO209: =SUM(AO203:AR208) -> 60000
A211: S | C211: Vorsteuer | U211: H | X211: S | Z211: Umsatzsteuer | AR211: H
A212: Anfangsbestand | H212: =Q185 -> 0 | L212: Abgänge | R212: 0 | AI212: Anfangsbestand | AO212: 0
X213: =C211 -> Vorsteuer | AE213: =R216 -> 19000
A214: Zugänge (1) | H214: =O188 -> 19000 | X214: (3) | AI214: Zugänge (2) | AO214: =O196 -> 11400
L216: Endbestand (3) | R216: =H212+H213+H214+H215+H216+H217-R212-R213-R214-R215 -> 19000 | AI216: Vorsteuer- | AO216: =AE213-AO214 -> 7600
L217: => Umsatzsteuer | AI217: überhang (4)
H218: =SUM(H212:K217) -> 19000 | R218: =SUM(R212:U217) -> 19000 | AE218: =SUM(AE212:AH217) -> 19000 | AO218: =SUM(AO212:AR217) -> 19000
A220: S | C220: Forderungen a LuL | U220: H | X220: S | Z220: Verbindlichkeiten a LuL | AR220: H
A221: Anfangsbestand | H221: =Q194 -> 0 | L221: Abgänge | X221: Abgänge | AE221: 0 | AI221: Anfangsbestand | AO221: 0
A223: Zugänge (2) | H223: =O197 -> 71400 | AI223: Zugänge (1) | AO223: =O189 -> 119000
L225: Endbestand | R225: =H221+H222+H223+H224+H225+H226-R221-R222-R223-R224 -> 71400 | X225: Endbestand | AE225: =AO221+AO222+AO223+AO224+AO225+AO226-AE221-AE222-AE223-AE224 -> 119000
H227: =SUM(H221:K226) -> 71400 | R227: =SUM(R221:U226) -> 71400 | AE227: =SUM(AE221:AH226) -> 119000 | AO227: =SUM(AO221:AR226) -> 119000
A229: S | C229: Bank | U229: H
A230: Anfangsbestand | H230: =Q203 -> 0
A232: Zugänge (4) | H232: =AO216 -> 7600
L234: Endbestand | R234: =H230+H231+H232+H233+H234+H235-R230-R231-R232-R233 -> 7600
H236: =SUM(H230:K235) -> 7600 | R236: =SUM(R230:U235) -> 7600
A239: =A180+1 -> 43
B241: Buchungssatz: | H241: Soll | R241: =SUM(R242:U244) -> 119000 | X241: Haben | AL241: =SUM(AL242:AO244) -> 119000
B242: 1. Einkauf | H242: =C202 -> Rohstoffe | R242: =H205 -> 100000 | V242: an | X242: =Z220 -> Verbindlichkeiten a LuL | AL242: =AO223 -> 119000
H243: =C211 -> Vorsteuer | R243: =H214 -> 19000
B245: Buchungssatz: | H245: Soll | R245: =SUM(R246:U248) -> 71400 | X245: Haben | AL245: =SUM(AL246:AO248) -> 71400
B246: 2. Verkauf | H246: =C220 -> Forderungen a LuL | R246: =H223 -> 71400 | V246: an | X246: =Z202 -> Umsatzerlöse | AL246: =AO205 -> 60000
X247: =Z211 -> Umsatzsteuer | AL247: =AO214 -> 11400
B249: Buchungssatz: | H249: Soll | R249: =SUM(R250:U251) -> 19000 | X249: Haben | AL249: =SUM(AL250) -> 19000
B250: 3. Umbuchung | H250: =Z211 -> Umsatzsteuer | R250: =AE213 -> 19000 | V250: an | X250: =C211 -> Vorsteuer | AL250: =R216 -> 19000
B251: Vorsteuer
B253: Buchungssatz: | H253: Soll | R253: =SUM(R254:U255) -> 7600 | X253: Haben | AL253: =SUM(AL254:AO255) -> 7600
B254: 4. Bezahlung | H254: =C229 -> Bank | R254: =H232 -> 7600 | V254: an | X254: =Z211 -> Umsatzsteuer | AL254: =AO216 -> 7600
B255: Finanzamt
B258: Berechnung der Vorsteuerüberhangs gegenüber dem Finanzamt (zum 10. des Folgemonats):
M260: Summe Ausgangsrechnungen (netto) | O260: 60000
M261: Summe Eingangsrechnungen (netto) | O261: 100000
M262: Mehrwert | O262: =O260-O261 -> -40000 | T262: x | U262: 0.19 | X262: = | Y262: =O262*U262 -> -7600
C265: oder: | M265: Umsatzsteuer | O265: =O260*U262 -> 11400
M266: Kauf | O266: =-O261*U262 -> -19000
M267: Vorsteuerüberhang | O267: =O265+O266 -> -7600 | S267: (= Erstattung vom Finanzamt)
B270: Gründe für das Entstehen eines Vorsteuerüberhangs:
B272: 1) Hohe Anschaffungen (z. B. Anlagevermögen: Maschinen)
B273: 2) Existenzgründung
B274: 3) Rückläufige / geringe Umsatzerlöse
B276: Anmerkung: Zahllast und Vorsteuerüberhang wurden im 1. und 2. Beispiel auf Bank (Zahlung erfolgt jeweils im Folgemonat) gegengebucht. Für den Monat Dezember wäre aber die Zahllast eine am 31.12. zu bilanzierende sonstige Verbindlichkeit, der Vorsteuerüberhang eine sonstige Forderung, weil die Zahlung jeweils erst im Folgejahr erfolgt.
A280: =A239+1 -> 44
B282: Beispiel 3:
B285: Industrie | H285: (1) ER für Maschinenreparatur | X285: UN
M287: Entgelt aus Eingangsrechnungen | O287: 800
M288: +Umsatzsteuer 19% | O288: =O287*19% -> 152 | S288: (Vorsteuer)
M289: =Bruttorechnungsbetrag | O289: =O287*1.19 -> 952
B291: Industrie | H291: (2) ER für Zeitungsinserat | X291: UN
M293: Entgelt aus Eingangsrechnungen | O293: 500
M294: +Umsatzsteuer 19% | O294: =O293*19% -> 95 | S294: (Vorsteuer)
M295: =Kaufpreis | O295: =O293*1.19 -> 595
A299: S | C299: Aufwand a. Reparatur | U299: H | X299: S | Z299: Aufwand für Inserate | AR299: H
A302: Reparatur (1) | H302: =O287 -> 800 | X302: Inserate (2) | AE302: =O293 -> 500
L304: Saldo => GuV | R304: =H300+H301+H302+H304+H305-R300-R301-R302 -> 800 | AI304: Saldo => GuV | AO304: =AE300+AE301+AE302+AE304+AE305-AO300-AO301-AO302 -> 500
H306: =SUM(H300:K305) -> 800 | R306: =SUM(R300:U305) -> 800 | AE306: =SUM(AE300:AH305) -> 500 | AO306: =SUM(AO300:AR305) -> 500
A308: S | C308: Vorsteuer | U308: H | X308: S | Z308: Umsatzsteuer | AR308: H
A309: Anfangsbestand | H309: =Q285 -> 0 | L309: Abgänge | R309: 0 | AI309: AB | AO309: 0
A311: Reparatur (1) | H311: =O288 -> 152
A313: Inserate (2) | H313: =O294 -> 95 | L313: Endbestand (3) | R313: =H309+H310+H311+H312+H313+H314-R309-R310-R311-R312 -> 247 | X313: Vorsteuer (3) | AE313: =R313 -> 247 | AI313: Vorsteuer- | AO313: =AE313 -> 247
L314: => Umsatzsteuer | AI314: überhang (4)
H315: =SUM(H309:K314) -> 247 | R315: =SUM(R309:U314) -> 247 | AE315: =SUM(AE309:AH314) -> 247 | AO315: =SUM(AO309:AR314) -> 247
A317: S | C317: Bank | U317: H
A318: Anfangsbestand | L318: Abgänge
L319: =A311 -> Reparatur (1) | R319: =H302+H311 -> 952
H320: =AO313 -> 247 | L320: =A313 -> Inserate (2) | R320: =H313+AE302 -> 595
L322: Endbestand
A329: =A280+1 -> 45
B331: Buchungssatz: | H331: Soll | R331: =SUM(R332:U334) -> 952 | X331: Haben | AL331: =SUM(AL332:AO334) -> 952
B332: 1. Reparatur | H332: =C299 -> Aufwand a. Reparatur | R332: =H302 -> 800 | V332: an | X332: =C317 -> Bank | AL332: =R319 -> 952
H333: =C308 -> Vorsteuer | R333: =H311 -> 152
B335: Buchungssatz: | H335: Soll | R335: =SUM(R336:U338) -> 595 | X335: Haben | AL335: =SUM(AL336:AO338) -> 595
B336: 2. Inserat | H336: =Z299 -> Aufwand für Inserate | R336: =AE302 -> 500 | V336: an | X336: =C317 -> Bank | AL336: =R320 -> 595
H337: =C308 -> Vorsteuer | R337: =H313 -> 95
B339: Buchungssatz: | H339: Soll | R339: =SUM(R340) -> 247 | X339: Haben | AL339: =SUM(AL340) -> 247
B340: 3. Umbuchung | H340: =Z308 -> Umsatzsteuer | R340: =AE313 -> 247 | V340: an | X340: =C308 -> Vorsteuer | AL340: =R313 -> 247
B341: Vorsteuer
B343: Buchungssatz: | H343: Soll | R343: =SUM(R344:U345) -> 247 | X343: Haben | AL343: =SUM(AL344:AO345) -> 247
... 48 more rows

Sheet 11
A2: ='10'!A378:BA378+1 -> 47
B4: 11 | C4: Das Privatkonto
B6: 11.1 | C6: Grundlagen und Zweck des Privatkontos
B8: Werden Waren für private, d.h., für nichtbetriebliche Zwecke entnommen, so liegt ein umsatzsteuerpflichtiger Vorgang vor. Dieser sogenannte "Eigenverbrauch" bzw. unentgeltliche Wertabgabe ist als fiktiver Verkauf an den jeweils entnehmenden Unternehmer zu behandeln. Bei einer Personengesellschaft bzw. bei Einzelunternehmen muss dieser Vorgang über das Privatkonto des jeweiligen Gesellschafters bzw. Unternehmers abgerechnet werden. Standardbuchungssatz: Privatkonto (inklusive USt).............................. 1.190 AN Warenabgabe (Ertrag) ...................................................................... 1.000 Umsatzsteuer (Bestandskonto = "Verbindlichkeit")........................... 190
B10: Bei einer Kapitalgesellschaft gibt es keine Privatkonten, weil diese nur für Vollhafter eingerichtet werden. In diesem Fall ist der Verkauf als Forderung gegenüber den Gesellschaftern zu erfassen: Forderungen Gesellschafter ..................... 1.190 AN Warenabgabe (Ertrag) ...................................................................... 1.000 Umsatzsteuer (Bestandskonto = "Verbindlichkeit")........................... 190
B12: Kerngedanke dieses Vorganges ist, dass der Unternehmer nicht besser stehen soll, wenn er Waren für eigene, nichtunternehmerische Zwecke aus seinem Unternehmen entnimmt als ein Privatkunde, der dieselben Waren vom Unternehmen kauft: In beiden Fällen ist eine entsprechende Umsatzsteuer zu berechnen.
B13: Eine private Nutzung oder spätere Entnahme wird über den Tatbestand der Lieferung oder sonstigen Leistung einer gleichgestellten Wertabgabe korrigiert. Durch die Belastung des „Selbstversorgers“ mit Umsatzsteuer soll der selbst versorgende Unternehmer mit dem normalen Endverbraucher gleichgestellt werden (§ 3 Abs. 1b und 9a UStG). Die Selbstversorgung stellt eine fiktive Leistung des Unternehmers an sich selbst dar. Die Bemessungsgrundlage für den „Eigenverbrauch“ orientiert sich dabei nicht an den marktüblichen (Verkaufs-) Preisen, sondern an dem Einkaufspreis bzw. den Kosten, die der selbstversorgende Unternehmer beim Einkauf für sein Unternehmen aufwenden musste (§ 10 Abs. 4 UStG).
A16: =A2+1 -> 48
B18: 11.2 | C18: Gewinn-Ermittlungsmethode durch EK-Vergleich
B21: Eigenkapital zum 31.12.2017
A22: ./. | B22: Eigenkapital zum 01.01.2017
A23: = | B23: Eigenkapitalveränderung (Zunahme oder Abnahme)
A24: ./. | B24: Privateinlagen (z.B. bar)
A25: + | B25: Privatentnahmen (z.B.PKW)
A26: = | B26: Gewinn / Verlust
S28: Beispiel 1 | AA28: Beispiel 2
B29: =B21 -> Eigenkapital zum 31.12.2017 | S29: 70000 | AA29: 30000
A30: ./. | B30: =B22 -> Eigenkapital zum 01.01.2017 | S30: 50000 | AA30: 50000
A31: = | B31: Eigenkapitalveränderung | S31: =S29-S30 -> 20000 | AA31: =AA29-AA30 -> -20000
A32: ./. | B32: Privateinlagen (z. B. bar) | S32: -10000 | AA32: -10000
A33: + | B33: Privatentnahmen (z. B. PKW) | S33: 40000 | AA33: 40000
A34: = | B34: Gewinn (oder Verlust) | S34: =S31+S32+S33 -> 50000 | AA34: =AA31+AA32+AA33 -> 10000
A36: S | C36: Privateinlagen (Unterkonto: EK) | U36: H | X36: Aufw. | Z36: GuV | AR36: Ertr.
A37: Saldo => EK | H37: =-S32 -> 10000 | X37: Material | AE37: 200000 | AI37: Umsatzerlöse | AO37: 260000
L39: Bareinlage | R39: =-S32 -> 10000 | X39: AfA | AE39: 10000
X41: Saldo => GuV | AE41: 50000
H43: =SUM(H37:K42) -> 10000 | R43: =SUM(R37:U42) -> 10000 | AE43: =SUM(AE37:AH42) -> 260000 | AO43: =SUM(AO37:AR42) -> 260000
A45: S | C45: Privatentnahmen (EK) | U45: H | X45: S | Z45: Eigenkapital | AR45: H
X46: Abgänge | AI46: AB | AO46: =S30 -> 50000
A47: PKW | H47: =S33 -> 40000 | X47: Privatentnahmen | AE47: =S33 -> 40000
X48: Verlust | AE48: - | AI48: Zugänge
L49: Saldo => EK | R49: =H47 -> 40000 | X49: EB => SB | AE49: =S29 -> 70000 | AI49: Privateinlagen | AO49: =-S32 -> 10000
AI50: Gewinn | AO50: =AE51-AO49-AO46 -> 50000
H51: =SUM(H46:K50) -> 40000 | R51: =SUM(R46:U50) -> 40000 | AE51: =SUM(AE46:AH50) -> 110000 | AO51: =SUM(AO46:AR50) -> 110000
A53: S | C53: Kasse | U53: H | W53: S | Y53: PKW | AQ53: H
A54: Anfangsbestand | H54: =Q37 -> 0 | L54: Abgänge | R54: 0 | W54: Anfangsbestand | AD54: 50000 | AH54: Abgänge
AH55: AfA | AN55: 10000
A56: Zugänge: Privateinlage | H56: =R39 -> 10000 | W56: Zugänge: | AD56: =AN39 -> 0 | AH56: Privatentnahme | AN56: 40000
L58: EB | R58: =H54+H55+H56+H57+H58+H59-R54-R55-R56-R57 -> 10000 | AH58: EB | AN58: 0
H60: =SUM(H54:K59) -> 10000 | R60: =SUM(R54:U59) -> 10000 | AD60: =SUM(AD54:AG59) -> 50000 | AN60: =SUM(AN54:AQ59) -> 50000
A63: =A16+1 -> 49
CS65: =CS60-CF60 -> 0
J67: Aktiva | M67: Schlussbilanz 31.12. | AG67: Passiva
J68: Anlagevermögen | W68: =Z45 -> Eigenkapital | AF68: =AE49 -> 70000
J69: =Y53 -> PKW | S69: =AN58 -> 0
J70: Maschinen | S70: 60000
J74: Umlaufvermögen | W74: Fremdkapital
J75: =C53 -> Kasse | S75: =R58 -> 10000 | W75: Darlehen | AF75: =AG36 -> 0
S77: =SUM(S68:V76) -> 70000 | AF77: =SUM(AF68:AI76) -> 70000
B80: Buchungssatz: | H80: Soll | R80: =SUM(R81:U82) -> 10000 | X80: Haben | AL80: =SUM(AL81:AO82) -> 10000
B81: 1. Privateinlage | H81: =C53 -> Kasse | R81: =H56 -> 10000 | V81: an | X81: =C36 -> Privateinlagen (Unterkonto: EK) | AL81: =R39 -> 10000
B83: Buchungssatz: | H83: Soll | R83: =SUM(R84:U85) -> 10000 | X83: Haben | AL83: =SUM(AL84:AO85) -> 10000
B84: 2. AfA | H84: Abschreibungen | R84: =AE39 -> 10000 | V84: an | X84: =Y53 -> PKW | AL84: =AN55 -> 10000
B86: Buchungssatz: | H86: Soll | R86: =SUM(R87:R87) -> 40000 | X86: Haben | AL86: =SUM(AL87:AL87) -> 40000
B87: 3. Privat- | H87: =C45 -> Privatentnahmen (EK) | R87: =H47 -> 40000 | V87: an | X87: =Y53 -> PKW | AL87: =AN56 -> 40000
B88: Entnahme
B90: Buchungssatz: | H90: Soll | R90: =SUM(R91:U92) -> 50000 | X90: Haben | AL90: =SUM(AL91:AO92) -> 50000
B91: 4. Abschluss | H91: =C36 -> Privateinlagen (Unterkonto: EK) | R91: =H37 -> 10000 | V91: an | X91: =Z45 -> Eigenkapital | AL91: =AO49 -> 10000
B92: Privatkonten | H92: =Z45 -> Eigenkapital | R92: =AE47 -> 40000 | V92: an | X92: =C45 -> Privatentnahmen (EK) | AL92: =AE47 -> 40000
B95: Buchungssatz: | H95: Soll | R95: =SUM(R96:U97) -> 50000 | X95: Haben | AL95: =SUM(AL96:AO97) -> 50000
B96: 5. Abschluss | H96: =Z36 -> GuV | R96: =AE41 -> 50000 | V96: an | X96: =Z45 -> Eigenkapital | AL96: =AO50 -> 50000
B97: GuV-Konto
B99: Buchungssatz: | H99: Soll | R99: =SUM(R100:U102) -> 140000 | X99: Haben | AL99: =SUM(AL100:AO102) -> 140000
B100: 6. Abschluss | H100: =Z45 -> Eigenkapital | R100: =AE49 -> 70000 | V100: an | X100: =M67 -> Schlussbilanz 31.12. | AL100: =AF68 -> 70000
B101: Schlussbilanz | H101: =M67 -> Schlussbilanz 31.12. | R101: =S70 -> 60000 | V101: an | X101: Maschinen | AL101: =R101 -> 60000
H102: =M67 -> Schlussbilanz 31.12. | R102: =S75 -> 10000 | V102: an | X102: =C53 -> Kasse | AL102: =R58 -> 10000
B104: weiteres Beispiel:
B105: =B29 -> Eigenkapital zum 31.12.2017 | S105: 161000
A106: ./. | B106: =B30 -> Eigenkapital zum 01.01.2017 | S106: 100000
A107: = | B107: Eigenkapitalveränderung | S107: =S105-S106 -> 61000
A108: ./. | B108: Privateinlagen (z. B. Erbschaft) | S108: -50000
A109: + | B109: Privatentnahmen (z. B. bar) | S109: 24000
A110: = | B110: Gewinn (oder Verlust) | S110: 35000
A113: S | C113: Privateinlagen | U113: H | X113: Aufw. | Z113: GuV | AR113: Ertr.
A114: Saldo => EK | H114: =-S108 -> 50000 | X114: Material | AE114: 200000 | AI114: Umsaterlöse | AO114: 245000
L116: Bareinlage | X116: AfA | AE116: 10000
L118: PKW | R118: 40000 | X118: Saldo => GuV | AE118: =AO114-AE114-AE116 -> 35000
L119: bar | R119: 10000
H120: =SUM(H114:K119) -> 50000 | R120: =SUM(R114:U119) -> 50000 | AE120: =SUM(AE114:AH119) -> 245000 | AO120: =SUM(AO114:AR119) -> 245000
A122: =A63+1 -> 50
A125: S | C125: Privatentnahmen | U125: H | X125: S | Z125: Eigenkapital | AR125: H
X126: Abgänge | AI126: AB | AO126: =S106 -> 100000
A127: bar | H127: =S109 -> 24000 | X127: Privatentnahmen | AE127: =S109 -> 24000
X128: Verlust | AE128: - | AI128: Zugänge
L130: Saldo => EK | R130: =H127 -> 24000 | X130: EB | AE130: =S105 -> 161000 | AI130: Privateinlagen | AO130: =-S108 -> 50000
AI131: Gewinn | AO131: =AE118 -> 35000
H132: =SUM(H126:K131) -> 24000 | R132: =SUM(R126:U131) -> 24000 | AE132: =SUM(AE126:AH131) -> 185000 | AO132: =SUM(AO126:AR131) -> 185000
A134: S | C134: Kasse | U134: H | W134: S | Y134: PKW | AQ134: H
A135: Anfangsbestand | H135: 20000 | L135: Privatentnahme | R135: =H127 -> 24000 | W135: Anfangsbestand | AD135: 0 | AH135: Abgänge
AH136: AfA | AN136: 10000
A137: Zugänge: Privateinlage | H137: =R119 -> 10000 | W137: Zugänge: | AD137: =R118 -> 40000
L139: EB | R139: =H135+H136+H137+H138+H139+H140-R135-R136-R137-R138 -> 6000 | AH139: EB | AN139: =AD137-AN136 -> 30000
H141: =SUM(H135:K140) -> 30000 | R141: =SUM(R135:U140) -> 30000 | AD141: =SUM(AD135:AG140) -> 40000 | AN141: =SUM(AN135:AQ140) -> 40000
CS143: =CS141-CF141 -> 0
K144: Aktiva | M144: Schlussbilanz 31.12. | AG144: Passiva
J145: Anlagevermögen | W145: =Z125 -> Eigenkapital | AF145: =AE130 -> 161000
J146: =Y134 -> PKW | S146: =AN139 -> 30000
J147: BGA | S147: =161000-36000 -> 125000
J151: Umlaufvermögen | W151: Fremdkapital
J152: =C134 -> Kasse | S152: =R139 -> 6000 | W152: Darlehen | AF152: =AG113 -> 0
S154: =SUM(S145:V153) -> 161000 | AF154: =SUM(AF145:AI153) -> 161000
B159: Buchungssatz: | H159: Soll | R159: =SUM(R160:U161) -> 50000 | X159: Haben | AL159: =SUM(AL160:AO161) -> 50000
B160: 1. Privateinlage | H160: =C134 -> Kasse | R160: =H137 -> 10000 | V160: an | X160: =C113 -> Privateinlagen | AL160: =R118+R119 -> 50000
H161: =Y134 -> PKW | R161: =AD137 -> 40000
B162: Buchungssatz: | H162: Soll | R162: =SUM(R163:U164) -> 10000 | X162: Haben | AL162: =SUM(AL163:AO164) -> 10000
B163: 2. AfA | H163: Abschreibungen | R163: =AE116 -> 10000 | V163: an | X163: =Y134 -> PKW | AL163: =AN136 -> 10000
B165: Buchungssatz: | H165: Soll | R165: =SUM(R166:U167) -> 24000 | X165: Haben | AL165: =SUM(AL166:AO167) -> 24000
B166: 3. Privat- | H166: =C125 -> Privatentnahmen | R166: =H127 -> 24000 | V166: an | X166: =C134 -> Kasse | AL166: =R135 -> 24000
B167: Entnahme
B169: Buchungssatz: | H169: Soll | R169: =SUM(R170:U171) -> 74000 | X169: Haben | AL169: =SUM(AL170:AO171) -> 74000
B170: 4. Abschluss | H170: =C113 -> Privateinlagen | R170: =H114 -> 50000 | V170: an | X170: =Z125 -> Eigenkapital | AL170: =AO130 -> 50000
B171: Privatkonten | H171: =Z125 -> Eigenkapital | R171: =AE127 -> 24000 | V171: an | X171: =C125 -> Privatentnahmen | AL171: =AE127 -> 24000
B174: Buchungssatz: | H174: Soll | R174: =SUM(R175:U176) -> 35000 | X174: Haben | AL174: =SUM(AL175:AO176) -> 35000
B175: 5. Abschluss | H175: =Z113 -> GuV | R175: =AE118 -> 35000 | V175: an | X175: =Z125 -> Eigenkapital | AL175: =AO131 -> 35000
B176: GuV-Konto
B178: Buchungssatz: | H178: Soll | R178: =SUM(R179:U181) -> 292000 | X178: Haben | AL178: =SUM(AL179:AO181) -> 292000
B179: 6. Abschluss | H179: =Z125 -> Eigenkapital | R179: =AE130 -> 161000 | V179: an | X179: =M144 -> Schlussbilanz 31.12. | AL179: =AF145 -> 161000
B180: Schlussbilanz | H180: =M144 -> Schlussbilanz 31.12. | R180: =S147 -> 125000 | V180: an | X180: BGA | AL180: =R180 -> 125000
H181: =M144 -> Schlussbilanz 31.12. | R181: =S152 -> 6000 | V181: an | X181: =C134 -> Kasse | AL181: =R139 -> 6000
A184: =A122+1 -> 51
B187: 11.2 | C187: Übungsfälle
B189: Übungsfall 1:
B190: a) Bäckermeister August Backe entnimmt p.a. für seine Familie Backwaren und sonstige Lebensmittel im Wert 4.800 € netto (Annahme Steuersatz generell 7 %).
B193: Unternehmer | L193: Entnahme Backwaren | X193: Privat
M195: BMG | O195: 4800
M196: +Umsatzsteuer 7% | O196: =O195*7% -> 336
M197: = Entnahmewert | O197: =O195*1.07 -> 5136
A199: S | C199: Umsatzsteuer | U199: H | X199: Aufw. | Z199: GuV | AR199: Ertr.
AI200: Backwaren | AO200: =O195 -> 4800
L202: Backwaren | R202: =O196 -> 336 | AI202: Wertabgabe (Ertrag!)
X204: Saldo => GuV | AE204: =AO200-AE200-AE202 -> 4800 | AI204: = Ertrag
H206: =SUM(H200:K205) -> 0 | R206: =SUM(R200:U205) -> 336 | AE206: =SUM(AE200:AH205) -> 4800 | AO206: =SUM(AO200:AR205) -> 4800
A208: S | C208: Privatentnahmen (Unterkonto EK) | U208: H | X208: S | Z208: Eigenkapital | AR208: H
X209: Abgänge | AI209: AB
A210: Backwaren | H210: =O197 -> 5136 | X210: Privatentnahmen | AE210: =R213 -> 5136
X211: Verlust | AI211: Zugänge
L213: Saldo => EK | R213: =H210 -> 5136 | X213: EB | AI213: Privateinlagen
AI214: Gewinn | AO214: =AE204 -> 4800
H215: =SUM(H209:K214) -> 5136 | R215: =SUM(R209:U214) -> 5136 | AE215: =SUM(AE209:AH214) -> 5136 | AO215: =SUM(AO209:AR214) -> 4800
B220: Buchungssatz: | H220: Soll | R220: =SUM(R221:U222) -> 5136 | X220: Haben | AL220: =SUM(AL221:AO222) -> 5136
B221: 1. Privatentnahme | H221: =C208 -> Privatentnahmen (Unterkonto EK) | R221: =H210 -> 5136 | V221: an | X221: =AI202 -> Wertabgabe (Ertrag!) | AL221: =AO200 -> 4800
X222: =C199 -> Umsatzsteuer | AL222: =R202 -> 336
B224: Buchungssatz: | H224: Soll | R224: =SUM(R225:U226) -> 5136 | X224: Haben | AL224: =SUM(AL225:AO226) -> 5136
B225: 2. Abschluss Privat | H225: =Z208 -> Eigenkapital | R225: =AE210 -> 5136 | V225: an | X225: =C208 -> Privatentnahmen (Unterkonto EK) | AL225: =R213 -> 5136
B227: Buchungssatz: | H227: Soll | R227: =SUM(R228:U238) -> 4800 | X227: Haben | AL227: =SUM(AL228:AO238) -> 4800
B228: 3. Abschluss | H228: =Z199 -> GuV | R228: =AE204 -> 4800 | V228: an | X228: =Z208 -> Eigenkapital | AL228: =AO214 -> 4800
B229: GuV
A232: =A184+1 -> 52
B236: Übungsfall 2:
B237: Ein Pforzheimer Möbelfabrikant montiert in seinem Privathaus eine Einbauküche mit Herstellungskosten (Material, Löhne usw.) von insgesamt 12.000 € netto.
B242: Unternehmer | L242: Leistungsentnahmen | X242: Privat
M244: BMG | O244: 12000
M245: +Umsatzsteuer 19% | O245: =O244*19% -> 2280
M246: = Wertabgabe (brutto) | O246: =O244*1.19 -> 14280
A250: S | C250: Umsatzsteuer | U250: H | X250: Aufw. | Z250: GuV | AR250: Ertr.
AI251: Leistungen (Ertrag) | AO251: 12000
L253: Leistungen | R253: =O245 -> 2280
X255: Saldo => EK | AE255: =AO251-AE251-AE253 -> 12000
H257: =SUM(H251:K256) -> 0 | R257: =SUM(R251:U256) -> 2280 | AE257: =SUM(AE251:AH256) -> 12000 | AO257: =SUM(AO251:AR256) -> 12000
A259: S | C259: Privatentnahmen | U259: H | X259: S | Z259: Eigenkapital (EK) | AR259: H
X260: Abgänge | AI260: AB
A261: Leistungen | H261: =O246 -> 14280 | X261: Privatentnahmen | AE261: =R264 -> 14280
X262: Verlust | AI262: Zugänge
L264: Saldo => EK | R264: =H261 -> 14280 | X264: EB | AI264: Privateinlagen
AI265: Gewinn | AO265: =AE255 -> 12000
H266: =SUM(H260:K265) -> 14280 | R266: =SUM(R260:U265) -> 14280 | AE266: =SUM(AE260:AH265) -> 14280 | AO266: =SUM(AO260:AR265) -> 12000
B268: Buchungssatz: | H268: Soll | R268: =SUM(R269:U270) -> 14280 | X268: Haben | AL268: =SUM(AL269:AO270) -> 14280
B269: 1. Privatentnahme | H269: =C259 -> Privatentnahmen | R269: =H261 -> 14280 | V269: an | X269: =AI251 -> Leistungen (Ertrag) | AL269: =AO251 -> 12000
X270: =C250 -> Umsatzsteuer | AL270: =R253 -> 2280
B272: Buchungssatz: | H272: Soll | R272: =SUM(R273:U274) -> 14280 | X272: Haben | AL272: =SUM(AL273:AO274) -> 14280
B273: 2. Abschluss Privat | H273: =Z259 -> Eigenkapital (EK) | R273: =AE261 -> 14280 | V273: an | X273: =C259 -> Privatentnahmen | AL273: =R264 -> 14280
B275: Buchungssatz: | H275: Soll | R275: =SUM(R276:U276) -> 12000 | X275: Haben | AL275: =SUM(AL276:AO276) -> 12000
B276: 3. Abschluss | H276: =Z250 -> GuV | R276: =AE255 -> 12000 | V276: an | X276: =Z259 -> Eigenkapital (EK) | AL276: =AO265 -> 12000
B277: GuV
A283: =A232+1 -> 53
B285: Übungsfall 3:
B286: Schmuckfabrikant Glänzle entnimmt aus dem Betriebsvermögen: In bar 5.000 €; Perlencollier 7.800 € (netto!).
B289: Buchungssatz: | H289: Soll | R289: =SUM(R290:U291) -> 14282 | X289: Haben | AL289: =SUM(AL290:AO292) -> 14282
B290: Privatentnahme | H290: Privatentnahme | R290: 14282 | V290: an | X290: Kasse | AL290: 5000
X291: Wertabgabe / Eigenverbrauch | AL291: 7800 | AP291: (GuV: Ertragsbuchung)
X292: Umsatzsteuer | AL292: =AL291*19% -> 1482 | AP292: (= 7.800 x 19%)
C294: Auswirkungen:
C296: => Gewinnauswirkung: | AC296: + | AD296: =AL291 -> 7800 | AM296: (GuV: Wertabgabe)
C298: => Bilanzauswirkung
C299: Anlagevermögen: | AD299: 0 | AM299: (keine)
C300: Umlaufvermögen: | AC300: - | AD300: 5000 | AM300: (Kasse nimmt ab)
C301: Eigenkapital: | AC301: - | AD301: 14282 | AM301: (Privatentnahme)
AC302: + | AD302: 7800 | AM302: (GuV: Wertabgabe/Eigenverbrauch)
AC303: - | AD303: =AD301-AD302 -> 6482 | AM303: (Eigenkapital gesamt)
C304: Fremdkapital: | AC304: + | AD304: =AL292 -> 1482 | AM304: (Verbindlichkeit gegenüber Finanzamt: USt)
C306: => Bilanzsumme: | AC306: - | AD306: =AD300 -> 5000
CS309: =CS307-CF307 -> 0
J311: Aktiva | M311: Schlussbilanz 31.12. | AG311: Passiva
J312: Anlagevermögen | W312: Eigenkapital | AF312: =AG304 -> 0
W313: Privatentnahme | AF313: =-AD301 -> -14282
W314: Eigenverbrauch / GuV | AF314: =AD302 -> 7800
J316: Umlaufvermögen | W316: Fremdkapital
J317: Kasse | S317: =-AD300 -> -5000 | W317: Umsatzsteuer | AF317: =AD304 -> 1482
B319: Auswirkung auf die Bilanzsumme => | S319: =SUM(S312:V318) -> -5000 | AF319: =SUM(AF312:AI318) -> -5000

Sheet 12
A2: ='11'!A283:BA283+1 -> 54
B4: 12 | C4: Organisation der Buchführung
B6: 12.1 | C6: Der Gemeinschaftskontenrahmen der Industrie (GKR)
B8: Bislang haben wir uns lediglich auf die bilanziellen Eigenschaften von Konten konzentiert und die Konten mit einer Bezeichnung benannt. In der Praxis kommt es aber oft darauf an, die Daten der Buchhaltung zwischenbetrieblich oder zwischen verschiedenen Unternehmen vergleichbar zu machen. Man benötigt daher ein unternehmensübergreifendes Ordnungsprinzip. Eine Kontengliederung, die sich nach einem solchen übergeordneten Ordnungsprinzip richtet, heißt auch Kontenrahmen; die konkrete Kontengliederung eines einzelnen Buchführungspflichtigen, die sich nach einem Kontenrahmen richtet, ist der Kontenplan.
B9: siehe SKR 04 bzw. 03
B10: 12.2 | C10: Der Kontenplan
B12: Konkrete Kontenpläne zu betrachten würde den hier gegebenen Rahmen sprengen, ebenso die Diskussion der verschiedenen einzelnen Kontenrahmen. Wir werden allerdings die beiden grundsätzlichen Ordnungsprinzipien darstellen, nach denen nahezu alle Konrentahmen (und damit auch alle Kontenpläne) strukturiert sind, d. h., 1) das Bilanzgliederungsschema und 2) das Prozessgliederungsschema. Grundgedanke hierbei ist, dass der Kontenrahmen die Konten nach einem grundlegenden Ordnungskriterium in Kontenklassen einteilt. Diese wird i. d. R. durch die erste Stelle der Kontonummer repräsentiert:
B14: 1. Stelle: Kontenklasse
C15: 2. und folgende Stellen: weitere Gliederungsebenen
B17: 1 | C17: 0 | E17: 0 | G17: 0 | I17: 0 | P17: Die weiteren Stellen der Kontonummer stehen dem Buchführungspflichtigen dann zur weiteren Gestaltung und Strukturierung seiner Rechnungslegung zur Verfügung und können die Gliederungstiefe beliebig erhöhen.
B19: Beispiel: Vergleichbarmachen der Buchhaltung verschiedener Industriebetriebe
B21: Kontenklassen (z. B. Kontenklasse 4: Kostenarten)
C23: Kontengruppen (z. B. Gruppe 43: Löhne / Gehälter)
F25: Kontenart (z. B. Art 439: Gehälter)
I27: Kontenunterart (z. B. Unterart 4399: Pilotengehälter, Stewardessen)
B30: Kontenrahmen
B31: Übersichtliches Dezimalsystem aller im Industriebetrieb möglichen Konten; nur Empfehlung, kein Zwang
B33: Kontenarten
B34: betriebsspezifische Ausgestaltung
B36: Gliederungsprinzip
B37: orientiert am Leistungs- / Produktionsprozess
A39: =A2+1 -> 55
B41: Das Bilanzgliederungsschema Das Bilanzgliederungsschema ordnet die Kontenklassen nach bilanziellen Tatbeständen, d. h., es bestehen eigene Kontenklassen für die Aktiva, die Passiva, die Aufwendungen und die Erträge. Bekanntester Vertreter ist der Industriekontenrahmen, der als Vorbild für die Mehrzahl der praktisch angewandten Kontenpläne bezeichnet werden kann.
B43: Das Prozessgliederungsschema Dieses Gliederungsschema gliedert die Kontenklassen nach dem betrieblichen Prozess, also ablauforientiert. Es gibt also nicht eine Kontenklasse für die Aktiva und eine andere für die Passiva, sondern eine Kontenklasse für die kurzfristigen bilanziellen Sachverhalte, langfristige Kapitalkonten ebenso wie das Anlagevermögen, und eine andere für kurzfristige Sachverhalte, d.h., Umlaufvermögen ebenso wie kurzfristige Verbindlichkeiten. Die Gliederung hinsichtlich der Bilanz ist also gleichsam „horizontal“, während das Bilanzgliederungsschema sozusagen „vertikal“ gliedert. Diese Grundstruktur erleichtert insbesondere die Ermittlung der horizontalen Bilanzkennziffern. Hinsichtlich der Aufwendungen und Erträge trennt das Prozessgliederungsschema nach Aufwendungen und Kosten bzw. Erträgen und Leistungen, also ebenfalls wiederum nach Prozesskriterien eher als nach bilanziellen Grundtatbeständen. Prozessgegliederte Kontenpläne legen daher die betriebswirtschaftliche Unterscheidung zwischen Aufwendungen und Kosten bzw. Erträgen und Leistungen zugrunde. Dies ermöglicht insbesondere die Buchung der kalkulatorischen Kosten, was ein Alleinstellungsmerkmal dieser Art von Kontenplänen ist.

Sheet Anlage 12
A2: Anlage: Kontenrahmen (vereinfacht dargestellt)
B4: Beispiel: Gliederungsschema Industriekontenrahmen
B6: Kontenklasse 0 | M6: Kontenklasse 1 | X6: Kontenklasse 2
B8: Sachanlagen und | M8: Finanzanlagen und | X8: Vorräte, Forderungen
B9: immaterielle Anlagen | M9: Geldkonten | X9: Aktive RAP
B11: Grundstücke | M11: Beteiligungen | X11: Roh-, Hilfs- und
B12: Gebäude | M12: Ausleihungen | X12: Betriebsstoffe
B13: Maschinen | M13: Wertpapiere | X13: Waren, unfertige
B14: Anlagen | M14: Kassen | X14: und Fertigerzeugnisse
B15: Konzessionen | M15: Banken | X15: Forderungen
B16: gewerbliche Schutzrechte | X16: ARAP
B18: Bilanzkonten Aktiva
B21: Kontenklasse 3 | M21: Kontenklasse 4 | X21: Kontenklasse 5
B23: Eigenkapital, Wertberich- | M23: Verbindlichkeiten | X23: Erträge (Leistungen
B24: tigungen, Rückstellungen | M24: und passive RAP | X24: und neutrale Erträge)
B26: Eigenkapital, | M26: Anleihen, Kredite, | X26: Umsatzerlöse, Bestands-
B27: Sonderposten mit Rück- | M27: Verbindlichkeiten | X27: veränderungen, aktivierte
B28: lagenanteil, EWB, PWB | M28: aus Lieferungen/Leist. | X28: Eigenleistungen, Zinsen
B29: Rückstellungen | M29: sonstige Verbindlich- | X29: und neutrale Erträge
M30: keiten, passive RAP | X30: aller Art
B33: Bilanzkonten Passiva | X33: Erfolgskonten: Erträge
B36: Kontenklasse 6 | M36: Kontenklasse 7 | X36: Kontenklasse 8 | AI36: Kontenklasse 9
B38: Material- und | M38: Zinsen, Steuern, | X38: Eröffnungs- und | AI38: Kosten- und
B39: Personalaufwenden, AfA | M39: sonstige Aufwendungen | X39: Abschlusskonten | AI39: Leistungsrechnung
B41: Materialaufwendungen, | M41: Zinsaufwendungen, | X41: Eröffnungsbilanzkonto | AI41: verrechnete Leistungen
B42: Löhne, Gehälter, SV | M42: Steuern vom Einkommen | X42: Gewinn- und Verlustkonto | AI42: und Kosten, Kosten-
B43: AfA nach verschiedenen | M43: und Ertrag, sonstige | X43: Schlussbilanzkonto | AI43: stellen, Kostenträger,
B44: Anlässen und Arten | M44: Steuern, Einstellungen | AI44: interne Leistungen etc.
M45: in Sonderposten
B48: Erfolgskonten: Aufwendungen/Kosten | X48: Eröffnung/Abschluss | AI48: Kostenrechnung
A51: Anlage: Kontenrahmen (vereinfacht dargestellt)
B53: Ein abschlussgegliederter Kontenrahmen (Abschlussgliederungsprinzip) im Gegensatz zum prozessgegliederten Gemeinschaftskontenrahmen der Industrie (GKR) (Prozessgliederungsprinzip). Der IKR ist eine neuere Entwicklung und derzeit weiter verbreitet als der GKR. Die Kontenklassen 0 bis 8 bilden den Rechnungskreis 1 ab und umschließen die Finanzbuchführung (Dokumentation und Rechnungslegung). Diese ist streng an die Doppik gebunden. Die Kontenklasse 9 bildet die Kosten- und Leistungsrechnung einschließlich der Abgrenzungsrechnung ab (Rechnungskreis 2). Dieser kann buchhaltersich oder statistisch durchgeführt werden. Die Kontenaufteilung im Rechnungskreis 1 des IKR führt durch ihre Abschlussorientierung automatisch zum klaren Ablauf der Abschlussarbeiten. Das gilt auch für Zwischenabschlüsse und für den Aufbau von Sonderbilanzen. Kostenrechnerische Gesichtspunkte entfallen im Rechnungskreis Abs. 1 vollständig. Das ergibt sich schon aus der Übernahme der GuV-Gliederung nach dem Gesamtkostenverfahren (§ 275 Abs. 2 HGB).
B54: siehe SKR 04 bzw. 03

Sheet 13
A2: ='12'!A39:BA39+1 -> 56
B4: 13 | C4: Buchungen im Personalbereich
B6: 13.1 | C6: Ausweis- und Rechnungslegungspflichten
B8: Die dem Personalbereich relevanten Vorschriften und zugrundeliegenden Rechtsquellen sind außerordentlich komplex. Während sich im Handelsrecht und im BGB kaum Vorschriften finden, sind detaillierte Regelungen im Steuerrecht enthalten, insbesondere im Einkommensteuergesetz (EStG) und in der Lohnsteuer-Durchführungsverordnung (LStDV). Die besonderen Ausweispflichten finden sich weiterhin im Sozialgesetzbuch IV (SGB IV).
B10: Für jeden Arbeitnehmer ist ein sogenannten „Lohnkonto“ zu führen, ein gesondert geführtes Konto, auf dem sich die Berechnungsweise des Nettolohnes (Nettoverdienst) und der Abzüge aus dem Bruttolohn nachvollziehen lassen. Das Lohnkonto ist also ein Grundelement der ordnungsgemäßen Buchführung (§ 238 HGB). Aus der Summierung der Lohnkonten der einzelnen Arbeitnehmer läßt sich der Gesamtpersonalaufwand bestimmen. Die Lohnnebenkosten sind dagegen gesondert in Pos. 6b der GuV-Gliederung nach dem Gesamtkostenverfahren unterzubringen.
B12: Die Buchungen im Zusammenhang mit den Arbeitsverhältnissen gehören zu den aufwendigeren Buchungstechniken. Durch arbeits- und sozialrechtliche Aufzeichnungs- und Rechenschaftslegungspflichten besteht eine umfangreiche Nebenbuchhaltung. Es ist zu unterscheiden zwischen den Kosten- und Zahlungsbuchungen: Merke: Gesamter Personalaufwand = Arbeitskosten = Summe aller Ausgaben, Aufwendungen und Kosten, die durch den Produktionsfaktor Arbeit entstanden sind:
B14: Aufwendungen und Kosten: - Berufsgenossenschaftsbeitrag (ca. 4,5 bis ca. 50% der Bruttolohnsumme je nach Gefahrenklasse) - Arbeitgeber-Sozialversicherungsbeitrag, 50%, derzeit: Arbeitgeber-RV (50% von 18,7%) bis maximal zur Beitragsbemessungsgrenze Arbeitgeber-KV (50% von 14,6%) bis maximal zur Beitragsbemessungsgrenze Arbeitgeber-PV (ca. 2,55%/2,8% kinderlos) bis maximal zur Beitragsbemessungsgrenze Arbeitgeber-ALV (50% von 3,0%) bis maximal zur Beitragsbemessungsgrenze Eventuell weitere (freiwillige) Leistungen des Arbeitgebers, z. B. VWL - Gesamt-Bruttoarbeitsentgelt gemäß Arbeitsvertrag/Tarifvertrag etc.
B16: Ausgaben = Zahlungen: - Beitragszahlungen (z. B. die zuständigen Krankenkassen kassieren die Gesamtbeiträge, und leiten sie an die entsprechenden Organisationen weiter) - Steuerabführung (Lohnsteuer des Arbeitnehmes bis zum 10. des Folgemonats) - Nettoauszahlung (ggfs. vorbehaltlich etwaiger Lohnpfändungen z. B. durch Unterhaltsgläubiger)
A19: =A2+1 -> 57
B21: Die Geschäftsbuchführung trennt nur nach Kostenkonten, Verbindlichkeiten und Zahlungskonten, d.h., bucht zum Monatsende die Bruttolohnsummen und Arbeitgebersozialversicherungsanteile als Kostenbestandteil, die Nettoauszahlung als Überweisung und den Rest als Verbindlichkeit; zum 10. des Folgemonats werden diese Verbindlichkeiten dann bilanzverkürzend ausgebucht. Die Kosten- und Leistungsrechnung unterscheidet die drei wesentlichen Kostenarten: Einzelkosten, Sozial- und Unproduktivlöhne und Sozialkosten. Sie muss diese Unterscheidung treffen, um im Rahmen der Betriebsabrechnung zu einer korrekten und vollständigen Zuordnung der Gemeinkosten auf die Einzelkosten zu kommen, was für eine richtige und aussagekräftige Zuschlagskalkulation unerläßlich ist.
B23: Wesentlicher Buchungsbeleg der Lohnbuchhaltung ist das Lohnjournal, in dem die Software die einzelnen Bruttolöhne und Abzüge berechnet hat. Anders als in den Abrechnungen der einzelnen Mitarbeiter weist das Lohnjournal nur noch die Gesamtsummen aus. Standardbuchungssatz Beispiel: Lohn/Gehalt (Aufwand) ...................................... 10.000 AG Anteil Gesetzliche SV (Aufwand)...................... 2.250 AN Verbindlichkeiten / Bank Mitarbeiter....................................... 5.590 Verbindlichkeiten Finanzamt................................................... 2.110 Verbindlichkeiten SV (Sozialversicherungsträger) ................ 4.550
A26: =A19+1 -> 58
B29: 13.2 | C29: Übungsfälle zur Lohn-/Gehaltsverbuchung
B31: Fall 1:
B32: Gehaltsabrechnung November 2017
B33: für Frau Zänkle (ledig, ohne Kinder, Steuerklasse I)
B35: Bruttogehalt | AJ35: 3000
B37: Sozialversicherung
B38: (Arbeitnehmer-Anteil) | T38: 1/2
B39: Rentenversicherung | O39: 0.187 | T39: =O39*0.5 -> 0.0935 | AB39: =-AJ35*T39 -> -280.5
B40: Arbeitslosenversicherung | O40: 0.03 | T40: =O40*0.5 -> 0.015 | AB40: =-AJ35*T40 -> -45
B41: Krankenversicherung | O41: 0.146 | T41: =-AB41/AJ35 -> 0.082 | AB41: -246
B42: zzgl. nur AN (kinderlos)
B43: Pflegeversicherung | AB43: -36.75 | AJ43: =SUM(AB39:AI43) -> -608.25
A45: - | B45: persönliche Steuern
B46: (nur Arbeitnehmer)
B47: Lohnsteuer | O47: =-AB47/AJ35 -> 0.14372 | AB47: -431.16
B48: Kirchensteuer | O48: 0.08 | S48: x | T48: =AB47 -> -431.16 | AB48: =O48*AB47 -> -34.4928
B49: Solidaritätszuschlag | O49: 0.055 | S49: x | T49: =AB47 -> -431.16 | AB49: =AB47*O49 -> -23.7138 | AJ49: =SUM(AB47:AI49) -> -489.3666
A52: = | B52: Nettogehalt (Bankauszahlung) | AJ52: =SUM(AJ35:AQ49) -> 1902.3834
B55: Arbeitgeberanteil zur Sozialversicherung
B56: = Arbeitnehmeranteil-Anteil ohne nur AN (kinderlos) | AJ56: =219+29.25+294+45 -> 587.25
B57: + Insolvenzgeldumlage U3 (wurde vernachlässigt!) | AJ57: 0
AJ59: =AJ56+AJ57 -> 587.25
A62: S | C62: Gehälter (Aufwand) | U62: H | X62: S | Z62: Gesetzliche Sozialkosten (Aufw.) | AR62: H
H63: =AJ35 -> 3000 | AE63: =AJ59 -> 587.25
L64: Saldo GuV | R64: =H63 -> 3000 | AI64: Saldo GuV | AO64: =AE63 -> 587.25
H66: =SUM(H63:K65) -> 3000 | R66: =SUM(R63:U65) -> 3000 | AE66: =SUM(AE63:AH65) -> 587.25 | AO66: =SUM(AO63:AR65) -> 587.25
X68: Aufw. | Z68: GuV | AR68: Ertr.
X69: =C62 -> Gehälter (Aufwand) | AE69: =R64 -> 3000
X71: =Z62 -> Gesetzliche Sozialkosten (Aufw.) | AE71: =AO64 -> 587.25
A74: S | C74: Verbindlichkeit LSt/KiSt | U74: H | X74: S | Z74: Eigenkapital | AR74: H
X75: Abgänge | AI75: AB
A76: Bezahlung | H76: =R76 -> 489.3666 | L76: LSt/KiSt | R76: =-AJ49 -> 489.3666 | X76: Privatentnahmen
X77: Verlust | AI77: Zugänge
X79: EB | AI79: Privateinlagen
AI80: Gewinn
H81: =SUM(H75:K80) -> 489.3666 | R81: =SUM(R75:U80) -> 489.3666
A83: S | C83: Verbindlichkeit SV | U83: H | W83: S | Y83: Bank | AQ83: H
W84: Anfangsbestand | AH84: Abgänge
A85: Bezahlung | H85: =R85+R86 -> 1195.5 | L85: AN-Anteil | R85: =-AJ43 -> 608.25 | AH85: Nettogehalt | AN85: =AJ52 -> 1902.3834
L86: AG-Anteil | R86: =AE63 -> 587.25 | W86: Zugänge: | AH86: SV/LSt/KiSt | AN86: =H85+H76 -> 1684.8666
AH88: EB
H90: =SUM(H84:K89) -> 1195.5 | R90: =SUM(R84:U89) -> 1195.5
A95: =A26+1 -> 59
B98: Buchungssatz: | H98: Soll | R98: =SUM(R99:U101) -> 3000 | X98: Haben | AL98: =SUM(AL99:AO101) -> 3000
B99: 1. Gehalts- | H99: =C62 -> Gehälter (Aufwand) | R99: =R64 -> 3000 | V99: an | X99: =Y83 -> Bank | AL99: =AN85 -> 1902.3834
B100: abrechnung | X100: =C83 -> Verbindlichkeit SV | AL100: =R85 -> 608.25
X101: =C74 -> Verbindlichkeit LSt/KiSt | AL101: =R76 -> 489.3666
B102: Buchungssatz: | H102: Soll | R102: =SUM(R103:U104) -> 587.25 | X102: Haben | AL102: =SUM(AL103:AO104) -> 587.25
B103: 2. AG-Anteil SV | H103: =Z62 -> Gesetzliche Sozialkosten (Aufw.) | R103: =AE63 -> 587.25 | V103: an | X103: =C83 -> Verbindlichkeit SV | AL103: =R86 -> 587.25
B104: (Aufwand) | H104: (Aufwand)
B105: Buchungssatz: | H105: Soll | R105: =SUM(R106:U107) -> 1684.8666 | X105: Haben | AL105: =SUM(AL106:AO107) -> 1684.8666
B106: 3. Bezahlung | H106: =C74 -> Verbindlichkeit LSt/KiSt | R106: =H76 -> 489.3666 | V106: an | X106: =Y83 -> Bank | AL106: =AN86 -> 1684.8666
B107: SV/LSt/KiSt | H107: =C83 -> Verbindlichkeit SV | R107: =H85 -> 1195.5
B110: Fall 2:
B111: Wie Fall 1, aber Frau Zänkle erhält am 15.06. einen Gehaltsvorschuss von 400 € in bar; außerdem wohnt sie in einer vom Betrieb zur Verfügung gestellten Wohnung ("unentgeltlich"). Verrechneter Mietwert hierfür: 300 € => Gehalt: 3.000 + 300
B113: Bruttogehalt | AJ113: 3300
A115: - | B115: Sozialversicherung
B116: (Arbeitnehmer-Anteil) | T116: 1/2
B117: Rentenversicherung | O117: =O39 -> 0.187 | T117: =O117*0.5 -> 0.0935 | AB117: =-AJ113*T117 -> -308.55
B118: Arbeitslosenversicherung | O118: =O40 -> 0.03 | T118: =O118*0.5 -> 0.015 | AB118: =-AJ113*T118 -> -49.5
B119: Krankenversicherung | O119: =O41 -> 0.146 | T119: =-AB119/AJ113 -> 0.082 | AB119: -270.6
B120: zzgl. nur AN (kinderlos)
B121: Pflegeversicherung | AB121: -40.43 | AJ121: =SUM(AB117:AI121) -> -669.08
A123: - | B123: persönliche Steuern
B124: (nur Arbeitnehmer)
B125: Lohnsteuer | O125: =-AB125/AJ113 -> 0.167169697 | AB125: -551.66
B126: Kirchensteuer | O126: 0.08 | S126: x | T126: =AB125 -> -551.66 | AB126: =O126*AB125 -> -44.1328
B127: Solidaritätszuschlag | O127: 0.055 | S127: x | T127: =AB125 -> -551.66 | AB127: =AB125*O127 -> -30.3413 | AJ127: =SUM(AB125:AI127) -> -626.1341
A128: - | B128: Vorschuss | AJ128: -400
A129: - | B129: Mietwert | AJ129: -300
A132: = | B132: Nettogehalt (Bankauszahlung) | AJ132: =SUM(AJ113:AQ129) -> 1304.7859
B136: Arbeitgeberanteil zur Sozialversicherung
B137: = Arbeitnehmeranteil-Anteil ohne | AJ137: =240.9+32.18+323.4+49.5 -> 645.98
B138: nur AN (kinderlos) | AJ138: =-AB120 -> 0
AJ140: =AJ137+AJ138 -> 645.98
A143: =A95+1 -> 60
A145: S | C145: Gehälter (Aufwand) | U145: H | X145: S | Z145: Gesetzliche Sozialkosten (Aufw.) | AR145: H
H146: =AJ113 -> 3300 | AE146: =AJ140 -> 645.98
L147: Saldo GuV | R147: =H146 -> 3300 | AI147: Saldo GuV | AO147: =AE146 -> 645.98
H149: =SUM(H146:K148) -> 3300 | R149: =SUM(R146:U148) -> 3300 | AE149: =SUM(AE146:AH148) -> 645.98 | AO149: =SUM(AO146:AR148) -> 645.98
A151: S | C151: Forderung Zänkle | U151: H | X151: Aufw. | Z151: GuV | AR151: Ertr.
A152: Vorschuss | H152: 400 | R152: =H152 -> 400 | X152: =C145 -> Gehälter (Aufwand) | AE152: =R147 -> 3300 | AI152: Mietertrag | AO152: 300
X154: =Z145 -> Gesetzliche Sozialkosten (Aufw.) | AE154: =AO147 -> 645.98
H155: =SUM(H152:K154) -> 400 | R155: =SUM(R152:U154) -> 400
A157: S | C157: Verbindlichkeit LSt/KiSt | U157: H | X157: S | Z157: Eigenkapital | AR157: H
X158: Abgänge | AI158: AB
A159: Bezahlung | H159: =R159 -> 626.1341 | L159: LSt/KiSt | R159: =-AJ127 -> 626.1341 | X159: Privatentnahmen
X160: Verlust | AI160: Zugänge
X162: EB | AI162: Privateinlagen
AI163: Gewinn
H164: =SUM(H158:K163) -> 626.1341 | R164: =SUM(R158:U163) -> 626.1341
A166: S | C166: Verbindlichkeit SV | U166: H | W166: S | Y166: Bank | AQ166: H
W167: Anfangsbestand | AH167: Vorschuss | AN167: =H152 -> 400
A168: Bezahlung | H168: =R168+R169 -> 1315.06 | L168: AN-Anteil | R168: =-AJ121 -> 669.08 | AH168: Nettogehalt | AN168: =AJ132 -> 1304.7859
L169: AG-Anteil | R169: =AJ140 -> 645.98 | W169: Zugänge: | AH169: SV/LSt/KiSt | AN169: =H168+H159 -> 1941.1941
AH171: EB
H173: =SUM(H167:K172) -> 1315.06 | R173: =SUM(R167:U172) -> 1315.06
B177: Buchungssatz: | H177: Soll | R177: =SUM(R178:U180) -> 400 | X177: Haben | AL177: =SUM(AL178:AO180) -> 400
B178: 1. Gehalts- | H178: =C151 -> Forderung Zänkle | R178: =H152 -> 400 | V178: an | X178: Kasse | AL178: =AN167 -> 400
B179: Vorschuss
B180: am 15.06.
B181: Buchungssatz: | H181: Soll | R181: =SUM(R182:U186) -> 3300 | X181: Haben | AL181: =SUM(AL182:AO186) -> 3300
B182: 2. Gehalts- | H182: =C145 -> Gehälter (Aufwand) | R182: =R147 -> 3300 | V182: an | X182: =Y166 -> Bank | AL182: =AN168 -> 1304.7859
B183: abrechnung | X183: =C166 -> Verbindlichkeit SV | AL183: =R168 -> 669.08
X184: =C157 -> Verbindlichkeit LSt/KiSt | AL184: =R159 -> 626.1341
X185: =C151 -> Forderung Zänkle | AL185: =R152 -> 400
X186: =AI152 -> Mietertrag | AL186: =AO152 -> 300
B187: Buchungssatz: | H187: Soll | R187: =SUM(R188:U189) -> 645.98 | X187: Haben | AL187: =SUM(AL188:AO189) -> 645.98
B188: 3. AG-Anteil SV | H188: =Z145 -> Gesetzliche Sozialkosten (Aufw.) | R188: =AE146 -> 645.98 | V188: an | X188: =C166 -> Verbindlichkeit SV | AL188: =R169 -> 645.98
B189: (Aufwand)
B190: Buchungssatz: | H190: Soll | R190: =SUM(R191:U192) -> 1941.1941 | X190: Haben | AL190: =SUM(AL191:AO192) -> 1941.1941
B191: 4. Bezahlung | H191: =C157 -> Verbindlichkeit LSt/KiSt | R191: =H159 -> 626.1341 | V191: an | X191: =Y166 -> Bank | AL191: =AN169 -> 1941.1941
B192: SV/LSt/KiSt | H192: =C166 -> Verbindlichkeit SV | R192: =H168 -> 1315.06
A195: =A143+1 -> 61
B198: Fall 3:
B199: Wegen besonderer Verdienste erhält Frieda Zänkle zwei Flaschen Champagner, die der Azubi im Fachgeschäft bar bezahlt: 35,70 €.
B201: Einkauf Champagne:
B203: Unternehmer | L203: Einkauf: Champagner bar | X203: Fachgeschäft
M205: Entgelt | O205: =35.7/1.19 -> 30
M206: +Umsatzsteuer 19% | O206: =O205*19% -> 5.7 | S206: (Vorsteuer)
M207: =Kaufpreis | O207: =O205*1.19 -> 35.7
A209: S | C209: Freiwillige Sozialkosten | U209: H
A210: Champagner | H210: =O205 -> 30
L211: Saldo GuV | R211: =H210 -> 30
H213: =SUM(H210:K212) -> 30 | R213: =SUM(R210:U212) -> 30
A215: S | C215: Vorsteuer | U215: H | X215: Aufw. | Z215: GuV | AR215: Ertr.
A216: Champagner | H216: =O206 -> 5.7 | X216: =C209 -> Freiwillige Sozialkosten | AE216: =R211 -> 30
W221: S | Y221: Kasse | AQ221: H
W222: Anfangsbestand
AN223: =H210+H216 -> 35.7
W224: Zugänge:
AH226: EB
B232: Buchungssatz: | H232: Soll | R232: =SUM(R233:U234) -> 35.7 | X232: Haben | AL232: =SUM(AL233:AO234) -> 35.7
B233: 1. Zuwendung | H233: =C209 -> Freiwillige Sozialkosten | R233: =H210 -> 30 | V233: an | X233: =Y221 -> Kasse | AL233: =AN223 -> 35.7
B234: AG | H234: =C215 -> Vorsteuer | R234: =H216 -> 5.7
A236: =A195+1 -> 62
B240: Übung 13.1:
B241: Für den ledigen Braumeister Fläschle liegen folgende Angaben vor:
B242: Bruttogehalt (inklusive Mietwert Euro 760,00) | AJ242: 4000
A244: - | B244: Sozialversicherung
B245: (Arbeitnehmer-Anteil) | T245: 1/2
B246: Rentenversicherung | O246: =O117 -> 0.187 | T246: =O246*0.5 -> 0.0935 | AB246: =-AJ242*T246 -> -374
B247: Arbeitslosenversicherung | O247: =O118 -> 0.03 | T247: =O247*0.5 -> 0.015 | AB247: =-AJ242*T247 -> -60
B248: Krankenversicherung | O248: =O119 -> 0.146 | AB248: -313.65
B249: zzgl. nur AN (kinderlos)
B250: Pflegeversicherung | AB250: -46.85 | AJ250: =SUM(AB246:AI250) -> -794.5
A252: - | B252: persönliche Steuern
B253: (nur Arbeitnehmer)
B254: Lohnsteuer | O254: =-AB254/AJ242 -> 0.19154 | AB254: -766.16
B255: Kirchensteuer | O255: 0.08 | S255: x | T255: =AB254 -> -766.16 | AB255: =O255*AB254 -> -61.2928
B256: Solidaritätszuschlag | O256: 0.055 | S256: x | T256: =AB254 -> -766.16 | AB256: =AB254*O256 -> -42.1388 | AJ256: =SUM(AB254:AI256) -> -869.5916
A257: - | B257: Vorschuss | AJ257: -1000
A258: - | B258: Mietwert | AJ258: -760
A261: = | B261: Nettogehalt (Bankauszahlung) | AJ261: =SUM(AJ242:AQ258) -> 575.9084
B265: Arbeitgeberanteil zur Sozialversicherung
B266: = Arbeitnehmeranteil-Anteil ohne | AJ266: =279.23+37.29+392+60 -> 768.52
B267: nur AN (kinderlos) | AJ267: =AB249 -> 0
AJ269: =AJ266+AJ267 -> 768.52
B272: Verbuchen Sie am Monatsende die Lohnabrechnung (einschließlich des ArbG-Anteils) sowie die späteren Abführungen an FA und die Sozialversicherung.
B274: Buchungssatz: | H274: Soll | R274: =SUM(R275:U277) -> 1000 | X274: Haben | AL274: =SUM(AL275:AO277) -> 1000
B275: 1. Gehalts- | H275: Ford. Braumeister | R275: 1000 | V275: an | X275: Bank | AL275: =R275 -> 1000
B276: Vorschuss
B278: Buchungssatz: | H278: Soll | R278: =SUM(R279:U283) -> 4000 | X278: Haben | AL278: =SUM(AL279:AO283) -> 4000
B279: 1. Gehalts- | H279: Gehalt | R279: 4000 | V279: an | X279: =X182 -> Bank | AL279: =AJ261 -> 575.9084
B280: abrechnung | X280: =X183 -> Verbindlichkeit SV | AL280: =-AJ250 -> 794.5
X281: =X184 -> Verbindlichkeit LSt/KiSt | AL281: =-AJ256 -> 869.5916
X282: =H275 -> Ford. Braumeister | AL282: =R275 -> 1000
X283: =X186 -> Mietertrag | AL283: =-AJ258 -> 760
B284: Buchungssatz: | H284: Soll | R284: =SUM(R285:U286) -> 768.52 | X284: Haben | AL284: =SUM(AL285:AO286) -> 768.52
B285: 2. AG-Anteil SV | H285: =H188 -> Gesetzliche Sozialkosten (Aufw.) | R285: =AJ269 -> 768.52 | V285: an | X285: =X188 -> Verbindlichkeit SV | AL285: =AJ269 -> 768.52
B286: (Aufwand)
B287: Buchungssatz: | H287: Soll | R287: =SUM(R288:U289) -> 2432.6116 | X287: Haben | AL287: =SUM(AL288:AO289) -> 2432.6116
B288: 3. Bezahlung | H288: =H191 -> Verbindlichkeit LSt/KiSt | R288: =AL281 -> 869.5916 | V288: an | X288: =X279 -> Bank | AL288: =AL280+AL281+AL285 -> 2432.6116
B289: SV/LSt/KiSt | H289: =H192 -> Verbindlichkeit SV | R289: =AL280+AL285 -> 1563.02
A293: =A236+1 -> 63
B296: Übung 13.2:
B297: Die Betriebsrentnerin Alwine Brässli erhält zum 80. Geburtstag einen Rock’n’Roll- Kurs geschenkt. Die Tanzschule bucht 142,80 € von unserem Girokonto ab. Wie verändert sich die Bilanz?
B299: Buchungssatz: | H299: Soll | R299: =SUM(R300:U301) -> 142.8 | X299: Haben | AL299: =SUM(AL300:AO301) -> 142.8
B300: 1. Zuwendung | H300: =H233 -> Freiwillige Sozialkosten | R300: =142.8/1.19 -> 120 | V300: an | X300: =X288 -> Bank | AL300: =R300+R301 -> 142.8
B301: AG | H301: =H234 -> Vorsteuer | R301: =R300*19% -> 22.8
C304: Auswirkungen:
C306: => Gewinnauswirkung: | AC306: - | AD306: =R300 -> 120 | AM306: (GuV: Freiwillige Sozialkosten))
C308: => Bilanzauswirkung
C309: Anlagevermögen: | AD309: 0 | AM309: (keine)
C310: Umlaufvermögen: | AC310: - | AD310: =AL300-R301 -> 120 | AM310: (Vorsteuer, Bank)
C311: Eigenkapital: | AD311: 0 | AM311: (Privatentnahme)
AC312: - | AD312: =AD306 -> 120 | AM312: =AM306 -> (GuV: Freiwillige Sozialkosten))
AC313: - | AD313: =AD311+AD312 -> 120 | AM313: (Eigenkapital gesamt)
... 10 more rows

Sheet 14
A2: ='13'!A293:BA293+1 -> 64
B4: 14 | C4: Buchungen im Ein- und Verkaufsbereich
B6: Die im Kapitel 10 gewonnenen Erkenntnisse über die Umsatzsteuer werden in diesem Kapitel vorausgesetzt, weil bei jedem Ein- und Verkaufsvorgang i. d. R. immer eine Umsatzsteuer anfällt und buchhalterisch zu erfassen ist.
B8: 14.1 | C8: Zur Definition des Materialbegriffes
B10: Der Materialbegriff erfasst eine Vielzahl von betrieblichen Sachverhalten: 1) Rohstoffe: Stoffe, die das zu fertigende Produkt in seiner physischen Masse zu wesentlichen Teilen ausmachen, z. B. Stahl, Kunststoff usw. (= Hauptstoffe) 2) Hilfsstoffe: Stoffe, die in das zu fertigende Produkt nur in relativ unwesentlicher physikalischer Masse eingehen, z. B. Farbe, Lack, Klebstoff. 3) Betriebsstoffe: Stoffe, die in das zu fertigende Produkt überhaupt nicht eingehen, aber zu seiner Fertigung erforderlich sind, z.B. Treibstoffe oder Reinigungsmittel. 4) Halbfabrikate: Teile von zu fertigenden Produkten, die nicht selbst hergestellt, sondern extern bezogen werden, z.B. Bildröhren, Motoren, Module. 5) Unfertig Erzeugnisse: Produkte, deren Fertigung noch nicht abgeschlossen ist, z.B. Rohlinge. Unfertigerzeugnisse gibt es nur bei mehrstufiger Fertigung. 6) Fertigerzeugnisse: Fertige Produkte, die selbst hergestellt worden sind und deren Herstellung abgeschlossen ist. siehe Kapital 18 (Beständsveränderungen) 7) Waren: Produkte, die eingekauft und unverändert weiterverkauft werden. Solange lediglich die Verpackung verändert wird, handelt es sich noch um eine Ware; jede Änderung am Produkt selbst qualifiziert dieses aber schon als Halbfabrikat.
B12: Für Roh-, Hilfs- und Betriebsstoffe gibt es relativ einheitliche Buchungsverfahren; weitere für Fertig- und Unfertigerzeugnisse sowie für Waren.
B14: 14.2 | C14: Buchungen der Roh-, Hilfs- und Betriebsstoffe
B16: Aufgrund des Einzelwertprinzipes (§ 252 Abs. 1 Nr. 3 HGB) sind für Roh-, Hilfs- und Betriebsstoffe jeweils eigene (Bestands-) Konten zu führen, und zwar i. d. R. für jede Stoffart ein eigenes Konto. Werden also hunderte von Rohstoffen gebraucht, so sind hunderte von Rohstoffkonten zu führen, aber für diese alle gelten jeweils die gleichen Abrechnungsmechanismen. Über die Eigenschaft als Rohstoff, Hilfsstoff oder Betriebsstoff entscheidet lediglich die Verwendungsabsicht des Buchführungspflichtigen. Ein- und derselbe Stoff kann also mehrfach geführt werden, je nachdem ob er als Rohstoff eingesetzt werden soll oder - nach Absicht des Unternehmers! - nur unwesentlich in ein Produkt eingeht und folglich ein Hilfsstoff darstellt.
A19: =A2+1 -> 65
B22: Einkauf der Roh-, Hilfs- und Betriebsstoffe
B23: Beim Einkauf ist der eingekaufte Betrag zu aktivieren, wobei die Umsatzsteuer zu berücksichtigen ist. Der Standardbuchungssatz lautet: Rohstoffe ..................................................... 1.000 Vorsteuer ....................................................... 190 AN Verbindlichkeiten aus LuL............................. 1.190 Werden mehrere Materialarten in einer Lieferung und also auch in einem Beleg erfasst, so sind sie in einem Buchungssatz auf mehrere Konten zu verteilen. Die Umsatzsteuer bleibt dabei in einem Betrag: Rohstoffe ..................................................... 1.000 Hilfsstoffe ........................................................ 500 Betriebsstoffe ................................................. 200 Vorsteuer ....................................................... 323 AN Verbindlichkeiten aus LuL ...............................2.023
B25: Bei Barzahlung kann direkt das Kassenkonto verwendet werden, was aber selten ist: Rohstoffe (Bestandskonto) ..................................................... 1.000 Vorsteuer (Bestandskonto = "Forderung")............................... 190 Kasse (bzw. Bank) ........................................................... 1.190
B27: Verbrauch der Roh-, Hilfs- und Betriebsstoffe
B28: So wie für jede Materialart ein eigenes Bestands-Konto zu führen ist, muss auch für jeden Verbrauch ein eigenes Konto eingerichtet werden. Diese Konten sind im Gegensatz zum Einkauf erfolgswirksam, d. h., das GuV-Konto wird erst berührt, wenn und insoweit das Material verbraucht wird und nicht wenn es angeschafft wird. Da Rohstoffe i. d. R. Einzelkosten verursachen, spiegelt sich dies in der Bezeichnung des Verbrauchskontos wieder: Materialaufwand (Einzelkosten)....................500 AN Rohstoffe (Bestandskonto)........................................................ 500 Hier ist der Betrag zu erfassen, der tatsächlich verbraucht worden ist, und keinesfalls derjenige, der angeschafft wurde.
B30: Da Hilfsstoffkosten Gemeinkosten sind, ist auch dieses in der Benennung des entsprechenden Verbrauchskontos zu erfassen: Hilfsstoffaufwand (Gemeinkosten).............. 500 AN Hilfsstoffe ....................................................... 500
A32: =A19+1 -> 66
B34: 14.3 | C34: Buchungen des Warenverkehrs
B36: Während der Warenein- und verkauf den entsprechenden Buchungen der Stoffe gleichen, gibt es bei der Abrechnung der Verbräuche erhebliche Unterschiede. Diese haben im wesentlichen den Grund, dass die meisten Warenverbräuche nicht durch selbständige Materialentnahmescheine erfasst werden, wie es bei Roh-, Hilfs- und Betriebsstoffen üblich ist.
B38: Der Wareneinkauf führt zunächst zu einer Aktivierung des Warenbestandes. Das Konto „Wareneinkauf“ ist damit ein Aktivkonto: Waren (Bestandskonto)....................................................... 2.000 Vorsteuer ................................................................................. 380 AN Verbindlichkeiten aus LuL ........................ 2.380 Auf dem Konto „Wareneinkauf“ entsteht so zunächst der Ausweis der Summe der eingekauften Waren.
B40: Der Warenverkauf ist die wirtschaftliche Verwertung eines Gutes, also ein Ertrag. Der Warenverkauf ist damit direkt erfolgswirksam, d. h., der Betrag, zu dem verkauft wird, ist als Ertrag zu buchen - ganz gleich, ob der Kunde direkt in bar bezahlt: Kasse .................................................... 2.380 AN Umsatzerlöse (Ertrag = GuV)......................................................................................... 2.000 Umsatzsteuer (Bestandskonto = "Verbindlichkeit")....................................................... 380 oder ob er eine Rechnung erhält, also „nur“ eine Forderung gebucht werden kann: Forderungen aus LuL ................................ 2.380 AN Umsatzerlöse (Ertrag = GuV)......................................................................................... 2.000 Umsatzsteuer (Bestandskonto = "Verbindlichkeit")....................................................... 380
B42: Selbstverständlich sind beide Vorgänge umsatzsteuerpflichtig, weil es sich um Leistungsverkehr mit anderen Unternehmern handelt. Auch hier ist die Umsatzsteuer wieder realisations- und nicht zahlungsbezogen, d. h., fällt im Moment des Verkaufes (und nicht der Einzahlung des Kunden) an. Dies bedeutet übrigens auch, dass bei langfristigen Zahlungszielen die Abführung der Umsatzsteuer u. U. vor dem Zahlungeingang des Kunden liegen kann, der Unternehmer dem Fiskus also u. U. einen Umsatzsteuerkredit gewähren muß - und zwar zinslos. Das ist besonders bei langfristiger Auftragsfertigung ein Problem, etwa im Baugewerbe.
A44: =A32+1 -> 67
B46: 14.4 | C46: Grundlagen zu (nachträglichen) Preisnachlässen
B48: Ein Preisnachlass ist die Reduktion eines Preises im Ein- oder im Verkauf. Von besonderem buchhalterischen Interesse sind hier die Preisnachlässe, die nach Rechnungsstellung eintreten, weil diese eine teilweise Stornierung der ursprünglichen Buchung einschließlich der mit ihr verbundenen Umsatzsteuer erfordern. Die Übersicht auf der Folgeseite faßt die grundlegenden buchhalterischen Tatbestände zusammen.
B50: Ein Rabatt ist ein dem Käufer während der Verkaufsverhandlungen eingeräumter Preisnachlass. Der Rabatt ist daher bei Rechnungslegung gewiß. Es handelt sich um einen Preisnachlass, der vor der ersten Buchung endgültig bekannt ist. Der Rabatt wird daher überhaupt nicht selbständig gebucht, d. h., er führt zu keiner eigenständigen Buchung. Vielmehr ist er auf dem Verkaufsbeleg (Rechnung, Quittung) auszuweisen und lediglich der rabattierte Verkaufspreis ist buchhalterisch zu erfassen. Durch Ausweis auf der Rechnung ist den Grundsätzen der ordnungsgemäßen Buchführung auch damit ohne weitere Buchung des Rabattbetrages genügt.
B52: Eine nachträgliche Preisminderung tritt ein, wenn dem Kunden nach Vertragsschluss und Rechnungslegung noch eine Preisminderung eingeräumt wird. Häufigster Grund sind Mängelrügen wegen Qualitäts- oder anderen Mängeln der Ware, oft aber auch Mengenrabatte, die nachträglich, d.h., erst bei Erreichen einer bestimmten Kaufmenge gewährt werden. Solche Rabatte nennt man, um sie von den vor Rechnungsstellung gewährten Rabatten abzugrenzen, auch Boni.
B54: Für diesen Fall ist charakteristisch, dass eine Änderung des Lagerbestandes nicht eintritt. Die Preisminderung bzw. der Bonus sind daher lediglich als teilweise Stornierung des eigentlichen Vorganges zu erfassen. Hierbei gilt die Grundregel, dass eine Stornobuchung als Umkehrung der ursprünglichen Buchung zu behandeln ist, also die Soll- und die Haben-Kontierung vertauscht werden. War der Kauf eines Kunden beispielweise zunächst Forderungen aus LuL............................. 1.190 AN Umsatzerlöse aus Warenverkauf .............................................. 1.000 Umsatzsteuer .............................................................................. 190
B56: und erhält dieser Kunde nunmehr einen zehnprozentigen Nachlass (ganz gleich, ob infolge einer Mängelrüge oder als Bonus), so wäre dies als Stornierung der ursprünglichen Kontierung zu erfassen, d. h., die Soll- und die Haben-Kontierung des Ausgangsfalles werden umgekehrt. Es ergibt sich also: Umsatzerlöse aus Warenverkauf ................................................ 100 Umsatzsteuer ............................................................................... 19 AN Forderungen aus LuL ..................................................................... 119
A58: =A44+1 -> 68
B60: Fall 1: Rabatt und Anschaffungsnebenkosten (=ANK) bzw. Bezugskosten
B62: Einkauf:
B64: Industrie-UN | L64: Einkauf: Rohstoffe gegen Scheck | X64: Urproduktion
M66: Einkaufslistenpreis | O66: 40000
M67: ./. Sonderrabatt | O67: =-O66*S67 -> -6000 | S67: 0.15
M68: = netto | O68: =SUM(O66:R67) -> 34000
M69: +Umsatzsteuer 19% | O69: =O68*19% -> 6460 | S69: (Vorsteuer)
M70: = Kaufpreis | O70: =O68*1.19 -> 40460
B73: Bei Rabatten wird, da es sicher ist, dass sie abgezogen werden dürfen, von vornherein nur der Netto- / geminderte Preis als Eingangspreis verbucht.
B75: Buchungssatz: | H75: Soll | R75: =SUM(R76:U77) -> 40460 | X75: Haben | AL75: =SUM(AL76:AO77) -> 40460
B76: Lieferung | H76: Rohstoffe | R76: =O68 -> 34000 | V76: an | X76: Bank | AL76: =O70 -> 40460
B77: gegen Scheck | H77: Vorsteuer | R77: =O69 -> 6460
B79: Anschaffungsnebenkosten (=ANK) bzw. Bezugskosten
B81: Zusätzlich fallen beim Rohstoffkauf an (bar):
M82: Transportversicherung | O82: 200 | S82: keine USt
M84: + Fracht | O84: 400
M85: +Umsatzsteuer 19% | O85: =O84*19% -> 76 | S85: (Vorsteuer)
M86: = Rechnungsbetrag | O86: =O84*1.19 -> 476
B88: Buchungssatz: | H88: Soll | R88: =SUM(R89:U90) -> 676 | X88: Haben | AL88: =SUM(AL89:AO90) -> 676
B89: Anschaffungs- | H89: (ANK) Rohstoffe | R89: =O82+O84 -> 600 | V89: an | X89: Kasse | AL89: =O86+O82 -> 676
B90: nebenkosten | H90: Vorsteuer | R90: =O85 -> 76 | V90: an
B92: ANK sind Unterkonten zum jeweiligen Bestandskonto RSt, HSt, BSt, Handelsware und bezogene Teile und werden am Monatsende auf das jeweilige Mutterkonto abgeschlossen:
A95: S | C95: Rohstoffe | U95: H | X95: S | Z95: ANK Rohstoffe | AR95: H
H96: =O68 -> 34000
A97: =Z95 -> ANK Rohstoffe | H97: =AO98 -> 600 | L97: EB => Schlussbil. | R97: =H96+H97 -> 34600 | X97: =M82 -> Transportversicherung | AE97: =O84 -> 400
X98: =M84 -> + Fracht | AE98: =O82 -> 200 | AI98: Saldo => Rohst. | AO98: =AE98+AE97 -> 600
H100: =SUM(H96:K99) -> 34600 | R100: =SUM(R96:U99) -> 34600 | AE100: =SUM(AE96:AH99) -> 600 | AO100: =SUM(AO96:AR99) -> 600
A102: S | C102: Kasse | U102: H | X102: S | Z102: Vorsteuer | AR102: H
AE103: =R77 -> 6460
L104: =Z95 -> ANK Rohstoffe | R104: =O82+O86 -> 676 | AE104: =O85 -> 76
B109: Anschaffungsneben- oder Bezugs“kosten“ sind somit KEINE Kosten der Klasse 4 (kein Erfolgskonto, also noch kein Aufwand), sondern erhöhen in Klasse 3 die Anschaffungs“ kosten“ der Bestände, d.h. sie werden aktiviert auf dem Bestandskonto (z. B. Rohstoffe)
A112: =A58+1 -> 69
B115: Fall 2: Rücksendungen auf der Einkaufsseite
B117: Wir senden dem Lieferanten falsch gelieferte bzw. völlig unbrauchbare Rohstoffe zurück: 24.000 € zuzügl. 19 % USt. Die Rechnung war noch nicht bezahlt.
B120: Industrie | L120: Einkauf: Rohstoffe | X120: Urproduktion
M122: Einkaufslistenpreis | O122: 24000
M123: +Umsatzsteuer 19% | O123: =O122*19% -> 4560 | S123: (Vorsteuer)
M124: = Kaufpreis | O124: =SUM(O122:R123) -> 28560
B128: Buchungssatz: | H128: Soll | R128: =SUM(R129:U130) -> 28560 | X128: Haben | AL128: =SUM(AL129:AO130) -> 28560
B129: Lieferung | H129: Rohstoffe | R129: =O122 -> 24000 | V129: an | X129: Verblk. a. LuL | AL129: =O124 -> 28560
B130: auf Ziel | H130: Vorsteuer | R130: =O123 -> 4560
B133: Buchungssatz: | H133: Soll | R133: =SUM(R134:U135) -> 28560 | X133: Haben | AL133: =SUM(AL134:AO135) -> 28560
B134: Rücklieferung | H134: =X129 -> Verblk. a. LuL | R134: =AL129 -> 28560 | V134: an | X134: =H129 -> Rohstoffe | AL134: =R129 -> 24000
B135: Storno | X135: =H130 -> Vorsteuer | AL135: =R130 -> 4560
B138: Fall 3: Rücksendungen auf der Verkaufsseite
B140: Unser Kunde sendet uns mangelhafte Erzeugnisse zurück: 14.000 € zuzügl. 19 % USt. Die Rechnung war noch nicht bezahlt.
B143: Industrie | L143: Verkauf: Erzeugnis | X143: Händler
M145: Verkaufslistenpreis | O145: 14000
M146: +Umsatzsteuer 19% | O146: =O145*19% -> 2660
M147: = Verkaufspreis | O147: =SUM(O145:R146) -> 16660
B151: Buchungssatz: | H151: Soll | R151: =SUM(R152:U153) -> 16660 | X151: Haben | AL151: =SUM(AL152:AO153) -> 16660
B152: Verkauf | H152: Ford. aus Lieferung | R152: =O147 -> 16660 | V152: an | X152: Umsatzerlöse (GuV) | AL152: =O145 -> 14000
B153: auf Ziel | X153: Umsatzsteuer | AL153: =O146 -> 2660
B156: Buchungssatz: | H156: Soll | R156: =SUM(R157:U158) -> 16660 | X156: Haben | AL156: =SUM(AL157:AO158) -> 16660
B157: Rücklieferung | H157: =X152 -> Umsatzerlöse (GuV) | R157: =AL152 -> 14000 | V157: an | X157: =H152 -> Ford. aus Lieferung | AL157: =R152 -> 16660
B158: Storno | H158: =X153 -> Umsatzsteuer | R158: =AL153 -> 2660
A162: =A112+1 -> 70
B164: Fall 4: Nachlässe auf der Einkaufsseite
B166: Unser Hilfsstofflieferer gewährt uns wegen eines geringen Mangels 5 % Nachlass auf einen Nettowert von 8.000 € (Bonus = NACHTRÄGLICH gewährter „Mengenrabatt“) wird genauso gebucht:
B168: Industrie | L168: Einkauf: Hilfsstoffe | X168: Urproduktion
M171: Einkaufslistenpreis | O171: 8000
M172: +Umsatzsteuer 19% | O172: =O171*19% -> 1520 | S172: (Vorsteuer)
M173: = Kaufpreis | O173: =SUM(O171:R172) -> 9520
B174: Jahresende: | M174: - Bonus / 5%Nachlass | O174: =O171*5% -> 400
M175: - Umsatzsteuer 19% | O175: =O174*19% -> 76 | S175: (Vorsteuer)
M176: brutto | O176: =SUM(O174:R175) -> 476
A180: S | C180: Hilfsstoffe | U180: H | X180: S | Z180: Vorsteuer | AR180: H
H182: =O171 -> 8000 | R182: =H189 -> 400 | AE182: =O172 -> 1520 | AO182: =O175 -> 76
L183: EB => SB | R183: =H182-R182 -> 7600
H185: =SUM(H181:K184) -> 8000 | R185: =SUM(R181:U184) -> 8000
A187: S | C187: erhaltene Nachlässe für HiSt | U187: H | X187: S | Z187: Verblk a. Lieferung | AR187: H
A189: Saldo => Hilfsstoffe | H189: =R189 -> 400 | R189: =O174 -> 400 | AE189: =O176 -> 476 | AO189: =O173 -> 9520
H191: =SUM(H188:K190) -> 400 | R191: =SUM(R188:U190) -> 400
B193: (Nachträglich) Erhaltene Nachlässe sind UNTER-Konten zu den jeweiligen Mutterkonten Rohstoffe usw. (Bestandskonten) und werden monatlich jeweils dorthin abgeschlossen.
B196: Fall 5: Nachlässe auf der Verkaufsseite
B198: Ein Kunde erhält auf einen Verkaufswert von 3.000 € netto einen Nachlass wegen einer Schlechtleistung (= Mängelrüge) bzw. Bonus von 10 %.
B201: Industrie | L201: Verkauf | X201: Kunde
M204: Verkaufslistenpreis | O204: 3000
M205: +Umsatzsteuer 19% | O205: =O204*19% -> 570
M206: = Verkaufspreis | O206: =SUM(O204:R205) -> 3570
M207: - Bonus / Nachlass | O207: =O204*10% -> 300
M208: - Umsatzsteuer 19% | O208: =O207*19% -> 57
O209: =SUM(O207:R208) -> 357
A213: S | C213: Umsatzsteuer | U213: H | X213: S | Z213: Umsatzerlöse | AR213: H
H215: =O208 -> 57 | R215: =O205 -> 570 | AE215: =R222 -> 300 | AO215: =O204 -> 3000
X216: => Saldo GuV | AE216: =AO215-AE215 -> 2700
AE218: =SUM(AE214:AH217) -> 3000 | AO218: =SUM(AO214:AR217) -> 3000
A220: S | C220: Erlösschmälerungen | U220: H | X220: S | Z220: Forderungen aus Lieferungen | AR220: H
H222: =O207 -> 300 | L222: => Saldo UE | R222: =H222 -> 300 | AE222: =O206 -> 3570 | AO222: =O209 -> 357
H224: =SUM(H221:K223) -> 300 | R224: =SUM(R221:U223) -> 300
B226: Das Konto Erlösschmälerungen oder Erlösberichtigungen (auch gewährte Nachlässe) ist Unterkonto zu den Umsatzerlösen und wird dorthin monatlich abgeschlossen.
A230: =A162+1 -> 71
B233: Übung 14.1:
B234: Gelieferter und noch nicht bezahlter Stahl erweist sich nachträglich als völlig unbrauchbar und wird an den Lieferanten zurückgeschickt: 48.000 € zuzügl. 19 % USt Wie verändert sich die Bilanz?
B237: Buchungssatz: | H237: Soll | R237: =SUM(R238:U239) -> 57120 | X237: Haben | AL237: =SUM(AL238:AO239) -> 57120
B238: Rücklieferung | H238: Verblk. a. LuL | R238: =48000*1.19 -> 57120 | V238: an | X238: Rohstoffe | AL238: =R238/1.19 -> 48000
B239: Storno | X239: Vorsteuer | AL239: =AL238*19% -> 9120
CS242: =#REF!-#REF! -> 
K244: Aktiva | M244: Schlussbilanz 31.12. | AG244: Passiva
J245: Anlagevermögen | W245: Eigenkapital | AF245: =AG239 -> 0
A247: zunehmende | AL247: abnehmende
A248: Liquidität | AL248: Fristigkeit
A250: Mittel- | AL250: Mittel-
A251: verwendung | AL251: herkunft
J252: Umlaufvermögen | W252: Fremdkapital
J253: =X238 -> Rohstoffe | S253: =-AL238 -> -48000 | W253: =H238 -> Verblk. a. LuL | AF253: =-R238 -> -57120
J255: =X239 -> Vorsteuer | S255: =-AL239 -> -9120
S259: =SUM(S253:V255) -> -57120 | AF259: =SUM(AF253:AI258) -> -57120

Sheet 15
A2: ='14'!A230:BA230+1 -> 72
B4: 15 | C4: Zahlungen mit Skontoabzug
B6: Fall 1: Liefererskonto beim Einkauf
B7: Wir bezahlen eine Lieferantenrechnung (für Rohstoffe) über 2.380 € unter Abzug von 2 % Skonto per Banküberweisung:
B10: Industrie-UN | L10: Einkauf: Rohstoffe auf Ziel | X10: Urproduktion
M12: Entgelt | O12: 2000
M13: +Umsatzsteuer 19% | O13: =O12*19% -> 380 | S13: (Vorsteuer)
M14: =Kaufpreis | O14: =O12*1.19 -> 2380
A16: S | C16: Verbindlichkeiten aus LuL | U16: H | X16: S | Z16: Erhaltene Skonti (Rohstoffe) | AR16: H
A18: (2) | H18: =R18 -> 2380 | L18: (1) | R18: =O14 -> 2380 | X18: => Saldo Rohstoffe | AE18: =AO18 -> 40 | AI18: (2) | AO18: =-O36-AO25 -> 40
A23: S | C23: Bank | U23: H | X23: S | Z23: Vorsteuer | AR23: H
L25: (2) | R25: =O37 -> 2332.4 | X25: (1) | AE25: =O13 -> 380 | AI25: (2) | AO25: =-O36/1.19*19% -> 7.6
H27: =SUM(H24:K26) -> 0
A29: S | C29: Rohstoffe | U29: H
A31: (1) | H31: =O12 -> 2000 | L31: => Saldo Skonti | R31: =AE18 -> 40
L32: EB | R32: =H31-R31 -> 1960
H33: =SUM(H30:K32) -> 2000 | R33: =SUM(R31:U32) -> 2000
M35: =M14 -> =Kaufpreis | O35: =O14 -> 2380
M36: - Skonto 2 % | O36: =-O35*2% -> -47.6 | S36: (inkl. Vorsteuer Euro 8)
M37: =Kaufpreis | O37: =O35*98% -> 2332.4
M39: Probe | O39: =R25 -> 2332.4
O40: =AO18 -> 40
O41: =AO25 -> 7.6
O42: =SUM(O39:R41) -> 2380 | S42: (= Verbindlichkeit aus LuL)
B46: Buchungssatz: | H46: Soll | R46: =SUM(R47:U48) -> 2380 | X46: Haben | AL46: =SUM(AL47:AO48) -> 2380
B47: Lieferung | H47: Rohstoffe | R47: =H31 -> 2000 | V47: an | X47: Verblk. aus Lieferungen | AL47: =R18 -> 2380
B48: auf Ziel | H48: Vorsteuer | R48: =AE25 -> 380
B50: Buchungssatz: | H50: Soll | R50: =SUM(R51:U52) -> 2380 | X50: Haben | AL50: =SUM(AL51:AO53) -> 2380
B51: Skonto | H51: =X47 -> Verblk. aus Lieferungen | R51: =H18 -> 2380 | V51: an | X51: =Z16 -> Erhaltene Skonti (Rohstoffe) | AL51: =AO18 -> 40
B52: Bezahlung | X52: =H48 -> Vorsteuer | AL52: =AO25 -> 7.6
X53: =C23 -> Bank | AL53: =R25 -> 2332.4
A57: =A2+1 -> 73
B60: Fall 2: Kundenskonto beim Verkauf
B61: Zum Ausgleich unserer Ausgangsrechnung über XxXxXxX € (Betrag wurde wegen eines verschütteten Kaffees unleserlich) überweist unser Kunde nach Abzug von 2 % Skonto 46.648 €.
M63: Überweisung | O63: 46648 | S63: 0.98
M64: + Skonto 2 % | O64: =O63/S63*S64 -> 952 | S64: 0.02 | V64: (inkl. Ust: | Z64: =O64/119*19 -> 152 | AC64: )
M65: =Verkaufspreis | O65: =SUM(O63:R64) -> 47600 | S65: 1
A68: S | C68: Forderungen aus LuL | U68: H | X68: S | Z68: Gewährte Skonti | AR68: H
A70: (1) | H70: =O65 -> 47600 | R70: =H70 -> 47600 | X70: (2) | AE70: =O64-Z64 -> 800 | AI70: Saldo => UE | AO70: =AE70 -> 800
H73: =SUM(H69:K72) -> 47600 | R73: =SUM(R69:U72) -> 47600 | AE73: =SUM(AE69:AH72) -> 800 | AO73: =SUM(AO69:AR72) -> 800
A75: S | C75: Bank | U75: H | X75: S | Z75: Umsatzsteuer | AR75: H
A77: (2) | H77: 46648 | X77: (2) | AE77: =Z64 -> 152 | AI77: (1) | AO77: =H70/119*19 -> 7600
A81: S | C81: Umsatzerlöse | U81: H
A83: =AI70 -> Saldo => UE | H83: =AO70 -> 800 | L83: (1) | R83: =H70/119*100 -> 40000 | V83: (=Ertrag)
A84: Saldo => GuV | H84: =R83-H83 -> 39200
H85: =SUM(H83:K84) -> 40000 | R85: =SUM(R82:U84) -> 40000
M87: Probe | O87: =H77 -> 46648
O88: =AE70 -> 800
O89: =AE77 -> 152
O90: =SUM(O87:R89) -> 47600 | S90: (= Forderungen aus LuL)
B94: Buchungssatz: | H94: Soll | R94: =SUM(R95:U96) -> 47600 | X94: Haben | AL94: =SUM(AL95:AO96) -> 47600
B95: Verkauf | H95: =C68 -> Forderungen aus LuL | R95: =H70 -> 47600 | V95: an | X95: =Z75 -> Umsatzsteuer | AL95: =AO77 -> 7600
B96: auf Ziel | X96: =C81 -> Umsatzerlöse | AL96: =R83 -> 40000
B99: Buchungssatz: | H99: Soll | R99: =SUM(R100:U102) -> 47600 | X99: Haben | AL99: =SUM(AL100:AO102) -> 47600
B100: Skonto | H100: =C75 -> Bank | R100: =H77 -> 46648 | V100: an | X100: =H95 -> Forderungen aus LuL | AL100: =R95 -> 47600
B101: Bezahlung | H101: =Z75 -> Umsatzsteuer | R101: =AE77 -> 152
H102: =Z68 -> Gewährte Skonti | R102: =AE70 -> 800
J106: Aufwendungen | M106: Gewinn- und Verlustrechnung | AG106: Ertrag
J108: ………. | S108: ……… | W108: Umsatzerlöse | AF108: =AL96 -> 40000
W109: =H102 -> Gewährte Skonti | AF109: =-R102 -> -800
AF110: =AF108+AF109 -> 39200
W112: …………. | AF112: ……..

Sheet 16
A2: ='15'!A57:BA57+1 -> 74
B4: 16 | C4: Buchungen im Sachanlagebereich
B6: In diesem Abschnitt befassen wir uns mit den Buchungen der Investition. Investitions- oder Anlagebuchungen sind solche, die Gegenstände betreffen, die dem Anlagevermögen zuzurechnen sind. Anlagevermögen ist alles, was langfristig dem Unternehmen zu dienen bestimmt ist (§ 247 Abs. 2 HGB). Wie schon bei der Kategorisierung der Materialarten kommt es also auch hier wieder auf den Willen des Buchführungspflichtigen an, wie ein bestimmtes Objekt zu behandeln ist: soll ein Fahrzeug beispielsweise verkauft werden, so handelt es sich um eine Ware, d. h., es ist beabsichtigt, es nur kurze Zeit im Unternehmen zu halten - selbst wenn dies aus praktischen Gründen nicht durchführbar sein sollte, weil der Gegenstand etwa ein „Ladenhüter“ wird. Wird hingegen ein Fahrzeug aus dem Warenbestand entnommen, um dem Autohändler als Dienstfahrzeug zu dienen, so liegt eine langfristige Nutzungsabsicht vor und der Gegenstand ist dem Anlagevermögen zuzurechnen - selbst dann, wenn das Gerät schon nach kurzer Zeit durch Unfall zerstört wird. Als Grenze zwischen Lang- und Kurzfristigkeit wird hierbei traditionell ein Jahr angenommen.
B8: 16.1 | C8: Buchungen neuer Anlagen (Anschaffung/Kauf)
B10: Die Buchung der Investition in neue Anlagen ist relativ unproblematisch: Maschinen (Bestandskonto) ............................. 10.000 Vorsteuer ........................................................... 1.900 AN Verbindlichkeiten aus LuL oder Bank.......................... 11.900 Allerdings ist i.d.R. für jede Anlage ein eigenes Konto zu errichten, um später die Abschreibung für jede Anlage einzeln erfassen zu können.
B12: Zu den „Maschinen“ gehören dabei alle Anlagen, die direkt der Produktion, also der Erstellung der betrieblichen Hauptleistung dienen; zur „Betriebs- und Geschäftsausstattung“ hingegen zählen alle Anlagen, die anderen, nicht direkt produktionsbezogenen Zwecken zugeordnet werden. Die buchhalterische Zuordnung schon eines einfachen Computers hängt also u. U. schon davon ab, welche Software darauf laufen soll bzw. zu welchem Zweck er angeschafft wird.
B14: Das HGB definiert die sogenannten „Anschaffungskosten“ als „Alle Aufwendungen, die geleistet werden, um einen Vermögensgegenstand zu erwerben und ihn in einen betriebsbereiten Zustand zu versetzen, soweit sie dem Vermögensgegenstand einzeln zugeordnet werden können“ (§ 255 Abs. 1 HGB). Diese Definition meint eigentlich die Anschaffungsausgaben (denn Kosten sind betriebswirtschaftlich ganz anders definiert).
A17: =A2+1 -> 75
B19: Begriff: Anschaffungskosten
B21: § 255 [1] HGB Anschaffungs- und Herstellungskosten (1) 1 Anschaffungskosten sind die Aufwendungen, die geleistet werden, um einen Vermögensgegenstand zu erwerben und ihn in einen betriebsbereiten Zustand zu versetzen, soweit sie dem Vermögensgegenstand einzeln zugeordnet werden können. 2 Zu den Anschaffungskosten gehören auch die Nebenkosten sowie die nachträglichen Anschaffungskosten. 3 Anschaffungspreis-minderungen sind abzusetzen.
B23: Zunächst bedeutet die zitierte Rechtsvorschrift die folgende Rechnung, um zum Anschaffungskostenwert zu gelangen:
B25: Anschaffungspreis: Netto-Kaufpreis gemäß der oben dargestellten Buchung. + Nebenkosten: Bezugskosten wie z.B. Speditions- und Frachtkosten, Zölle, Fundamentierung, Notar, Montage, Zulassung, Makler usw. + Nachträgliche Anschaffungskosten: Erschließung (bei Grundstücken), Beschaffung von notwendigem Zubehör, Umbauten usw. ./. Anschaffungskostenminderungen: Rabatte, Skonti, Boni, Gutschriften, Nachlässe wegen Mängelrügen usw.
B27: Die jeweiligen weiteren Positionen müssen dabei dem jeweiligen Objekt exakt zurechenbar sein, d. h., nur einzeln zuzuordnende Werte können als Anschaffungskostenmehrungen oder -minderungen behandelt werden. Die Buchung für die Bezugskosten, d. h., die Speditionsrechnung des Spediteurs für die Anlieferung einer Maschine wäre also Maschinen (Bestandskonto) ...................................... 500 Vorsteuer .................................................................... 95 AN Verbindlichkeiten aus LuL oder Bank................................. 595 wenn die Rechnung einer einzelnen Anlage genau zuzurechnen wäre. Hat der Spediteur aber bei der gleichen Fahrt mehrere Anlagen geliefert, so käme höchstens noch eine Aufteilung oder eine Behandlung als „normale“ Betriebskosten in Frage.
B29: Fall 1:
B30: Kauf einer Maschine für 40.000 €; die Transport- und Montagekosten betragen 3.000 €; Banküberweisung mit Abzug von 2 % Skonto vom reinen Listenpreis der Maschine.
C31: Anschaffungspreis lt. Liste | AD31: 40000
B33: + | C33: Anschaffungsneben“kosten“ | AD33: 3000
B35: - | C35: Anschaffungs“kosten“minderungen
C36: 2 % Skonto aus 40.000 € | AD36: =-AD31*2% -> -800
B38: = | C38: Anschaffungskosten | AD38: =SUM(AD31:AL37) -> 42200
A41: =A17+1 -> 76
B45: Industrie-UN | L45: Einkauf: Maschine | X45: Lieferant
M47: Entgelt | O47: 43000
M48: +Umsatzsteuer 19% | O48: =O47*19% -> 8170 | S48: (Vorsteuer)
M49: =Kaufpreis | O49: =O47*1.19 -> 51170
B51: Buchungssatz: | H51: Soll | R51: =SUM(R52:U53) -> 51170 | X51: Haben | AL51: =SUM(AL52:AO53) -> 51170
B52: Lieferung | H52: Maschine | R52: =AD31+AD33 -> 43000 | V52: an | X52: Verblk. aus Lieferung | AL52: =R52+R53 -> 51170
B53: Maschine | H53: Vorsteuer | R53: =R52*0.19 -> 8170
B56: Buchungssatz: | H56: Soll | R56: =SUM(R57:U58) -> 51170 | X56: Haben | AL56: =SUM(AL57:AO59) -> 51170
B57: Skonto | H57: =X52 -> Verblk. aus Lieferung | R57: =AL52 -> 51170 | V57: an | X57: Bank | AL57: =51170-952 -> 50218
B58: Bezahlung | X58: =H53 -> Vorsteuer | AL58: =AL59*0.19 -> 152
X59: Maschinen (Skonto) | AL59: =-AD36 -> 800
X60: =C35 -> Anschaffungs“kosten“minderungen
B64: Fall 2:
B65: Kauf eines Pkw mit 6jähriger Nutzungsdauer am 01.10.08 für 50.000 €. Außerdem fallen an (alle Angaben netto ohne USt):
AD67: netto | AM67: Umsatzsteuer
C68: Anschaffungspreis lt. Liste | AD68: 50000 | AM68: =AD68*0.19 -> 9500
B70: + | C70: Anschaffungsneben“kosten“
C71: • Überführungskosten | AD71: 500 | AM71: =AD71*0.19 -> 95
C72: • Werbeaufschrift | AD72: 750 | AM72: =AD72*0.19 -> 142.5
C73: • Nummernschilder | AD73: 60 | AM73: =AD73*0.19 -> 11.4
C74: • Zulassungsgebühr mit Wunschkennzeichen | AD74: 105 | AM74: -
B75: - | C75: Anschaffungs“kosten“minderungen
AD76: 0 | AM76: -
B78: = | C78: Anschaffungskosten | AD78: =SUM(AD68:AL77) -> 51415 | AM78: =SUM(AM68:AU77) -> 9748.9
B81: Sofortaufwand:
C82: • Kfz-Steuer (keine Umsatzsteuer) | AD82: 400 | AM82: -
C83: • Kfz-Versicherung (keine Umsatzsteuer) | AD83: 600 | AM83: -
C84: • Tankfüllung (zzgl. Umsatzsteuer) | AD84: 70 | AM84: =AD84*0.19 -> 13.3
AD85: =SUM(AD82:AL84) -> 1070 | AM85: =SUM(AM82:AU84) -> 13.3
B87: Zu den AK gehören Kaufpreis abzüglich Minderung (Rabatt), Skonti + Überführungskosten (Frachtkosten, Rollgelder, Transportversicherungskosten), Einfuhrzoll, + Anschaffungsnebenkosten, Kosten für Zubehörteile insoweit, als sie gleichzeitig mit dem Kfz angeschafft werden z. B. Nebellampen, Auto-Uhren, Schonbezüge, zusätzliche Scheinwerfer, besondere Anzeigegeräte und auch das Autoradio, sofern es eingebaut ist. Gebühren, Steuern und sonstige Aufwendungen, die geleistet werden, um die wirtschaftliche Verfügungsmacht zu erlangen, und Finanzierungskosten gehören nicht zu den AK des Kfz, sondern zu den sofort abziehbaren Aufwendungen.
A89: =A41+1 -> 77
B91: Buchungssatz: | H91: Soll | R91: =SUM(R92:U96) -> 62247.2 | X91: Haben | AL91: =SUM(AL92:AO93) -> 62247.2
B92: Anschaffung / | H92: PKW | R92: =AD78 -> 51415 | V92: an | X92: Bank | AL92: =AD85+AM85+AD78+AM78 -> 62247.2
B93: Sofortaufwand | H93: Kfz-Steuer (Aufwand) | R93: =AD82 -> 400
H94: Kfz-Versicherung | R94: =AD83 -> 600
H95: Treibstoffkosten | R95: =AD84 -> 70
H96: Vorsteuer | R96: =AM85+AM78 -> 9762.2
B98: AK
B99: =R92 -> 51415 | E99: Restbuchwert
E100: =B99-E103 -> 49272.70833 | I100: =E100-I103 -> 40703.54167 | M100: =I100-M103 -> 32134.375 | Q100: =M100-Q103 -> 23565.20833 | U100: =Q100-U103 -> 14996.04167 | Y100: =U100-Y103 -> 6426.875 | AC100: =Y100-AC103 -> 1.091393642e-11 | AG100: =AD99-AG103 -> 0
E102: Abschreibung
E103: =B99/6/12*3 -> 2142.291667 | I103: =$B$99/6 -> 8569.166667 | M103: =$B$99/6 -> 8569.166667 | Q103: =$B$99/6 -> 8569.166667 | U103: =$B$99/6 -> 8569.166667 | Y103: =$B$99/6 -> 8569.166667 | AC103: =$B$99/6/12*9 -> 6426.875 | AG103: =AD99/6/12*3 -> 0
B106: 01.10.08 | E106: 31.12.08 | I106: 31.12.09 | M106: 31.12.10 | Q106: 31.12.11 | U106: 31.12.12 | Y106: 31.12.13 | AC106: 31.12.14 | AG106: 31.12.15 | AM106: Zeit
B110: Buchungssatz: | H110: Soll | R110: =SUM(R111) -> 2142.291667 | X110: Haben | AL110: =SUM(AL111:AO112) -> 2142.291667
B111: Sofortaufwand | H111: Abschreibung | R111: =E103 -> 2142.291667 | V111: an | X111: PKW | AL111: =E103 -> 2142.291667
B112: Abschreibung
B114: Buchungssatz: | H114: Soll | R114: =SUM(R115:U143) -> 49272.70833 | X114: Haben | AL114: =SUM(AL115:AO116) -> 49272.70833
B115: Schluss- | H115: Schlussbilanz | R115: =E100 -> 49272.70833 | V115: an | X115: PKW (Endbestand) | AL115: =E100 -> 49272.70833
B116: Bilanz
B118: MERKE: Anschaffungsneben“kosten“ sind keine Kosten, sie müssen als Bestandteile des Kaufpreises mit dem Vermögensgut direkt auf dem Anlagenkonto (Bestandskonto) aktiviert werden. Wir verwenden kein gesondertes Unterkonto ANK wie beim Umlaufvermögen (z.B. Vorräte), weil Investitionen nicht so häufig wie Käufe von Stoffen vorgenommen werden. Entsprechend werden (einmalige) Nachlässe direkt auf dem Anlagenkonto im Haben abgezogen (kein gesondertes Unterkonto „Erhaltene Nachlässe“ wie beim Umlaufvermögen verwenden!). So ergeben sich auf dem Anlagenkonto als Basis für die spätere Abschreibung die sogenannten ANSCHAFFUNGSKOSTEN.
B120: Laufende / regelmäßig wiederkehrende Zahlungen (z. B. Kfz-Steuer, Versicherungen) werden nicht aktiviert, sie sind „echte“ Kosten bzw. Aufwendungen (GuV!).
B122: A = | C122: Anschaffungskosten
B123: H = | C123: Herstellungskosten
B124: K = | C124: Kosten
A127: =A89+1 -> 78
B129: Fall 3:
B130: Weiteres Beispiel für aktivierungspflichtige Anschaffungsneben“kosten“ bei Kauf von Grundstücken und Gebäuden (Buchung wie Fälle 1 und 2):
C131: Anschaffungspreis
C132: Kaufpreis
B133: + | C133: Anschaffungsneben“kosten“
C134: GRUNDERWERBSTEUER (früher 3,5 % vom Kaufpreis, erhöht auf 5%)
C135: ! Achtung: nicht aber die periodische GRUNDSTEUER
C136: Notariats- und Grundbuchkosten für Eigentumsübertragung, Maklergebühr
C137: Erschließungsbeitrag
C138: Eventuell Abbruchkosten
C140: Keine Finanzierungskosten (= Sofortaufwand) Zinsen, Notar- und Grundbuchkosten für Eintragung von Grundpfandrechten => laufende Aufwendungen!
B142: = | C142: Anschaffungskosten des Grundstücks / Gebäude
B146: HINWEIS: Dieselbe Problematik taucht auch in folgendem Beispiel auf: Ein Autohaus baut uns zusammen mit der Inspektion nachträglich eine Klimaanlage, eine Anhängerkupplung, ein Schiebedach usw. ein.
B147: 1.) | C147: Inspektion => laufende Erhaltung => SOFORTAUFWAND
C149: davon abzugrenzen
B151: 2.) | C151: Nachträglicher Einbau (= Kauf) => Erhöhung Anschaffungskosten
C152: Berücksichtigung über die (künftige) Abschreibung (Restnutzungsdauer)
B154: 16.2 | C154: Abgrenzung zu den geringwertigen Wirtschaftgütern
B156: Aktuelle steuerbilanzielle Regelung: Mit dem Gesetz zur Beschleunigung des Wirtschaftswachstums wurde für GWG ab dem 1. 1. 2010 die zuvor zwingend vorgeschriebene GWG-Bilanzierung in der Steuerbilanz abermals reformiert. Gemäß § 6 Abs. 2a EStG bestehen nun folgende Alternativen zur Behandlung von GWG (Wahlrechte): a) GWG mit einem Nettobetrag ohne Vorsteuer bis 410 € sind sofort als Betriebsausgabe (Aufwand) gewinnmindernd abzuziehen, wobei im Falle von GWG bis 150 € eine gesonderte Aufzeichnung unterbleiben kann (§ 6 Abs. 2 Sätze 4 und 5 EStG ). Lediglich für Wirtschaftsgüter über 150 € sind der Tag der Anschaffung/Herstellung/Einlage sowie die Anschaffungs- oder Herstellungskosten gemäß § 6 Abs. 2 Satz 4 EStG in einem gesonderten Verzeichnis zu erfassen, sofern dies nicht bereits aus der Buchführung ersichtlich ist.
B158: b) Alternativ ist es möglich, die GWG mit einem Nettobetrag ohne Vorsteuer von mehr als 150 € bis 1.000 € in einen Sammelposten (Pool-Abschreibung) einzustellen und GWG mit einem Nettobetrag von weniger als 150 € sofort abzuschreiben. Der Sammelposten ist analog zur Regelung der Jahre 2008 und 2009 ( Unternehmensteuerreformgesetz 2008, § 6 Abs. 2a EStG a. F.) gewinnmindernd im Jahr der Bildung sowie in den nachfolgenden vier Jahren aufzulösen. Gesonderte Dokumentationsanforderungen bestehen lediglich im Hinblick auf eine ggf. abweichende Wahlrechtsausübung in der Handelsbilanz gemäß § 5 Abs. 1 Sätze 2 und 3 EStG .
A161: =A127+1 -> 79
B163: c) Daneben besteht weiterhin die Möglichkeit, die beweglichen Wirtschaftsgüter des Anlagevermögens separat zu aktivieren und über die betriebsgewöhnliche Nutzungsdauer abzuschreiben. Hinweis: Es gilt bei der Auswahl der Methoden zu beachten, dass das Stetigkeitsgebot gewahrt wird. Die Möglichkeit der Sofortabschreibung ist dabei stets wirtschaftsgutbezogen individuell und die Sammelpostenregelung stets wirtschaftsjahrbezogen auszuüben, d. h. das Wahlrecht kann nur einheitlich für alle GWG von mehr als 150 €, aber nicht mehr als 1.000 € Nettobetrag ohne Vorsteuer ausgeübt werden.
B165: Die Vorschrift gilt nur für Gegenstände, die der Buchführungspflichtig selbst verbrauchen will, nicht aber für Waren oder Stoffe, die er gelagert hat. Diese sind Umlaufvermögensgegenstände und können daher niemals geringwertige Wirtschaftsgüter sein, solange nicht eine langfristige Nutzungsabsicht eintritt.
B167: siehe hierzu Übung 9.6.5
A171: =A161+1 -> 80
B173: 16.3 | C173: Instandhaltung und Investition
B175: Instandhaltung liegt vor, wenn ein Zustand, der schon einmal vorhanden war, wiederhergestellt wird, also nichts Neues geschaffen wird. Der Instandhaltungsaufwand ist daher als Aufwand zu buchen: Instandhaltungsaufwand ............................ 1.000 Vorsteuer ....................................................... 190 AN Verbindlichkeiten aus LuL ........................ 1.190
B177: Wird hingegen die reparierte Anlage erweitert oder verbessert, so wäre dies ggfs. als nachträgliche Anschaffungskostengröße zu behandeln (Abschreibung über die Restnutzungsdauer): Maschinen (Bestandskonto) ................................... 1.000 Vorsteuer .................................................................. 190 AN Verbindlichkeiten aus LuL ........................ 1.190
B179: Viele Rechnungen enthalten beide Komponenten gleichzeitig, d. h., mit einem Arbeitsgang wird eine Anlage instandgesetzt und zugleich erweitert. Wird hierfür nur eine Gesamtrechnung erstellt, so ist diese dennoch in zwei Teile aufgeteilt werden: Maschinen (Bestandskonto) ...................................... 400 Instandhaltung ........................................................... 600 Vorsteuer .................................................................. 190 AN Verbindlichkeiten aus LuL oder Bank........................ 1.190 In diesem Fall wären 60% einer Rechnung als Instandhaltungsaufwendungen und 40% als Erweiterungsinvestition und damit als nachträgliche Anschaffungskosten betrachtet worden.
A183: =A171+1 -> 81
B185: 16.4 | C185: Aktivierte Eigenleistungen
B187: Erstellt sich ein Unternehmen eine eigene Anlage, anstatt eine solche einzukaufen, so ist auch diese Anlage zu buchen. Man spricht in diesem Zusammenhang von der Aktivierungspflicht bei Eigenleistungen. Die Bewertung hierfür geschieht nach der Herstellungskostenregelung des § 255 Abs. 2 HGB. Herstellungskosten sind allgemein alle Aufwendungen, die durch den Verbrauch von Gütern und die Inanspruchnahme von Diensten für die Herstellung eines Vermögensgegenstandes, seine Erweiterung oder für eine über seinen ursprünglichen Zustand hinausgehende wesentliche Verbesserung entstehen.
B189: Dazu gehören die Materialkosten, die Fertigungskosten und die Sonderkosten der Fertigung. Bei der Berechnung der Herstellungskosten müssen nunmehr durch das Bilanzrechtsmodernisierungsresetz auch „angemessene Teile“ der notwendigen Materialgemeinkosten, der notwendigen Fertigungsgemeinkosten und des Wertverzehrs des Anlagevermögens, soweit durch die Fertigung veranlasst, eingerechnet werden. Aufwendungen für soziale Einrichtungen des Betriebs, für freiwillige soziale Leistungen und für betriebliche Altersversorgung brauchen nicht eingerechnet zu werden, dürfen aber (Wahlrecht). Vertriebskosten dürfen nicht in die Herstellungskosten einbezogen werden (Verbot).
B190: Zinsen für Fremdkapital gehören nicht zu den Herstellungskosten Zinsen für Fremdkapital, das zur Finanzierung der Herstellung eines Vermögensgegenstandes verwendet wird, dürfen angesetzt werden, soweit sie auf den Zeitraum der Herstellung entfallen (vgl. § 255 Abs. 2, Abs. 3 HGB). Durch die Bilanzrechtsmodernisierung wurden die handelsrechtlichen Herstellungskosten praktisch der steuerrechtlichen Definition dieses Begriffes angepasst (vgl. vorstehende Übersicht). Das neue Wahlrecht, Entwicklungskosten anzusetzen, hat jedoch keine steuerliche Entsprechung.
B192: Die Berücksichtigung von Material- und Fertigungsgemeinkosten ist nach den parallelen steurrechtlichen Vorschriften Pflicht. Bisher gab es steuer- und handelsrechtlich voneinander abweichende Vorschriften. Durch die Bilanzrechtsmodernisierung ist der Pflichtausweis im Steuer- und im Handelsrecht jetzt aber gleich. Ein Vergleich zeigt die Unterschiede zwischen den einzelnen Verfahren. Die Ausgangsdaten des Beispieles sind:
B194: Fertigungsmaterial [FM]: 4.200,00 € Materialgemeinkosten [MGK]: 600,00 € Fertigungslöhne [FL]: 3.800,00 € Maschinenkosten [MK]: 6.400,00 € Fertigungsgemeinkosten [FGK]: 4.560,00 € Sondereinzelkosten der Fertigung [SEKF]: 300,00 € Allg. Verwaltungsgemeinkosten [VwGK]: 300,00 € Davon dem Produkt zurechenbar: 100,00 € Zurechenbare Entwicklungskosten: 550,00 € Zurechenbare Fremdkapitalzinsen: 250,00 €
A197: =A183+1 -> 82
B199: Hieraus ergeben sich zunächst die folgenden Herstellungskosten nach Handelsrecht: Fertigungsmaterial 4.200,00 € + Fertigungslöhne 3.800,00 € + Maschinenkosten 6.400,00 € + Sondereinzelkosten d. Fert. 300,00 € + Material-GK 600,00 € + Fertigungs-GK 4.560,00 € = Mindest-HK 19.860,00 € + Verwaltungs-GK 300,00 € + Zurechenbare FK-Zinsen 250,00 € + Entwicklungskosten 550,00 € = Höchst-HK 20.960,00 €
B201: Zur Buchung der Aktivierung ist ein eigenes Ertragskonto „Ertrag aus aktivierten Eigenleistungen“ vorgesehen, auf das die Herstellkosten, die dem Anlagegegenstand zuzurechnen sind, gegengebucht werden. Der Vorgang unterliegt selbstverständlich nicht der Umsatzsteuer, weil er sich innerhalb eines Unternehmens abspielt und nicht im Leistungsverkehr/Rechtsverkehr mit Dritten: Maschinen (Bestandskonto) ................................... 19.860 (bis 20.960) AN Ertrag aus aktivierten Eigenleistungen (Ertrag = GuV!).......... 19.860 (bis 20.960)
B203: Der Ertrag aus aktivierten Eigenleistungen hebt sich dann mit den entsprechenden, ja bereits gebuchten einzelnen Kostenpositionen gegenseitig auf. Insgesamt führt diese Buchungsmethodik also nicht zu einem Gewinn.
A205: =A197+1 -> 83
B207: Beispiel für aktivierte Eigenleistungen: Eine Automobilfabrik fertigt bzw. entnimmt aus dem Lager einen Lkw für den eigenen Gebrauch. Die Herstellungskosten betragen 220.000 €, der entsprechende Verkaufspreis wäre 290.000 €.
B209: Überlegung: Wer einen Lkw benötigt, muss sich einen kaufen (= Anschaffungskosten). Wer Lkw’s fertigt, verkauft diese (= Umsatzerlöse).
B211: Kauf: Fuhrpark an Verbindlichkeiten aus LuL
B212: Verkauf: Forderungen aus LuL an Umsatzerlöse (= Ertrag)
B213: Ein Unternehmen, kann aber auch selbsterstellte Anlagegüter nicht verkaufen sondern selber (intern) nutzen!
B215: Wiederholung der Definition: Aktivierte Eigenleistungen
B216: In der Gewinn- und Verlustrechnung werden die zu aktivierende Eigenleistungen (=Ertrag) als Äquivalent selbsterstellter Anlagegüter erfasst und stellen damit einen Gegenposten für im Geschäftsjahr aufgewendete und gebuchte Personal- und Materialkosten dar. Die Bewertung erfolgt der Höhe nach zu den Herstellungskosten als Neutralisierung dieser.
B218: 1. Herstellung verursacht Personal-, Material- und sonstige Aufwendungen (Verbrauch), die den Gewinn gemindert haben!
B219: 2. Aktivierung (Neutralisierung) der Aufwendungen aus Nr. 1 (Personal, Material und sonstiges) und Umgliederung in einen Gegenposten in der Bilanz, da kein Kaufpreis vorliegt! Es wird sozusagen ein fiktiver Anschaffungsvorgang unterstellt! Die Bewertung erfolgt mit den Herstellungskosten (Annahme: Euro 20.000)
B221: 3. Abschreibung des (selbsterstellten) Anlagegutes über die künftige Nutzungsdauer! Bemessungsgrundlage sind die Herstellungskosten
A223: S | C223: Maschine (selbsterstellt!) | U223: H | X223: Aufw. | Z223: Gewinn- und Verlustrechnung | AR223: Ertr.
B224: 2. Herstellungskosten | H224: 20000 | X224: 1. Personal | AI224: akt.Eigenl. | AO224: =H224 -> 20000
A225: des selbsterstellten | X225: 2. Material
B226: Anlagegutes | L226: 3. Abschreibung | X226: 3. sonstiges
X230: S | Z230: aktivierte Eigenleistungen (Ertrag) | AR230: H
X232: Saldo => GuV | AE232: =AO224 -> 20000 | AO232: =AE232 -> 20000
AE234: =SUM(AE231:AH233) -> 20000 | AO234: =SUM(AO231:AR233) -> 20000
S236: (= aktivierte Eigenleistungen ist ein Unterkonto der GuV und dient der Neutralisierung der Aufwendungen aus Nr. 1)
B239: Buchungssatz: | H239: Soll | R239: =SUM(R240:U241) -> 20000 | X239: Haben | AL239: =SUM(AL240:AO244) -> 20000
B240: Aktivierung | H240: =C223 -> Maschine (selbsterstellt!) | R240: =H224 -> 20000 | V240: an | X240: =Z230 -> aktivierte Eigenleistungen (Ertrag) | AL240: =AO224 -> 20000
B241: Neutralisierung
A243: =A205+1 -> 84
B245: Merke: Die Bewertung erfolgt mit den Herstellungskosten, also nicht mit dem Verkaufspreis Die Herstellungskosten umfassen keinen Gewinn(zuschlag) und keine Vertriebskosten. Anschaffungsprinzip bzw. gemildertes Niederstwertprinzip wegen kaufmännischer Vorsicht!
B248: Vorsicht wegen Verwechslungsgefahr:
B250: • Privatentnahme (geht in Privathaushalt) => USt-pflichtiger Ertrag
B252: • Aktivierte Eigenleistung (bleibt im Unternehmen) => nicht-USt-pflichtiger Ertrag
B254: Der Ertrag „Aktivierte Eigenleistung“ erhöht den Gewinn in dem Maße, wie er durch die Herstellungskosten des Anlagegutes vorher aktiviert wurde. Somit wird das Anlagegut erst durch die ABSCHREIBUNG in den Nutzungsjahren zu (künftigem) Aufwand.
B256: Hinweis: Verwechseln Sie bitte nicht den bilanztechnischen Begriff „Herstellungskosten“ ( §§ 253 ff. HGB; § 6 EStG) mit dem kostenrechnerischen Begriff „Herstellkosten“ (vgl. RW II).
B258: 16.5 | C258: Abgang / Verkauf von gebrauchten Anlagegütern
B260: Vielfach werden Anlagegüter nicht bis zum Ende ihrer Lebenszeit im Anlagevermögen gehalten, sondern scheiden vorher aus dem Unternehmen aus. In diesen Fällen haben wir es mit einem vorzeitigen Abgang der Vermögensgegenstände zu tun. Dieser ist umsatzsteuerpflichtig und geschieht nahezu niemals genau zum Buchwert, so dass der Differenzbetrag zwischen Buchwert und wirklichem Nettoverkaufspreis des Anlagegutes sich als Ertrag (Buchgewinn) oder Aufwand (Buchverlust) darstellt.
B262: Anlageabgang zum Buchwert Zu dieser Form des Anlageabganges kommt es, wenn der Verkaufspreis des Anlagegutes netto ohne Umsatzsteuer genau gerade seinem Buchwert entspricht. Anlageabgänge zum Buchwert sind eher selten, aber buchungstechnisch der einfachste Fall und daher hier aus didaktischen Gründen vorgeführt. Betrage der Buchwert eines Anlagegegenstandes beispielsweise noch genau 1.000 €, und werde der Gegenstand für 1.190 €, also genau gerade diesem Buchwert plus der jeweiligen Umsatzsteuer verkauft, so wäre zu buchen: Forderungen aus LuL ................................ 1.190 AN Maschinen .................................................... 1.000 Umsatzsteuer .................................................. 190
A265: =A243+1 -> 85
B267: Anlageabgang über Buchwert (Buchgewinn) Ein solcher liegt vor, wenn der Verkaufspreis des Anlagegutes netto ohne Umsatzsteuer über seinem Buchwert liegt. Das Unternehmen realisiert damit einen außerordentlichen Ertrag. Der Vorgang gehört nicht zu den betrieblichen Erträgen, weil der Verkauf alter Anlagegegenstände nicht der „normale“ Geschäftsverlauf ist. Beträgt der Verkaufspreis für die vorstehende Anlage im Buchwert von 1.000 € nunmehr 1.500 € inklusive Umsatzsteuer, so läge dieser Wert auch netto über dem Buchwert. Es wäre also zu buchen: Forderungen aus LuL ........................... 1.500,00 AN Maschinen/Anlagen ............................... 1.000,00 sonstiger betrieblicher Ertrag .......................... 260,50 Umsatzsteuer .......................................... 239,50 Man beachte, dass der Ertrag (Buchgewinn) sich hier als Saldo zwischen Bruttowert, Umsatzsteuer und Buchwert darstellt.
B269: Anlageabgang unter Buchwert (Buchverlust) Dieser tritt ein, wenn der Verkaufspreis des Anlagegutes netto ohne Umsatzsteuer unter seinem Buchwert liegt. Das Unternehmen realisiert damit einen außerordentlichen Aufwand. Der Vorgang gehört nicht zu den betrieblichen Aufwendungen, weil der Verkauf alter Anlagegegenstände unter Buchwert nicht zum normalen Geschäftsverlauf gehört. Beträgt der Verkaufspreis aus der vorstehenden Anlage im Buchwert von 1.000 € nunmehr nur noch brutto 800 €, so entsteht nach dem gleichen Muster ein außerordentlicher Aufwand: Forderungen aus LuL .............................. 800,00 sonst. betriebl. Aufwand ......................... 327,73 AN Maschinen/Anlagen ............................... 1.000,00 Umsatzsteuer ............................................. 127,73
B271: Übungsfall 1: Am 01.01.01 wurde für 35.000 € ein Pkw mit einer geschätzten Nutzungsdauer von 5 Jahren gekauft. Heute, am 31.12.03, beträgt der Restbuchwert nach der linearen Jahresabschreibung von 03 noch 14.000 €. Wir verkaufen den Pkw heute, am 31.12.03, mit einem Verkaufserlös netto (Bank) von a) 18.000 € b) 13.000 € jeweils zuzügl. 19 % USt.
B272: Wir erkennen unschwer, dass wir im Fall a) anscheinend 4.000 € zuviel abgeschrieben haben (Unterbewertung), während wir im Fall b) 1.000 € zuwenig abgeschrieben haben (Überbewertung).
B274: Die Differenz zwischen Restbuchwert und Verkaufserlös (netto) muss also wegen einer „falschen“ Abschreibung bisher jetzt erfolgswirksam (d.h. als Aufwand oder Ertrag) verbucht werden.
A276: =A265+1 -> 86
B278: Variante 1
M279: Entgelt | O279: 18000
M280: + 19 % Umsatzsteuer | O280: =O279*19% -> 3420
M281: =Verkaufspreis | O281: =O279+O280 -> 21420
M283: Verkaufserlös a. Anlagenabgang | O283: 18000
M284: - Restbuchwert | O284: -14000 | S284: (Restbuchwert nach anteiliger Abschreibung bis zum Verkaufszeitpunkt)
M285: =Buchgewinn | O285: =O283+O284 -> 4000
B288: Buchungssatz: | H288: Soll | R288: =SUM(R289:U290) -> 21420 | X288: Haben | AL288: =SUM(AL289:AO290) -> 21420
B289: Verkauf | H289: Forderungen a. LuL | R289: =O281 -> 21420 | V289: an | X289: Verkaufserlös a. Anlagenabgang | AL289: =O279 -> 18000
B290: auf Ziel | X290: Umsatzsteuer | AL290: =O280 -> 3420
B293: Buchungssatz: | H293: Soll | R293: =SUM(R294:U295) -> 14000 | X293: Haben | AL293: =SUM(AL294:AO295) -> 14000
B294: Anlagen- | H294: Restbuchwert a. PKW-Abgang | R294: =-O284 -> 14000 | V294: an | X294: Fuhrpark | AL294: =-O284 -> 14000
B295: abgang | H295: (Aufwandskonto)
A298: S | C298: Fuhrpark (Bestandskonto) | U298: H | X298: Aufw. | Z298: GuV | AR298: Ertr.
L300: RBW | R300: =R294 -> 14000 | X300: RBW | AE300: =R294 -> 14000 | AI300: Verkaufserlös | AO300: =AL289 -> 18000
X301: Buchgewinn | AE301: =AO300-AE300 -> 4000
H303: =SUM(H299:K302) -> 0 | R303: =SUM(R299:U302) -> 14000 | AE303: =SUM(AE299:AH302) -> 18000 | AO303: =SUM(AO299:AR302) -> 18000
B307: Variante 2
M308: Entgelt | O308: 13000
M309: + 19 % Umsatzsteuer | O309: =O308*19% -> 2470
M310: =Verkaufspreis | O310: =O308+O309 -> 15470
M312: Verkaufserlös a. Anlagenabgang | O312: 13000
M313: - Restbuchwert | O313: -14000 | S313: (Restbuchwert nach anteiliger Abschreibung bis zum Verkaufszeitpunkt)
M314: =Buchverlust | O314: =O312+O313 -> -1000
B317: Buchungssatz: | H317: Soll | R317: =SUM(R318:U319) -> 15470 | X317: Haben | AL317: =SUM(AL318:AO319) -> 15470
B318: Verkauf | H318: Forderungen a. LuL | R318: =O310 -> 15470 | V318: an | X318: Verkaufserlös a. Anlagenabgang | AL318: =O308 -> 13000
B319: auf Ziel | X319: Umsatzsteuer | AL319: =O309 -> 2470
B322: Buchungssatz: | H322: Soll | R322: =SUM(R323:U324) -> 14000 | X322: Haben | AL322: =SUM(AL323:AO324) -> 14000
B323: Anlagen- | H323: Restbuchwert a. PKW-Abgang | R323: =-O313 -> 14000 | V323: an | X323: Fuhrpark | AL323: =-O313 -> 14000
B324: abgang | H324: (Aufwandskonto)
A327: S | C327: Fuhrpark (Bestandskonto) | U327: H | X327: Aufw. | Z327: GuV | AR327: Ertr.
L329: RBW | R329: =R323 -> 14000 | X329: RBW | AE329: =R323 -> 14000 | AI329: Verkaufserlös | AO329: =AL318 -> 13000
AI330: Buchverlust | AO330: =AE329-AO329 -> 1000
H332: =SUM(H328:K331) -> 0 | R332: =SUM(R328:U331) -> 14000 | AE332: =SUM(AE328:AH331) -> 14000 | AO332: =SUM(AO328:AR331) -> 14000
B334: 1.) | C334: Verkaufserlös (netto) > Restbuchwert =>sonstiger Ertrag (Variante 1: Buchgewinn)
B336: 2.) | C336: Verkaufserlös (netto) < Restbuchwert =>sonstiger Aufwand (Variante 2: Buchverlust)
A339: =A276+1 -> 87
C341: Hinweis: Bei Verkauf eines gebrauchten Anlagegutes aus dem Sammelposten für Güter (Pool) zwischen 150,01 € und 1.000 € gibt es wegen des Sammelpostens keinen diesem Gut zuordenbaren Restbuchwert. Der Verkaufserlös wird – unabhängig vom Zeitpunkt des Verkaufs – in voller Höhe erfolgswirksam gebucht.
C343: Beispiel: Verkauf eines gebrauchten Rasenmähers (AK 900 €) für 400 €:
M345: Entgelt | O345: 400
M346: + 19 % Umsatzsteuer | O346: =O345*19% -> 76
M347: =Verkaufspreis | O347: =O345+O346 -> 476
B350: Buchungssatz: | H350: Soll | R350: =SUM(R351:U352) -> 476 | X350: Haben | AL350: =SUM(AL351:AO352) -> 476
B351: Verkauf | H351: Forderungen a. LuL | R351: =O347 -> 476 | V351: an | X351: Sonstige Erträge | AL351: =O345 -> 400
B352: auf Ziel | X352: Umsatzsteuer | AL352: =O346 -> 76
... 63 more rows

Sheet 17
A2: ='16'!A381:BA381+1 -> 89
B4: 17 | C4: Steuern im Unternehmen
B6: Grundsätzlich ist bei Steuerzahlung zu buchen
B8: => Körperschaftsteueraufwand oder Steuer-Rückstellung an Bank
B9: => Gewerbesteueraufwand oder Steuer-Rückstellung an Bank
B11: bei Steuererstattung durch das FA
B13: => Bank an Körperschaftsteuerertrag oder sonstige Vermögensgegenstände
B14: => Bank an Gewerbesteuerertrag oder sonstige Vermögensgegenstände
B17: Buchhalterisch können die Steuerarten in vier Kategorien eingeteilt werden:
B19: I. Steuern als Bilanzposten:
B21: Die Umsatzsteuer sowie die Lohnsteuer haben nichts mit der GuV-Rechnung zu tun. Ihre Bezahlung ist nur der Ausgleich einer Forderung / Verbindlichkeit (Bestandskonten) gegenüber dem FA. Die Steuer wurde ja schließlich von uns vorher anderen, nämlich dem Arbeitnehmer bzw. dem Kunden, „aus der Tasche gezogen“. Das Unternehmen zahlt sozusagen mit fremdem Geld. (= Durchlaufender Posten: Einbehaltung und Abführung für einen Dritten)
B23: II. Betriebliche Steuern (Aufwand- oder Verbrauchsteuern)
B25: Diese Steuern werden in der GKR-Kontenklasse 4 als Aufwand gebucht. Sie schmälern den handelsrechtlichen Gewinn des Unternehmens. Beispiele sind die Gewerbesteuer, die Kfz-Steuer, die Grundsteuer sowie die Verbrauchsteuern (z.B. Mineralöl-, Tabak-, Bier- und Branntweinsteuer). Als Kosten werden sie in die Preise einkalkuliert und letztlich vom Kunden bezahlt, wenn er diesen Preis zu zahlen bereit ist.
B27: Vorsicht: Kfz-Steuer, Grundsteuer und Hundesteuer aus dem privaten Bereich sind wie Gruppe IV zu behandeln, nämlich als Privatentnahme, da sie ja nicht den steuerpflichtigen (Gruppe IV) Gewinn des Unternehmens kürzen dürfen.
B30: III. Aktivierungspflichtige Steuern
B32: Diese Steuern sind Anschaffungsnebenkosten und sind damit auf dem Anlagekonto/Bestandskonto zu aktivieren. Sie erhöhen den Wert des jeweiligen Vermögensgutes. Sie mindern erst über die evtl. Abschreibungen den Gewinn (Ausnahme: Grundstücke!) Beispiel: Grunderwerbsteuer (zum Grundstück rechnen)
B35: IV. Ertrags-/Einkommensteuern bzw. Steuern des Unternehmers (Personensteuern)
B37: Diese Steuern errechnen sich (prozentual) aus dem Gewinn des Unternehmens. Sie schmälern also nicht den steuerpflichtigen Gewinn wie Gruppe II, sondern sie kürzen den Gewinn vor Steuer zum letztlich handelsbilanziellen Gewinn nach Steuer.
B39: Bei eingetragenen Kaufleuten (= e.K.) und den Personengesellschaften (OHG, KG) ist dies die Einkommensteuer. Sie wird verbucht auf dem Konto Privatentnahme (= Unterkonto vom EK-Konto = erfolgsneutral, also keine Gewinnauswirkung).
B41: Bei Kapitalgesellschaften (GmbH, AG) ist dies die Köperschaftsteuer. Da Kapitalgesellschaften kein Privatkonto haben, wird ein gesondertes Konto Körperschaftsteuer (Aufwandskonto) in der eingerichtet.

Sheet 18
A2: ='17'!A2:BA2+1 -> 90
B4: 18 | C4: Bestandsveränderungen an unfertigen und fertigen Erzeugnissen
B6: Problem
J10: Aufw. | M10: Gewinn- und Verlustrechnung (GuV) | AI10: Erträge
A11: Aufwendungen im | J11: Material | S11: 200000 | W11: Umsatzerlöse | AF11: 600000 | AK11: Umsatzerlöse
A12: Geschäftsjahr für | J12: Personal | S12: 200000 | W12: Lücke: 200 PKW | AK12: Geschäftsjahr für
A13: 1.000 PKWs | J13: Abschreibung | S13: 100000 | AK13: 800 PKWs
J15: Gewinn | S15: =AF11-S11-S12-S13 -> 100000
S17: =SUM(S11:V16) -> 600000 | AF17: =SUM(AF11:AI16) -> 600000
B19: Aufwand und Erträge dürfen deshalb nicht miteinander verglichen werden, weil sie sich auf unterschiedliche Mengen beziehen. Normalerweise sind hergestellte und verkaufte Menge nicht gleich.
B21: • Aufwendungen entstehen durch die produzierte Menge.
B23: • Erträge entstehen durch die abgesetzte Menge.
B26: Beispiel 1:
N28: Unfertige Erzeugnisse EB 31.12.11 | O28: 30000
N29: Unfertige Erzeugnisse EB 31.12.12 | O29: 40000
O30: =O29-O28 -> 10000 | S30: MEHR bestand
B33: Für diesen Mehrbestand fiel Aufwand an (in 500.000 € enthalten), während aber noch keine Umsatzerlöse anfielen ( = nicht verkauft). Es wurde mehr produziert als verkauft. Folglich sind die Erträge von 600.000 € eigentlich zu niedrig. Damit ist auch der Gewinn zu niedrig. Ein Mehrbestand ist also ein ERTRAG (BESTANDSERHÖHUNG).
J35: Soll | M35: (Un-) Fertige Erzeugnisse | AI35: Haben
A36: BESTANDS- | J36: AB | S36: 30000
A37: konto | J37: Bestandserhöhung | S37: =AF37-S36 -> 10000 | W37: EB | AF37: 40000
S39: =SUM(S36:V38) -> 40000 | AF39: =SUM(AF36:AI38) -> 40000
J42: Soll | M42: Bestandsveränderungen | AI42: Haben
A43: ERFOLGS- | J43: Saldo => GuV | S43: =AF43 -> 10000 | W43: =J37 -> Bestandserhöhung | AF43: =S37 -> 10000
A44: konto
S46: =SUM(S43:V45) -> 10000 | AF46: =SUM(AF43:AI45) -> 10000
J49: Soll | M49: GuV | AI49: Haben
J50: div. Aufwendungen | S50: 500000 | W50: div. Erträge | AF50: 600000
J51: Gewinn | S51: =AF53-S50 -> 110000 | W51: =W43 -> Bestandserhöhung | AF51: =S43 -> 10000
S53: =SUM(S50:V52) -> 610000 | AF53: =SUM(AF50:AI52) -> 610000
B57: Buchungssatz: | H57: Soll | R57: =SUM(R58:U59) -> 10000 | X57: Haben | AL57: =SUM(AL58:AO59) -> 10000
B58: Bestands- | H58: =M35 -> (Un-) Fertige Erzeugnisse | R58: =S37 -> 10000 | V58: an | X58: =M42 -> Bestandsveränderungen | AL58: =AF43 -> 10000
B59: erhöhung
B61: Abschluss | H61: =M42 -> Bestandsveränderungen | R61: =S43 -> 10000 | V61: an | X61: =M49 -> GuV | AL61: =AF51 -> 10000
B62: BVÄ
B68: Beispiel 2:
N70: =N28 -> Unfertige Erzeugnisse EB 31.12.11 | O70: 65000
N71: =N29 -> Unfertige Erzeugnisse EB 31.12.12 | O71: 28000
O72: =O71-O70 -> -37000 | S72: MINDER bestand
A76: =A2+1 -> 91
B79: Für diesen Minderbestand fielen Erlöse an (in 600.000 € enthalten), denn was nicht mehr da ist, wurde ja verkauft. Da hier aber mehr verkauft als produziert wurde, ist der Minderbestand sozusagen ein Einsatz, der auf schon im Vorjahr(e) produzierte „Reserven“ zurückgreift. Die Aufwendungen hierfür sind also als Verbrauch in der GuV-Rechnung des Vorjahr(e)s enthalten. Damit sind die Aufwendungen von 500.000 € zu niedrig. Damit ist der Gewinn zu hoch. Ein Minderbestand ist also ein Aufwand.
J84: Soll | M84: (Un-) Fertige Erzeugnisse | AI84: Haben
A85: BESTANDS- | J85: AB | S85: =O70 -> 65000 | W85: Bestandsminderung | AF85: =S85-AF86 -> 37000
A86: konto | W86: EB | AF86: =O71 -> 28000
S88: =SUM(S85:V87) -> 65000 | AF88: =SUM(AF85:AI87) -> 65000
J91: Soll | M91: Bestandsveränderungen (BVÄ) | AI91: Haben
A92: ERFOLGS- | J92: Bestandsminderung | S92: =AF85 -> 37000 | W92: => GuV | AF92: =AF85 -> 37000
A93: konto
S95: =SUM(S92:V94) -> 37000 | AF95: =SUM(AF92:AI94) -> 37000
J98: Soll | M98: GuV | AI98: Haben
J99: div. Aufwendungen | S99: 500000 | W99: div. Erträge | AF99: 600000
J100: BVÄ | S100: =AF92 -> 37000
J101: Gewinn | S101: =AF102-S99-S100 -> 63000
S102: =SUM(S99:V101) -> 600000 | AF102: =SUM(AF99:AI101) -> 600000
B107: Buchungssatz: | H107: Soll | R107: =SUM(R108:U109) -> 37000 | X107: Haben | AL107: =SUM(AL108:AO109) -> 37000
B108: Bestands- | H108: =M91 -> Bestandsveränderungen (BVÄ) | R108: =S92 -> 37000 | V108: an | X108: =M84 -> (Un-) Fertige Erzeugnisse | AL108: =AF85 -> 37000
B109: minderung
B111: Abschluss | H111: =M98 -> GuV | R111: =S100 -> 37000 | V111: an | X111: =M91 -> Bestandsveränderungen (BVÄ) | AL111: =AF92 -> 37000
B112: BVÄ
B115: • MEHRbestand: Bestandsveränderungen: EROLGSkonto (ERTRAG)
B117: • MINDERbestand: Bestandsveränderungen: EROLGSkonto (AUFWAND)

Sheet 19
A2: ='18'!A76:BA76+1 -> 92
B5: 19 | C5: Zeitliche Abgrenzung
B6: 19.1 | C6: Vier Formen von Rechnungsabgrenzungsposten
B8: Insgesamt sind vier Fallkonstellationen zu unterscheiden, in denen die Zahlung und die Ertrags- bzw. die Aufwandswirkung eines Vorganges in verschiedenen Perioden liegen: Antizipative („vorwegnehmende“) Posten sind Fälle, in denen die Zahlung erst im neuen Jahr erfolgt, aber schon im alten Geschäftsjahr vorweggenommen wird. Man unterscheidet:
B10: 1. Antizipativer Passivposten (sonstige Verbindlichkeiten): Wir bezahlen eine Verbindlichkeit, die dem alten Geschäftsjahr zuzuordnen ist, erst im neuen Geschäftsjahr, zum Beispiel Löhne, SV-Schulden usw. antizipativer Passivposten sind bei den sonstige Verbindlichkeiten zu buchen, wenn sich nicht ohnehin schon gebucht worden sind. Eingangsrechnungen sind beispielsweise Nachzahlungen, aber keine antizipativen Passivposten, weil sie bereits bei Eingang gebucht wurden.
B12: 2. Antizipativer Aktivposten (sonstige Vermögensgegenstände/Forderungen): Uns wird eine Forderung, die dem alten Geschäftsjahr angehört, nachschüssig, d. h., erst im neuen Jahr bezahlt. Antizipativative Aktivposten sind ebenfalls nur zu buchen, wenn dies nicht ohnehin schon geschehen ist. Ausgangsrechnungen beispielsweise werden bei Rechnungslegung verbucht und führen daher nicht mehr zu antizipativen Passivposten, obwohl zweifelsfrei eine Nachzahlung vorliegt, die auch ins folgende Geschäftsjahr reichen kann.
B14: Transistorische („hinübergehende“) Posten sind Fälle, in denen die Zahlung schon im alten Jahr vorgenommen wird, aber teilweise oder ganz dem neuen Jahr angehört, also in dieses „mitgenommen“ werden muß. Man unterscheidet:
B16: 3. Transitorischer Aktivposten (ARAP): Wir bezahlen eine Rechnung vorschüssig, z.B. zahlen wir einen Versicherungsbeitrag für das Folgejahr schon im alten Geschäftsjahr. Der dem neuen Jahr angehörende Betrag oder Teilbetrag ist am Ende des alten Jahres über die aktiven Rechnungsabgrenzungsposten auszubuchen, so dass er nicht GuV-wirksam wird, und bei Eröffnung des neuen Jahres in das jeweilige Aufwandskonto zurückzubuchen.
B18: 4. Transitorischer Passivposten (PRAP): Uns wird vorschüssig eine Forderung bezahlt, beispielsweise geht die Miete vom Mieter für Januar bereits im Dezember bei uns ein. Der dem alten Wirtschaftsjahr angehörende Betrag oder Teilbetrag ist über die passiven Rechnungsabgrenzungsposten aus der GuV-Rechnung des alten Jahres fernzuhalten, und aus dieser am Beginn des Folgejahres in das Ertragskonto vorzutragen.
B20: Während bei den transitorischen Rechnungsabgrenzungsposten ein zuvor in voller Höhe erfolgswirksam verbuchter Zahlungsvorgang hinsichtlich seiner Erfolgswirksamkeit ganz oder teilweise neutralisiert wird, werden bei den antizipativen Rechnungsabgrenzungsposten die der Zahlung im neuen Geschäftsjahr vorausgehenden Erfolgswirkungen im Rahmen der vorbereitenden Abschlussbuchungen erstmals erfasst.
B22: Für transitorische Rechnungsabgrenzungsposten sieht das Bilanzrecht gesonderte Aktiv- und Passivposten vor, die ohne Vermögensgegenstand oder Schuld zu sein, in den Jahresabschluss aufgenommen werden dürfen, sofern es sich um vorschüssige Zahlungen für Aufwendungen bzw. Erträge für eine bestimmte Zeit nach dem Bilanzstichtag handelt (§ 250, Abs. 2 HGB; § 5 Abs. 5 EStG). Sie werden als aktive bzw. passive Rechnungsabgrenzungsposten ausgewiesen. Antizipative Rechnungsabgrenzungsposten sind dagegen unter den Posten „Sonstige Forderungen“ bzw. „Sonstige Verbindlichkeiten“ ohne gesonderte Erwähnung auszuweisen.
A25: =A2+1 -> 93
B27: 19.2 | C27: Verbuchung von Rechnungsabgrenzungsposten (RAP)
B29: Ziel: periodengerechte Erfolgsermittlung
B31: Die Buchungen der antizipativen Aktivposten Wir erhalten einen Zinsertrag von 600 € für das alte Jahr von einem Darlehensschuldner erst im Folgejahr. Zum Ende des alten Jahres ist der Betrag als Sonstige Forderung auszuweisen: Sonstige Forderungen ................................... 600 an Zinserträge ..................................................... 600 Bei Eingang der Summe kann auf normale Weise der Zahlungseingang gegen die Forderung abgerechnet werden: Bank ............................................................ 600 an Sonstige Forderungen .................................... 600
B33: Die Buchungen der antizipativen Passivposten Wir haben Büromaterial im Wert von 1.000 € erhalten, aber die Rechnung steht zum Jahresende noch aus. Hier wäre die Buchung: Büroaufwendungen .................................... 1.000 an Sonstige Verbindlichkeiten ......................... 1.000 (oder alternativ: Rückstellung für ausstehende Rechnungen ...1.000) Man beachte, dass noch keine Rechnung vorliegt, und daher auch der Ausweis der Vorsteuer unzulässig wäre! Geht die Rechnung des Lieferanten im Folgejahr ein, so wäre zu buchen: Sonstige Verbindlichkeiten ........................ 1.000 Vorsteuer ...................................................... 190 an Bank........................................................... 1.190 Die Zahlung dieser Rechnung stellt sich dann auf die übliche Art und Weise dar.
B35: Die Buchungen der transistorischen Aktivposten Wir zahlen am 1. April eine Versicherungsprämie in Höhe von 1.200 € für ein Jahr im voraus. Das wäre (ohne Berücksichtigung der Sollstellung) zu buchen: Versicherungsaufwand ............................... 1.200 an Bank ............................................................ 1.200 Am Jahresende ist der Betrag, der in das Folgejahr vorausgezahlt wurde, abzugrenzen: Aktive Rechnungsabgrenzung (ARAP) ...................... 300 an Versicherungsaufwand.............................................. 300
A37: =A25+1 -> 94
B39: Auf diese Art ist der Teilbetrag von 300 € für die Monate Januar bis März des Folgejahres aus dem alten Jahresabschluss entfernt worden. Nach Wiedereröffnung der Buchführung im Folgejahr wird diese Position aufgelöst: Versicherungsaufwand .................................. 300 an Aktive Rechnungsabgrenzung ....................... 300 Insgesamt wurden nunmehr 900 € in das alte Jahr gerechnet und 300 € dem neuen Jahr zugeordnet.
B41: Die Buchungen der transitorischen Passivposten Wir haben von einem Mieter am 1. Oktober die Miete für ein Jahr im voraus erhalten. Das wäre (ohne Berücksichtigung der Sollstellung) zu buchen: Bank ......................................................... 2.400 an Mieterträge .................................................. 2.400 Am Jahresende müssen neun Monate abgegrenzt werden, weil diese dem neuen Jahr angehören. Hierzu ist der Betrag von 1.800 € als passive Rechnungsabgrenzung der alten GuV-Rechnung zu entziehen: Mieterträge ................................................. 1.800 an Passive Rechnungsabgrenzung (PRAP)................... 1.800 Nach Wiedereröffnung der Buchführung im Folgejahr könnte nunmehr der abgegrenzte Betrag in die Buchhaltung des neuen Jahres eingebracht werden: Passive Rechnungsabgrenzung .................. 1.800 an Mieterträge .................................................. 1.800
B44: 19.3 | C44: Übungsfälle zur Abgrenzung sonstiger Erträge / Aufwendungen
C45: (abzugrenzende Bilanz-Posten)
B48: Beispiel 1:
B50: Die Hundesteuer für den Wachkampfhund Idefix für das Jahr 2011 wird erst am 04.01.2012 fällig: 200 €.
B52: AUFWAND
L53: Bezahlung
B55: 31.12.2011 | L55: 04.01.2012 | AO55: Zeit
B60: Buchungssatz: | H60: Soll | R60: =SUM(R61:U61) -> 200 | X60: Haben | AL60: =SUM(AL61:AO61) -> 200
B61: AUFWAND 2011 | H61: sonst.betr. Aufwendungen | R61: 200 | V61: an | X61: sonst.Verblk. | AL61: =R61 -> 200
B63: Bezahlung 2012 | H63: =X61 -> sonst.Verblk. | R63: =AL61 -> 200 | V63: an | X63: Bank | AL63: =R63 -> 200
B66: => Gewinnminderung in 2011
A70: =A37+1 -> 95
B72: Beispiel 2:
B74: Unser Mieter muss uns im Januar 2012 noch die Dezembermiete für 2011 bezahlen: 900 €.
B76: ERTRAG
L77: Bezahlung
B79: =B55 -> 31.12.2011 | L79: 04.01.2012 | AO79: Zeit
B82: Buchungssatz: | H82: Soll | R82: =SUM(R83:U83) -> 900 | X82: Haben | AL82: =SUM(AL83:AO83) -> 900
B83: ERTRAG 2011 | H83: Sonst. Forderungen | R83: 900 | V83: an | X83: Mietertrag | AL83: =R83 -> 900
B85: =B63 -> Bezahlung 2012 | H85: Bank | R85: =AL83 -> 900 | V85: an | X85: Sonst. Forderung | AL85: =R85 -> 900
B87: => Gewinnerhöhung in 2011
B90: Ein- und Auszahlung (CASH) ist jeweils im Folge-Jahr (= 2012) Erfolgsauswirkung ist noch im laufenden Jahr (= 2011)
B93: Beispiel 3:
B95: Interessanter wird das Problem, wenn z.B. im Beispiel 1 die Hundesteuer (gesamt: 200 €) für den Zeitraum vom 01.07.2011 bis zum 30.06.2012 erst am 30.06.2012 bezahlt werden müsste. Dann würde die sonst. Verbindlichkeit am 31.12.2011 betragen:
B97: AUFWAND
B100: 2011-07-01 | I100: 2012-06-30 | AO100: Zeit
F101: 2011-12-31
B103: 6 Monate | H103: 6 Monate
B105: =200/12*6 -> 100 | H105: =200/12*6 -> 100
B109: Buchungssatz: | H109: Soll | R109: =SUM(R110:U110) -> 100 | X109: Haben | AL109: =SUM(AL110:AO110) -> 100
B110: Aufwand 2011 | H110: Sonst. betr. Aufwendungen | R110: 100 | V110: an | X110: Sonst. Verblk. | AL110: =R110 -> 100
B112: Bezahlung | H112: =X110 -> Sonst. Verblk. | R112: =B105 -> 100 | V112: an | X112: Bank | AL112: =H105+B105 -> 200
B113: 2012-06-30 | H113: =H110 -> Sonst. betr. Aufwendungen | R113: =H105 -> 100
B119: Beispiel 4:
B121: Analog könnte unser Mieter Ende Januar 2012 eine Miete für die drei vorausgegangenen Monate Nov./2011, Dez./2011 und Jan./2012 von insg. 2.700 € überweisen. Dann würde die sonst. Forderung betragen:
B123: ERTRAG
B126: 11 und 12/2011 | L126: 01/2012 | AO126: Zeit
F127: =F101 -> 2011-12-31
B129: 2 Monate | H129: 1 Monat
B131: =2700/3*2 -> 1800 | H131: =2700/3 -> 900
B135: Buchungssatz:
B136: Ertrag 2011 | H136: Sonst. Forderungen | R136: =B131 -> 1800 | V136: an | X136: Mietertrag | AL136: =B131 -> 1800
B138: Bezahlung | H138: Bank | R138: =H131+B131 -> 2700 | V138: an | X138: =H136 -> Sonst. Forderungen | AL138: =R136 -> 1800
B139: Ende 01.2012 | X139: =X136 -> Mietertrag | AL139: =H131 -> 900
A142: =A70+1 -> 96
B146: Sonstige Forderungen / Verbindlichkeiten (BILANZ-Posten)
B148: Beispiel 1:
B150: Am 21.12.2011 überweisen wir den IHK-Beitrag für das Jahr 2012 im voraus: 2.400 €.
L152: Aufwand
B153: Bezahlung
B155: 2011-12-21 | L155: 2012 | AO155: Zeit
B159: Buchungssatz:
B160: Bezahlung 2011 | H160: IHK Beitrag (Aufwand) | R160: 2400 | V160: an | X160: Bank | AL160: =R160 -> 2400 | AR160: (1)
B162: Abgrenzung | H162: Sonst. Forderung | R162: =AL160 -> 2400 | V162: an | X162: =H160 -> IHK Beitrag (Aufwand) | AL162: =R160 -> 2400
B163: 2011-12-31
B165: Aufwand | H165: =H160 -> IHK Beitrag (Aufwand) | R165: =R162 -> 2400 | V165: an | X165: =H162 -> Sonst. Forderung | AL165: =R162 -> 2400
B166: 2012
B169: richtiger Buchungssatz 2011:
B170: Bezahlung 2011 | H170: =X165 -> Sonst. Forderung | R170: 2400 | V170: an | X170: Bank | AL170: =R170 -> 2400 | AR170: (1)
B173: Beispiel 2:
B175: Wir erhalten die Januarmiete für das Jahr 2012 von 400 € am 28.12.2011 im voraus.
L177: Ertrag
B178: Bezahlung
B180: 2011-12-28 | L180: =L155 -> 2012 | AO180: Zeit
B184: Buchungssatz:
B185: =B160 -> Bezahlung 2011 | H185: Bank | R185: 400 | V185: an | X185: Mietertrag | AL185: =R185 -> 400 | AR185: (falsch!)
B187: Abgrenzung | H187: =X185 -> Mietertrag | R187: =AL185 -> 400 | V187: an | X187: Sonst. Verbindlk. | AL187: =R185 -> 400
B188: =B163 -> 2011-12-31
B190: Ertrag | H190: =X187 -> Sonst. Verbindlk. | R190: =R187 -> 400 | V190: an | X190: =H187 -> Mietertrag | AL190: =R187 -> 400
B191: =B166 -> 2012
B193: richtiger Buchungssatz:
B194: =B185 -> Bezahlung 2011 | H194: Bank | R194: 400 | V194: an | X194: =X187 -> Sonst. Verbindlk. | AL194: =R194 -> 400 | AR194: (richtig!)
A197: =A142+1 -> 97
B199: Beispiel 3:
B201: Der IHK-Beitrag (Euro 2.400) wird schon im März 2011 für einen Zeitraum vom 01.04.2011 bis zum 31.03.2012 vorausbezahlt worden wäre.
B203: Aufwand
B206: 01.04.2011 | I206: 2012-03-31 | AO206: Zeit
B207: Bezahlung
F208: =F127 -> 2011-12-31
B210: 9 Monate | H210: 3 Monat
B212: =2400/12*9 -> 1800 | H212: =2400/12*3 -> 600
B216: Buchungssatz:
B217: =B194 -> Bezahlung 2011 | H217: IHK-Beitrag | R217: =B212+H212 -> 2400 | V217: an | X217: Bank | AL217: =R217 -> 2400
B219: Abgrenzung | H219: ARAP | R219: =H212 -> 600 | V219: an | X219: =H217 -> IHK-Beitrag | AL219: =H212 -> 600
B220: =B188 -> 2011-12-31 | H220: (aktiver Rechnungsabgr.Posten)
B222: Aufwand | H222: =X219 -> IHK-Beitrag | R222: =AL219 -> 600 | V222: an | X222: =H219 -> ARAP | AL222: =R222 -> 600
B223: =B191 -> 2012
B227: Beispiel 4:
B229: Unser Mieter überweist schon am 01.12.2011 für die drei darauf folgenden Monate Dez./2011, Jan./2012 und Febr./2012 insgesamt 1.200 € Miete.
B231: Ertrag
B234: 12/2011 | H234: 01 + 02 / 2012 | AO234: Zeit
B235: Bezahlung
F236: =F208 -> 2011-12-31
B238: 1 Monate | H238: 2 Monat
B240: =1200/3 -> 400 | H240: =1200/3*2 -> 800
B244: Buchungssatz:
B245: =B217 -> Bezahlung 2011 | H245: Bank | R245: =B240+H240 -> 1200 | V245: an | X245: Mietertrag | AL245: =R245 -> 1200
B247: Abgrenzung | H247: =X245 -> Mietertrag | R247: =H240 -> 800 | V247: an | X247: PRAP | AL247: =H240 -> 800
B248: =B220 -> 2011-12-31
B250: Ertrag | H250: =X247 -> PRAP | R250: =AL247 -> 800 | V250: an | X250: =H247 -> Mietertrag | AL250: =R250 -> 800
B251: =B223 -> 2012
B255: Abgrenzung:
B257: Ein- / Auszahlung | N257: <=> | T257: Erfolgsauswirkung
B259: Wer etwas im voraus bezahlt hat, hat das Recht, im neuen Jahr die Leistung zu erhalten. Analog ist der, dem man etwas schon im voraus bezahlt hat, auch verpflichtet, im Folgejahr die Leistung zu erbringen.
B261: Aktive Rechnungsabgrenzung (ARAP) = Leistungs FORDERUNG (Aktivum)
B263: Passive Rechnungsabgrenzung (PRAP) = Leistungs VERPFLICHTUNG (Passivum)
A266: =A197+1 -> 98
I268: Bilanzausweis | CS268: =#REF!-#REF! -> 
K270: Aktiva | M270: Schlussbilanz 31.12. | AG270: Passiva
J271: Anlagevermögen | W271: Eigenkapital
A273: zunehmende | AL273: abnehmende
A274: Liquidität | AL274: Fristigkeit
A276: Mittel- | AL276: Mittel-
A277: verwendung | AL277: herkunft
J278: Umlaufvermögen | W278: Fremdkapital
W279: Rückstellungen
W280: Verbindlichkeiten
J283: Aktiver Rechnungsposten | W283: Passiver Rechnungsabg. Posten
B289: 19.4 | C289: Rückstellungen
B291: Definition der Rückstellungen Rückstellungen sind ein Sonderfall von bilanziell auszuweisenden Verbindlichkeiten für Aufwendungen des abzuschließenden Geschäftsjahres, die dem Grunde nach feststehen, deren Höhe und/oder Fälligkeitszeit jedoch noch unbekannt sind. Hauptunterscheidungsmerkmal von den herkömmlichen Verbindlichkeiten ist also die Ungewißheit von Höhe und Zeit; ist auch die Zahlungspflicht dem Grunde nach ungewiß, so entstehen Eventualverbindlichkeiten. Je nach dem Grad der Ungewißheit unterscheidet man Verbindlichkeiten von Rückstellungen und Eventualverbindlichkeiten. Nur die Eventualverbindlichkeiten sind außerbilanziell, d. h., in einem zusätzlichen Vermerk „unter der Bilanz“ anzugeben; die restlichen Positionsarten sind zu passivieren.
B293: Hauptregelungsquelle ist im Handelsrecht § 249 HGB und im Steuerrecht § 5 Abs. 4, 4a, 4b EStG. Die steuer- und die handelsrechtlichen Regelungen sind einander mit der Bilanzrechtsmodernisierung weitgehend angeglichen worden: Nach der Art der Verpflichtung unterscheidet man: 1. Rückstellungen für rechtliche Verpflichtungen (wie etwa Pensions-, Steuer-, Garantierückstellungen), 2. Rückstellungen für drohende Verluste aus schwebenden Geschäften, 3. Rückstellungen für wirtschaftliche Verpflichtungen (sogenannte Kulanzrückstellungen), 4. Aufwandsrückstellungen.
B295: Rückstellungen sind im Handelsrecht aufgrund § 249 Abs. 1 HGB für ungewisse Verbindlichkeiten und für drohende Verluste aus schwebenden Geschäften zu bilden. Ferner sind sie zulässig für 1. im Geschäftsjahr unterlassene Aufwendungen für Instandhaltung, die im folgenden Geschäftsjahr innerhalb von drei Monaten nachgeholt werden, 2. im Geschäftsjahr unterlassene Aufwendungen für Abraumbeseitigung, die im folgenden Geschäftsjahr nachgeholt werden, 3. Gewährleistungen, die ohne rechtliche Verpflichtung erbracht werden. Ferner waren seit 1986 Aufwandsrückstellungen zugelassen. Diese wurden erst durch die Bilanzrechtsmodernisierung ab 2009/2010 auch handelsrechtlich untersagt. Steuerrechtlich sind sie schon länger verboten.
B297: Rückstellungen für ungewisse Verbindlichkeiten Die klassische Rückstellungsart für rechtlich bereits begründete Schulden, deren Höhe und/oder Fälligkeit noch nicht endgültig bekannt ist. Für sie besteht eine generelle Passivierungspflicht. Beispiele sind Steuerrückstellungen, Pensionsrückstellungen, Prozessrückstellungen.
A299: =A266+1 -> 99
B301: Rückstellungen für unterlassene Instandhaltung Diese sind eine Form der Aufwandsrückstellungen, die weniger wegen eines vollständigen Schulden-ausweises (nach dem Grundsatz der Vollständigkeit) als mehr zur Periodenabgrenzung der Aufwands-kategorien (nach dem Grundsatz der Periodenabgrenzung) gebildet werden (§ 249 Abs. 1 Nr. 1 HGB). Rückstellungen für unterlassene Instandhaltungen sind nach § 249 Abs. 1 Nr. 1 HGB verpflichtend zu bilden, wenn diese im folgenden Geschäftsjahr innerhalb von drei Monaten nachgeholt und abgeschlossen werden.
B303: Beispiel 1:
B304: Nach einem Sturm Mitte Dezember 2012 sind einige Sonnenschutzjalousien schadhaft. Die Reparatur soll erst im März 2013 ausgeführt werden. Es wird mit einem Aufwand von ca. 1.000 € gerechnet.
B305: Da aber weder die Höhe noch der Zeitpunkt der Zahlung feststehen, bilden wir am 31.12.2012 eine RÜCKSTELLUNG.
B307: Buchungssatz:
B308: Bildung der | H308: Reparaturaufwand | R308: 1000 | V308: an | X308: sonst. Rückstellung | AL308: =R308 -> 1000
B309: Rückstellung 2012
B311: Die Reparaturrechnung des Handwerkers lautet auf
O312: Variante 1 | T312: Variante 2 | Y312: Variante 3
M313: Entgelt | O313: 1000 | T313: 960 | Y313: 1001
M314: +Umsatzsteuer 19% | O314: =O313*19% -> 190 | T314: =T313*19% -> 182.4 | Y314: =Y313*19% -> 190.19 | AC314: (= Vorsteuer: Durchlaufender Posten)
M315: = brutto | O315: =O313*1.19 -> 1190 | T315: =T313*1.19 -> 1142.4 | Y315: =Y313*1.19 -> 1191.19
M317: Rückstellung zum 31.12.2012 | O317: 1000 | T317: =O317 -> 1000 | Y317: =O317 -> 1000
M320: = Differenz | O320: =O317-O313 -> 0 | T320: =T317-T313 -> 40 | Y320: =Y317-Y313 -> -1
O321: identisch | T321: zu viel | Y321: zu wenig
B323: Buchungssatz:
B324: I. Auflösung 2013 | H324: =X308 -> sonst. Rückstellung | R324: =AL308 -> 1000 | V324: an | X324: Bank | AL324: =O315 -> 1190
H325: Vorsteuer | R325: =O314 -> 190
B327: II. Auflösung 2013 | H327: =X308 -> sonst. Rückstellung | R327: =AL308 -> 1000 | V327: an | X327: Bank | AL327: =T315 -> 1142.4
H328: Vorsteuer | R328: =T314 -> 182.4 | X328: Ertrag aus Aufl. Rückstellung | AL328: =T320 -> 40
B331: III. Auflösung 2013 | H331: =X308 -> sonst. Rückstellung | R331: =AL308 -> 1000 | V331: an | X331: Bank | AL331: =Y315 -> 1191.19
H332: =H325 -> Vorsteuer | R332: =Y314 -> 190.19
H333: Reparaturaufwand | R333: =-Y320 -> 1
B336: Rückstellungen bildet man für Aufwendungen bzw. Verbindlichkeiten des laufenden Jahrs, die dem Grunde nach feststehen, deren genaue Höhe und Fälligkeitstermin aber noch unbekannt sind. Rückstellungen sind also F R E M D k a p i t a l .
B337: Weitere Beispiele:
B338: - Schwebendes Gerichtsverfahren - Unterlassene Reparaturen - Garantieverpflichtungen - Kosten für die Entsorgung (Kernkraftwerk) - Pensionszusagen für Mitarbeiter (oft beträchtliche Summen)

Sheet 20
A2: ='19'!A299:BA299+1 -> 100
B5: 20 | C5: Wertberichtigung von Forderungen
B7: 20.1 | C7: Bewertung von Forderungen
B9: Forderungen sind Ansprüche gegenüber anderen Rechtspersonen auf Geld- oder Sachleistungen. Langfristige Forderungen sind in der Bilanz in entsprechenden Positionen des Anlagevermögens ausgewiesen, im Umlaufvermögen unter dem Posten „Forderungen und sonstige Vermögensgegenstände“. Dieser wiederum ist unterteilt in „Forderungen aus Lieferungen und Leistungen“, „Forderungen gegen verbunden Unternehmen“, „Forderungen gegen Unternehmen, mit denen ein Beteiligungsverhältnis besteht“ und „Sonstige Vermögensgegenstände“, wobei Forderungen auch in der letzten Position vorkommen. Zweifelhafte Forderungen (sogenannte Dubiose) sind solche, deren Eingang aus objektiven Gründen (etwa gegen den Leistungspflichtigen eingeleitetes Insolvenzverfahren) als nicht sicher gilt. Sie sind bilanziell jedoch nicht gesondert darzustellen. Entsprechende Wertberichtigungen werden deshalb bei den jeweiligen Bilanzposten direkt abgesetzt. Diese Methode ist handelsrechtlich geboten, steuerrechtlich aber als „Teilwertabschreibung“ eingeschränkt.
B11: Die Bewertung der Forderungen geschieht grundsätzlich mit dem Nennwert, sofern davon ausgegangen werden kann, dass die Forderung vollständig eingeht. Zweifelhafte Forderungen sind mit ihrem wahrscheinlichen Wert anzusetzen, uneinbringliche Forderungen sind auszubuchen. Sind Erkenntnisse vorhanden, wonach an einem vollständigen Forderungseingang zu zweifeln ist, so sind nach Handelsrecht Abschreibungen auf Forderungen vorzunehmen (strenges Niederstwertprinzip). Die Abschreibungen können grundsätzlich direkt oder indirekt vorgenommen werden. Forderungen sind grundsätzlich einzeln zu bewerten; es können aber auch Kategorien von Risikoklassen gebildet werden, auf deren Bestand ein pauschaler Abschlag genommen wird. Die Abschreibungen sind vom Nettobetrag der Forderungen zu berechnen; erst im Falle der Uneinbringlichkeit ist eine Entgeltänderung gegeben, die zu einer Korrektur der Umsatzsteuer berechtigt.
B13: Aufgrund des Einzelwertprinzips sind Forderungen regelmäßig einzeln zu bewerten, sofern dies möglich ist. Dies wird regelmäßig bei Großforderungen der Fall sein. Die damit verbundene Bewertungsbuchung ist die Einzelbewertung oder Einzelwertberichtigung. Erfahren wir, dass ein Kunde Insolvenz angemeldet hat, oder besteht sonst ernsthafter Grund zu der Annahme, dass die Forderung gegen einen Kunden nicht mehr oder nicht mehr vollständig eingehen wird, so ist die Forderung gegen diesen Kunden zunächst von den übrigen Forderungen abzusondern: Zweifelhafte Forderungen (Bestandskonto) .......................... 1.190 AN Forderungen aus LuL (Bestandskonto) ................................. 1.190 Auf diese Weise wird dem Einzelwertgrundsatz genügt, denn die zweifelhafte Forderung ist aufgrund ihrer Eigenart jetzt buchhalterisch von den übrigen Forderungen abgegrenzt. Teilt uns der Insolvenzverwalter mit, dass voraussichtlich 80% der Forderung ausfallen werden, so ist zu buchen:
B15: Abschreibung auf Forderungen (Aufwand) ..................... 800 AN Einzelwertberichtigung (Bestandskonto) .................................. 800 Diese Buchung ist eine indirekte teilweise Abschreibung der Forderung. Nur die indirekte Abschreibung ist in diesem Falle zulässig, weil die tatsächliche (endgültige) Höhe des Forderungsausfalles zu diesem Zeitpunkt noch unbekannt ist, also keine bilanzielle Wertminderung vorgenommen werden darf.
A17: =A2+1 -> 101
B19: Man beachte, dass die Abschreibung auf den Nettowert der Forderung stattzufinden hat. Bei einer Bruttosumme i. H. v. 1.190 Euro beträgt der Nettowert 1.000 Euro. Hierauf wurde die Abschreibung i. H. v. 80% gerechnet. Beträgt bei Abschluss des Insolvenzverfahrens der tatsächliche Ausfall die erwarteten 80%, so ist dies so zu buchen: Einzelwertberichtigung (Bestandskonto)................................. 800 Bank ................................................................................... 238 Umsatzsteuer......................................................................... 152 AN Zweifelhafte Forderungen (Bestandskonto) .............................. 1.190
B21: Ist der wirkliche Forderungsausfall jedoch mit 90% festgestellt worden, d. h., ist er noch höher als zunächst angenommen, so ist der Unterschiedsbetrag als außerordentlicher oder periodenfremder Aufwand zu buchen. Das sieht folgendermaßen aus: Einzelwertberichtigung (Bestandskonto)........................... 800 Bank ................................................................................... 119 Umsatzsteuer .................................................................... 171 sonstiger betrieblicher Aufwand ....................................... 100 AN Zweifelhafte Forderungen (Bestandskonto).............................. 1.190
B23: Die Pauschalwertberichtigung Die vorstehend demonstrierte Methode der Einzelwertberichtigung setzt voraus, daß die Bonität und Zahlungswilligkeit jedes einzelnen Kunden individuell bewertet werden kann. In Zeiten von Basel II ist das zwar immer häufiger der Fall, aber für das allgemeine Ausfallrisiko sowie Kleinforderungen ist (und bleibt) es dennoch unmöglich. Hierfür besteht ein Vereinfachungsverfahren, das als Pauschalwertberichtigung bekannt ist.
B25: Der erwartete Ausfallbetrag ist zunächst abzugrenzen mit der Buchung: Abschreibung auf Forderungen (Aufwand) ................ 10.000 AN Pauschalwertberichtigung (PWB = Bestandskonto)............... 10.000 Zu jedem Periodenwechsel ist die Pauschalwertberichtigung neu festzusetzen. Ist sie zu erhöhen, so geschieht dies mit dem oben dargestellten Buchungssatz. Ist sie aber zu senken, so ist zu buchen: Pauschalwertberichtigung (PWB = Bestandskonto)........ 2.000 AN sonstige betriebliche Erträge (Erfolgskonto => GuV!) ........................... 2.000
A27: =A17+1 -> 102
B30: 20.2 | C30: Übung zu Forderungsausfällen
B32: Von unserem Kunden Knapp hören wir, dass er bei anderen Lieferern seine Zahlungen eingestellt hat. Wir haben heute am 01.04.2013 noch 11.900 € von ihm zu fordern.
B35: Verkauf
B37: Unternehmer | L37: Verkauf fertiges Produkt | X37: Kunde
M39: Entgelt | O39: 10000
M40: +Umsatzsteuer 19% | O40: =O39*19% -> 1900
M41: =Verkaufspreis | O41: =O39*1.19 -> 11900
B43: Buchungssatz: | H43: Soll | R43: =SUM(R44:U50) -> 23800 | X43: Haben | AL43: =SUM(AL44:AO50) -> 23800
B44: 1. Verkauf | H44: Ford. a. LuL | R44: =O41 -> 11900 | V44: an | X44: Umsatzerlöse | AL44: =O39 -> 10000
X45: Umsatzsteuer | AL45: =O40 -> 1900
B47: => Gewinnerhöhung
H48: Zweifelhafte Forderungen | R48: =R44 -> 11900 | V48: an | X48: =H44 -> Ford. a. LuL | AL48: =R48 -> 11900
B49: => Gewinnneutral
